Department Family,Entity,Date,Expense Type,Expense Area,Supplier,Transaction Number,Amount,Description
Department for Education,Core,18/01/2022,Other Goods & Services,Operational Finance,DELOITTE LLP,CORE-PINV-029657,25643.00,Professional Services - Accountancy
Department for Education,Core,11/01/2022,IS/IT,Operational Finance,Agile Management Solutions Limited,CORE-PINV-030828,34553.00,Systems Development
Department for Education,Core,11/01/2022,Other Costs,Operational Finance,Agile Management Solutions Limited,CORE-PINV-030827,138212.00,Software Development
Department for Education,Core,28/01/2022,Other Costs,Operational Finance,Total Enterprise Solutions,CORE-PINV-030877,47544.00,Software Development
Department for Education,Core,25/01/2022,Other Goods & Services,Operational Finance,HM Treasury Group,CORE-PINV-031425,533690.25,Professional Services
Department for Education,Core,25/01/2022,IS/IT,Operational Finance,Cabinet Office,CORE-PCR-001093,-117414.00,Software licences
Department for Education,Core,28/01/2022,Learning & Development,Operational Finance,Cabinet Office,CORE-PINV-031669,145386.00,Talent Development
Department for Education,Core,31/01/2022,IS/IT,Operational Finance,Cabinet Office,CORE-PINV-030951,117414.00,Software licences
Department for Education,Core,31/01/2022,IS/IT,Operational Finance,Cabinet Office,CORE-PINV-031262,104320.00,Software licences
Department for Education,Core,17/01/2022,Accommodation & Estates - Other,Operational Finance,Government Property Agency,CORE-PCR-001084,-74190.83,Building Service Charge
Department for Education,Core,17/01/2022,Accommodation & Estates - Other,Operational Finance,Government Property Agency,CORE-PINV-031042,74190.83,Building Service Charge
Department for Education,Core,18/01/2022,Accommodation & Estates - Maintenance,Operational Finance,Government Property Agency,CORE-PINV-031119,263752.27,Maintenance & Repairs
Department for Education,Core,18/01/2022,Accommodation & Estates - Other,Operational Finance,Government Property Agency,CORE-PINV-031119,60391.00,Estates Management
Department for Education,Core,18/01/2022,Accommodation & Estates - Rent & Rates,Operational Finance,Government Property Agency,CORE-PINV-031119,4736129.05,Rentals
Department for Education,Core,18/01/2022,Accommodation & Estates - Other,Operational Finance,Government Property Agency,CORE-PINV-031181,44879.82,Building Service Charge
Department for Education,Core,18/01/2022,Accommodation & Estates - Rent & Rates,Operational Finance,Government Property Agency,CORE-PINV-031180,3336.90,Rentals
Department for Education,Core,18/01/2022,Accommodation & Estates - Rent & Rates,Operational Finance,Government Property Agency,CORE-PINV-031180,24963.20,Rentals
Department for Education,Core,18/01/2022,Accommodation & Estates - Other,Operational Finance,Government Property Agency,CORE-PINV-031184,120000.00,Building Service Charge
Department for Education,Core,06/01/2022,Other Costs,Operational Finance,Arcadis LLP,CORE-PINV-030344,236016.22,Building Improvements
Department for Education,Core,31/01/2022,Other Costs,Operational Finance,Mace Ltd,CORE-PINV-031571,1150203.59,Building Improvements
Department for Education,Core,14/01/2022,Other Costs,Operational Finance,Swallow Evacuation & Mobility Products Ltd T/A Evaccess,CORE-PINV-031032,31113.60,Fixture and Fittings
Department for Education,Core,06/01/2022,IS/IT,Funding,WellData Ltd,CORE-PINV-030669,58134.00,ICT Support & Services
Department for Education,Core,21/01/2022,Other Goods & Services,Commercial,2BUY2.COM LTD,CORE-PINV-031352,160209.00,Professional Services
Department for Education,Core,06/01/2022,Other Goods & Services,Commercial,PLACE GROUP LTD,CORE-PINV-030399,96907.00,Professional Services
Department for Education,Core,19/01/2022,Other Goods & Services,Commercial,WILLIS LIMITED,CORE-PINV-031278,118157.40,Professional Services
Department for Education,Core,17/01/2022,Grants Expenditure,Commercial,ENVIRONMENT AGENCY,CORE-PINV-031083,9369514.00,Capital grants
Department for Education,Core,06/01/2022,Other Goods & Services,Commercial,GOVERNMENT ACTUARYS DEPT,CORE-PINV-030722,90829.06,Professional Services
Department for Education,Core,26/01/2022,Other Goods & Services,Commercial,GOVERNMENT ACTUARYS DEPT,CORE-PINV-031577,45605.52,Professional Services
Department for Education,Core,25/01/2022,Other Goods & Services,Commercial Delivery,Cabinet Office,CORE-PINV-031436,66680.00,Professional Services
Department for Education,Core,27/01/2022,Staff - Secondee,Commercial Delivery,Cabinet Office,CORE-PINV-031631,100018.00,Fast Stream Recruiting
Department for Education,Core,27/01/2022,Legal,Commercial Delivery,GOVERNMENT LEGAL DEPARTMENT,CORE-PINV-031588,331250.00,Professional Services - Legal
Department for Education,Core,27/01/2022,Staff - Other,Human Resources,Cabinet Office,CORE-PINV-031629,43200.00,Recruitment Advertising
Department for Education,Core,13/01/2022,Staff - Bonuses,Human Resources,EDENRED,CORE-PINV-030977,34770.00,Rewards & Recognition
Department for Education,Core,28/01/2022,Staff - Bonuses,Human Resources,EDENRED,CORE-PINV-031649,28230.00,Rewards & Recognition
Department for Education,Core,25/01/2022,Staff - Secondee,Human Resources,Cabinet Office,CORE-PINV-031057,63360.00,Fast Stream Recruiting
Department for Education,Core,28/01/2022,Staff - Secondee,Human Resources,Cabinet Office,CORE-PINV-031668,450351.00,Fast Stream Recruiting
Department for Education,Core,13/01/2022,Other Goods & Services,Human Resources,"Headspace, Inc.",CORE-PINV-030946,56000.00,Professional Services
Department for Education,Core,20/01/2022,IS/IT,Digital and Technology,Bytes Software Services Ltd,CORE-PINV-030725,75710.92,End User Software & Hardware
Department for Education,Core,18/01/2022,IS/IT,Digital and Technology,VODAFONE ENTERPRISE U.K. (Fixed Line),CORE-PINV-031082,25454.53,Telecoms
Department for Education,Core,10/01/2022,Other Costs,Digital and Technology,Insight Direct (UK) Ltd,CORE-PINV-030749,43847.23,ICT Hardware
Department for Education,Core,10/01/2022,Other Costs,Digital and Technology,Insight Direct (UK) Ltd,CORE-PINV-030748,102872.35,ICT Hardware
Department for Education,Core,31/01/2022,Other Costs,Digital and Technology,Insight Direct (UK) Ltd,CORE-PINV-031284,42160.80,ICT Hardware
Department for Education,Core,26/01/2022,Other Costs,Digital and Technology,XMA Ltd,CORE-PINV-031411,1014908.40,ICT Hardware
Department for Education,Core,26/01/2022,Other Costs,Digital and Technology,XMA Ltd,CORE-PINV-031412,352968.00,ICT Hardware
Department for Education,Core,26/01/2022,Other Costs,Digital and Technology,XMA Ltd,CORE-PINV-031379,705936.00,ICT Hardware
Department for Education,Core,26/01/2022,Other Costs,Digital and Technology,XMA Ltd,CORE-PINV-031549,428298.76,ICT Hardware
Department for Education,Core,27/01/2022,Other Costs,Digital and Technology,XMA Ltd,CORE-PINV-031626,441210.00,ICT Hardware
Department for Education,Core,06/01/2022,Other Goods & Services,Digital and Technology,CABINET OFFICE RM SHARED SERVICES,CORE-PINV-030655,208455.00,Fast Stream Programme
Department for Education,Core,20/01/2022,Other Goods & Services,Digital and Technology,FARSIGHT CONSULTING LIMITED,CORE-PINV-031302,26514.00,Professional Services
Department for Education,Core,14/01/2022,Grants Expenditure,Digital and Technology,DERBYSHIRE COUNTY COUNCIL,CUPS0037480,25633.80,Capital grants - Local Government
Department for Education,Core,21/01/2022,Grants Expenditure,Digital and Technology,Gloucestershire County Council,CUPS0037779,31954.64,Capital grants - Local Government
Department for Education,Core,21/01/2022,Grants Expenditure,Digital and Technology,LANCASHIRE COUNTY COUNCIL,CUPS0037776,28126.40,Capital grants - Local Government
Department for Education,Core,28/01/2022,Grants Expenditure,Digital and Technology,LIVERPOOL CITY COUNCIL,CUPS0037916,52792.80,Capital grants - Local Government
Department for Education,Core,21/01/2022,Grants Expenditure,Digital and Technology,NOTTINGHAMSHIRE COUNTY COUNCIL,CUPS0037780,65535.70,Capital grants - Local Government
Department for Education,Core,28/01/2022,Grants Expenditure,Digital and Technology,NOTTINGHAMSHIRE COUNTY COUNCIL,CUPS0037912,40925.96,Capital grants - Local Government
Department for Education,Core,28/01/2022,Grants Expenditure,Digital and Technology,Peterborough Diocese Education Trust,CUPS0037917,26120.68,Capital grants - Academy Trust
Department for Education,Core,21/01/2022,Grants Expenditure,Digital and Technology,Staffordshire County Council,CUPS0037778,31404.43,Capital grants - Local Government
Department for Education,Core,14/01/2022,Grants Expenditure,Digital and Technology,Stanley Learning Partnership,CUPS0037482,29516.70,Capital grants - Local Government
Department for Education,Core,28/01/2022,Grants Expenditure,Digital and Technology,The Great Schools Trust,CUPS0037925,79371.05,Capital grants - Academy Trust
Department for Education,Core,14/01/2022,Grants Expenditure,Digital and Technology,West Derby School,CUPS0037477,81544.28,Capital grants - Local Government
Department for Education,Core,14/01/2022,Grants Expenditure,Digital and Technology,NESTA,CORE-MAIN-028479,78065.50,Current grants
Department for Education,Core,28/01/2022,Other Goods & Services,Digital and Technology,ENGINE GROUP LTD,CORE-PINV-030993,60215.80,Professional Services
Department for Education,Core,20/01/2022,Staff - Temporary Staff,Digital and Technology,Actica Consulting Ltd,CORE-PINV-030474,40560.00,Short term & agency staff
Department for Education,Core,07/01/2022,IS/IT,Digital and Technology,Bytes Software Services Ltd,CORE-PINV-030727,153255.43,End User Software & Hardware
Department for Education,Core,13/01/2022,IS/IT,Digital and Technology,Complete University Guide Limited ,CORE-PINV-030863,22512.48,Systems Operations
Department for Education,Core,24/01/2022,Staff - Temporary Staff,Digital and Technology,Alexander Mann Solutions Ltd,CORE-PINV-031158,28571.40,Short term & agency staff
Department for Education,Core,18/01/2022,IS/IT,Digital and Technology,Bae Systems Applied Intelligence Ltd,CORE-PINV-031094,49441.88,Systems Development
Department for Education,Core,21/01/2022,IS/IT,Digital and Technology,Bae Systems Applied Intelligence Ltd,CORE-PINV-031355,108912.09,Systems Development
Department for Education,Core,14/01/2022,IS/IT,Digital and Technology,BT GROUP PLC,CORE-PINV-031056,322237.08,Telecoms facilities and services
Department for Education,Core,14/01/2022,IS/IT,Digital and Technology,Bytes Software Services Ltd,CORE-PINV-030836,1115006.17,Systems Development
Department for Education,Core,20/01/2022,IS/IT,Digital and Technology,Bytes Software Services Ltd,CORE-PCR-001089,-28116.00,ICT repair & maintenance
Department for Education,Core,25/01/2022,IS/IT,Digital and Technology,Cabinet Office,CORE-PINV-031090,65448.07,End User Software & Hardware
Department for Education,Core,10/01/2022,IS/IT,Digital and Technology,SOL-TEC LIMITED,CORE-PINV-030798,106145.90,Systems Development
Department for Education,Core,10/01/2022,Other Goods & Services,Digital and Technology,SOL-TEC LIMITED,CORE-PINV-030795,32604.00,Professional Services
Department for Education,Core,12/01/2022,IS/IT,Digital and Technology,SPECIALIST COMPUTER CENTRES,CORE-PINV-030931,21484.54,Networking
Department for Education,Core,21/01/2022,IS/IT,Digital and Technology,Methods Business and Digital Technology Ltd,CORE-PINV-031099,154346.26,Systems Operations
Department for Education,Core,13/01/2022,Other Costs,Analysis,ECORYS UK LTD,CORE-PINV-031013,44533.25,Research & development
Department for Education,Core,13/01/2022,Other Costs,Analysis,ECORYS UK LTD,CORE-PINV-031014,44533.25,Research & development
Department for Education,Core,13/01/2022,Other Costs,Analysis,ECORYS UK LTD,CORE-PINV-031015,100279.88,Research & development
Department for Education,Core,13/01/2022,Other Costs,Analysis,ECORYS UK LTD,CORE-PINV-031016,66780.00,Research & development
Department for Education,Core,13/01/2022,Other Costs,Analysis,ECORYS UK LTD,CORE-PINV-031018,133599.75,Research & development
Department for Education,Core,19/01/2022,Other Goods & Services,Analysis,IFF RESEARCH LTD,CORE-PINV-031282,30068.00,Research & Evaluation
Department for Education,Core,25/01/2022,Other Goods & Services,Analysis,IFF RESEARCH LTD,CORE-PINV-031479,45236.40,Research & Evaluation
Department for Education,Core,24/01/2022,Other Goods & Services,Analysis,IPSOS MORI,CORE-PINV-031387,311409.60,Research & Evaluation
Department for Education,Core,20/01/2022,Other Goods & Services,Analysis,NATIONAL CENTRE FOR SOCIAL RESEARCH,CORE-PINV-031251,30000.00,Research & Evaluation
Department for Education,Core,20/01/2022,Other Goods & Services,Analysis,NATIONAL FOUNDATION FOR EDUCATIONAL RESEARCH NFER,CORE-PINV-030548,27836.67,Research & Evaluation
Department for Education,Core,20/01/2022,Other Goods & Services,Analysis,NATIONAL FOUNDATION FOR EDUCATIONAL RESEARCH NFER,CORE-PCR-001096,-27836.67,Research & Evaluation
Department for Education,Core,24/01/2022,Other Goods & Services,Analysis,OECD,CUPS0037907,36441.00,Research & Evaluation
Department for Education,Core,07/01/2022,IS/IT,Data,CAPGEMINI UK PLC,CORE-PINV-030775,33780.00,ICT repair & maintenance
Department for Education,Core,14/01/2022,IS/IT,Data,AGILE SOLUTIONS GB LTD,CORE-PINV-031053,31080.00,ICT repair & maintenance
Department for Education,Core,20/01/2022,IS/IT,Data,Engine Partners UK LLP - Engine Transformation,CORE-PINV-031315,45592.00,ICT repair & maintenance
Department for Education,Core,20/01/2022,IS/IT,Data,Engine Partners UK LLP - Engine Transformation,CORE-PINV-031309,31536.80,ICT repair & maintenance
Department for Education,Core,21/01/2022,IS/IT,Data,Engine Partners UK LLP - Engine Transformation,CORE-PINV-031362,50826.00,ICT repair & maintenance
Department for Education,Core,17/01/2022,IS/IT,Data,OLIVE JAR DIGITAL LTD,CORE-PINV-031075,74182.46,ICT repair & maintenance
Department for Education,Core,17/01/2022,IS/IT,Data,OLIVE JAR DIGITAL LTD,CORE-PINV-031074,48459.00,ICT repair & maintenance
Department for Education,Core,13/01/2022,IS/IT,Data,SOL-TEC LIMITED,CORE-PINV-030942,41392.42,ICT repair & maintenance
Department for Education,Core,10/01/2022,IS/IT,Data,HIVE IT LIMITED,CORE-PINV-030792,77946.00,Systems Operations
Department for Education,Core,06/01/2022,IS/IT,Data,INFORMATICA SOFTWARE LTD,CORE-PINV-030627,519667.21,End User Software & Hardware
Department for Education,Core,21/01/2022,IS/IT,Data,INFORMATICA SOFTWARE LTD,CORE-PINV-030304,238764.92,End User Software & Hardware
Department for Education,Core,06/01/2022,IS/IT,Capital Directorate,Commerce Decisions Ltd,CORE-PINV-030630,30000.00,Software licences
Department for Education,Core,06/01/2022,Grants Expenditure,Capital Directorate,Rexel UK Ltd,D-PINV041988,1663035.30,ICT Equipment/Hardware 
Department for Education,Core,18/01/2022,Grants Expenditure,Capital Directorate,Rexel UK Ltd,D-PINV042401,425729.42,ICT Equipment/Hardware 
Department for Education,Core,04/01/2022,Grants Expenditure,Capital Directorate,Kensington Aldridge Academy,DU00066018,27547.00,Current grants - Academy Trust
Department for Education,Core,17/01/2022,Grants Expenditure,Capital Directorate,Portakabin Ltd,D-PINV042316,138522.15,Current grants - Academy Trust
Department for Education,Core,21/01/2022,Grants Expenditure,Capital Directorate,Jisc Services Limited,D-PINV042523,257545.50,Current grants - Private Sector
Department for Education,Core,24/01/2022,Other Goods & Services,Capital Directorate,Cognizant Worldwide Limited,D-PINV042633,45805.00,Professional Services
Department for Education,Core,24/01/2022,Other Goods & Services,Capital Directorate,Cognizant Worldwide Limited,D-PINV042634,61190.00,Professional Services
Department for Education,Core,24/01/2022,Other Goods & Services,Capital Directorate,Cognizant Worldwide Limited,D-PINV042631,57882.50,Professional Services
Department for Education,Core,20/01/2022,Grants Expenditure,Capital Directorate,BARKING & DAGENHAM LONDON BOROUGH COUNCIL,CL042997,49261.80,Capital grants - Local Government
Department for Education,Core,20/01/2022,Grants Expenditure,Capital Directorate,BARNSLEY METROPOLITAN BOROUGH COUNCIL,CL043022,593303.15,Capital grants - Local Government
Department for Education,Core,20/01/2022,Grants Expenditure,Capital Directorate,BATH & NORTH EAST SOMERSET COUNCIL,CL043035,539144.17,Capital grants - Local Government
Department for Education,Core,20/01/2022,Grants Expenditure,Capital Directorate,BEDFORD BOROUGH COUNCIL,CL043044,663205.32,Capital grants - Local Government
Department for Education,Core,20/01/2022,Grants Expenditure,Capital Directorate,Blackburn with Darwen Borough Council,CL043068,314625.03,Capital grants - Local Government
Department for Education,Core,20/01/2022,Grants Expenditure,Capital Directorate,BLACKPOOL BOROUGH COUNCIL,CL043069,49378.72,Capital grants - Local Government
Department for Education,Core,20/01/2022,Grants Expenditure,Capital Directorate,BRADFORD CITY COUNCIL,CL043026,317451.83,Capital grants - Local Government
Department for Education,Core,20/01/2022,Grants Expenditure,Capital Directorate,BRENT LONDON BOROUGH COUNCIL,CL042998,1029321.18,Capital grants - Local Government
Department for Education,Core,20/01/2022,Grants Expenditure,Capital Directorate,BRIGHTON & HOVE CITY COUNCIL,CL043050,546199.11,Capital grants - Local Government
Department for Education,Core,20/01/2022,Grants Expenditure,Capital Directorate,BRISTOL CITY COUNCIL,CL043036,1090206.84,Capital grants - Local Government
Department for Education,Core,20/01/2022,Grants Expenditure,Capital Directorate,BROMLEY LONDON BOROUGH COUNCIL,CL042999,248607.32,Capital grants - Local Government
Department for Education,Core,20/01/2022,Grants Expenditure,Capital Directorate,Buckinghamshire Council,CL043046,671970.63,Capital grants - Local Government
Department for Education,Core,20/01/2022,Grants Expenditure,Capital Directorate,BURY METRO BOROUGH COUNCIL,CL043017,209695.18,Capital grants - Local Government
Department for Education,Core,20/01/2022,Grants Expenditure,Capital Directorate,CALDERDALE METRO BOROUGH COUNCIL,CL043027,460654.06,Capital grants - Local Government
Department for Education,Core,20/01/2022,Grants Expenditure,Capital Directorate,CENTRAL BEDFORDSHIRE COUNCIL,CL043045,825993.73,Capital grants - Local Government
Department for Education,Core,20/01/2022,Grants Expenditure,Capital Directorate,Cheshire East Council,CL043072,664115.56,Capital grants - Local Government
Department for Education,Core,20/01/2022,Grants Expenditure,Capital Directorate,CHESHIRE WEST & CHESTER COUNCIL,CL043073,2750535.68,Capital grants - Local Government
Department for Education,Core,20/01/2022,Grants Expenditure,Capital Directorate,CITY OF YORK COUNCIL,CL043043,762204.45,Capital grants - Local Government
Department for Education,Core,20/01/2022,Grants Expenditure,Capital Directorate,COVENTRY CITY COUNCIL,CL043008,2637056.03,Capital grants - Local Government
Department for Education,Core,20/01/2022,Grants Expenditure,Capital Directorate,CROYDON LONDON BOROUGH COUNCIL,CL043000,473190.60,Capital grants - Local Government
Department for Education,Core,20/01/2022,Grants Expenditure,Capital Directorate,CUMBRIA COUNTY COUNCIL,CL043074,217588.63,Capital grants - Local Government
Department for Education,Core,20/01/2022,Grants Expenditure,Capital Directorate,DEVON COUNTY COUNCIL,CL043061,1374776.55,Capital grants - Local Government
Department for Education,Core,20/01/2022,Grants Expenditure,Capital Directorate,DONCASTER METRO BOROUGH COUNCIL,CL043023,154739.15,Capital grants - Local Government
Department for Education,Core,20/01/2022,Grants Expenditure,Capital Directorate,DORSET COUNCIL,CL043047,235515.10,Capital grants - Local Government
Department for Education,Core,20/01/2022,Grants Expenditure,Capital Directorate,DUDLEY METRO BOROUGH COUNCIL,CL043009,157912.32,Capital grants - Local Government
Department for Education,Core,20/01/2022,Grants Expenditure,Capital Directorate,DURHAM COUNTY COUNCIL,CL043048,159997.10,Capital grants - Local Government
Department for Education,Core,20/01/2022,Grants Expenditure,Capital Directorate,EAST RIDING OF YORKSHIRE COUNCIL,CL043041,144902.71,Capital grants - Local Government
Department for Education,Core,20/01/2022,Grants Expenditure,Capital Directorate,EAST SUSSEX COUNTY COUNCIL,CL043049,221148.29,Capital grants - Local Government
Department for Education,Core,20/01/2022,Grants Expenditure,Capital Directorate,ESSEX COUNTY COUNCIL,CL043063,2416977.10,Capital grants - Local Government
Department for Education,Core,20/01/2022,Grants Expenditure,Capital Directorate,GREENWICH LONDON BOROUGH COUNCIL,CL042994,1394122.86,Capital grants - Local Government
Department for Education,Core,20/01/2022,Grants Expenditure,Capital Directorate,HAMPSHIRE COUNTY COUNCIL,CL043051,4544861.70,Capital grants - Local Government
Department for Education,Core,20/01/2022,Grants Expenditure,Capital Directorate,HARROW LONDON BOROUGH COUNCIL,CL043002,1663711.53,Capital grants - Local Government
Department for Education,Core,20/01/2022,Grants Expenditure,Capital Directorate,HERTFORDSHIRE COUNTY COUNCIL,CL043075,1487341.08,Capital grants - Local Government
Department for Education,Core,20/01/2022,Grants Expenditure,Capital Directorate,HOUNSLOW LONDON BOROUGH COUNCIL,CL043003,286742.16,Capital grants - Local Government
Department for Education,Core,20/01/2022,Grants Expenditure,Capital Directorate,ISLE OF WIGHT COUNCIL,CL043076,132441.42,Capital grants - Local Government
Department for Education,Core,20/01/2022,Grants Expenditure,Capital Directorate,KENT COUNTY COUNCIL,CL043066,2691770.26,Capital grants - Local Government
Department for Education,Core,20/01/2022,Grants Expenditure,Capital Directorate,KINGSTON UPON HULL CITY COUNCIL,CL043040,641950.28,Capital grants - Local Government
Department for Education,Core,20/01/2022,Grants Expenditure,Capital Directorate,KNOWSLEY METRO BOROUGH COUNCIL,CL043014,44908.37,Capital grants - Local Government
Department for Education,Core,20/01/2022,Grants Expenditure,Capital Directorate,LANCASHIRE COUNTY COUNCIL,CL043067,1395391.81,Capital grants - Local Government
Department for Education,Core,20/01/2022,Grants Expenditure,Capital Directorate,LEEDS CITY COUNCIL,CL043028,7240704.86,Capital grants - Local Government
Department for Education,Core,20/01/2022,Grants Expenditure,Capital Directorate,LEICESTERSHIRE COUNTY COUNCIL,CL043053,2460920.68,Capital grants - Local Government
Department for Education,Core,20/01/2022,Grants Expenditure,Capital Directorate,LINCOLNSHIRE COUNTY COUNCIL,CL043077,322264.33,Capital grants - Local Government
Department for Education,Core,20/01/2022,Grants Expenditure,Capital Directorate,LIVERPOOL CITY COUNCIL,CL043015,353546.73,Capital grants - Local Government
Department for Education,Core,20/01/2022,Grants Expenditure,Capital Directorate,London Borough of Sutton,CL043007,1796725.83,Capital grants - Local Government
Department for Education,Core,20/01/2022,Grants Expenditure,Capital Directorate,London Borough of Tower Hamlets,CL042995,270751.87,Capital grants - Local Government
Department for Education,Core,20/01/2022,Grants Expenditure,Capital Directorate,Middlesbrough Council,CL043038,1075826.10,Capital grants - Local Government
Department for Education,Core,20/01/2022,Grants Expenditure,Capital Directorate,NEWCASTLE CITY COUNCIL,CL043031,193773.37,Capital grants - Local Government
Department for Education,Core,20/01/2022,Grants Expenditure,Capital Directorate,NEWHAM LONDON BOROUGH COUNCIL,CL043005,115100.37,Capital grants - Local Government
Department for Education,Core,20/01/2022,Grants Expenditure,Capital Directorate,NORFOLK COUNTY COUNCIL,CL043078,866972.18,Capital grants - Local Government
Department for Education,Core,20/01/2022,Grants Expenditure,Capital Directorate,North Northamptonshire Council,CL043083,115874.30,Capital grants - Local Government
Department for Education,Core,20/01/2022,Grants Expenditure,Capital Directorate,NORTH TYNESIDE METRO BOROUGH COUNCIL,CL043032,211199.38,Capital grants - Local Government
Department for Education,Core,20/01/2022,Grants Expenditure,Capital Directorate,NORTH YORKSHIRE COUNTY COUNCIL,CL043042,375742.25,Capital grants - Local Government
Department for Education,Core,20/01/2022,Grants Expenditure,Capital Directorate,NOTTINGHAMSHIRE COUNTY COUNCIL,CL043070,1822663.93,Capital grants - Local Government
Department for Education,Core,20/01/2022,Grants Expenditure,Capital Directorate,OLDHAM METRO BOROUGH COUNCIL,CL043018,759179.49,Capital grants - Local Government
Department for Education,Core,20/01/2022,Grants Expenditure,Capital Directorate,PETERBOROUGH CITY COUNCIL,CL043060,315131.17,Capital grants - Local Government
Department for Education,Core,20/01/2022,Grants Expenditure,Capital Directorate,Reading Borough Council,CL043058,1039524.07,Capital grants - Local Government
Department for Education,Core,20/01/2022,Grants Expenditure,Capital Directorate,REDCAR & CLEVELAND BOROUGH COUNCIL,CL043039,38213.99,Capital grants - Local Government
Department for Education,Core,20/01/2022,Grants Expenditure,Capital Directorate,RICHMOND UPON THAMES LONDON BOROUGH COUNCIL,CL043006,46291.84,Capital grants - Local Government
Department for Education,Core,20/01/2022,Grants Expenditure,Capital Directorate,ROTHERHAM BOROUGH COUNCIL,CL043024,382164.80,Capital grants - Local Government
Department for Education,Core,20/01/2022,Grants Expenditure,Capital Directorate,ROYAL BOROUGH OF KINGSTON UPON THAMES COUNCIL,CL043004,116625.12,Capital grants - Local Government
Department for Education,Core,20/01/2022,Grants Expenditure,Capital Directorate,ROYAL BOROUGH OF WINDSOR & MAIDENHEAD,CL043057,87883.83,Capital grants - Local Government
Department for Education,Core,20/01/2022,Grants Expenditure,Capital Directorate,RUTLAND COUNTY COUNCIL,CL043054,187665.53,Capital grants - Local Government
Department for Education,Core,20/01/2022,Grants Expenditure,Capital Directorate,Sandwell Metro Borough Council,CL043010,992458.24,Capital grants - Local Government
Department for Education,Core,20/01/2022,Grants Expenditure,Capital Directorate,SHEFFIELD CITY COUNCIL,CL043025,513057.36,Capital grants - Local Government
Department for Education,Core,20/01/2022,Grants Expenditure,Capital Directorate,SHROPSHIRE COUNCIL,CL043071,337501.70,Capital grants - Local Government
Department for Education,Core,20/01/2022,Grants Expenditure,Capital Directorate,SOLIHULL METRO BOROUGH COUNCIL,CL043011,487580.05,Capital grants - Local Government
Department for Education,Core,20/01/2022,Grants Expenditure,Capital Directorate,SOUTH GLOUCESTERSHIRE COUNCIL,CL043037,459341.93,Capital grants - Local Government
Department for Education,Core,20/01/2022,Grants Expenditure,Capital Directorate,SOUTHAMPTON CITY COUNCIL,CL043052,908861.87,Capital grants - Local Government
Department for Education,Core,20/01/2022,Grants Expenditure,Capital Directorate,ST HELENS METRO BOROUGH COUNCIL,CL043016,313130.70,Capital grants - Local Government
Department for Education,Core,20/01/2022,Grants Expenditure,Capital Directorate,STOKE ON TRENT CITY COUNCIL,CL043055,1285422.37,Capital grants - Local Government
Department for Education,Core,20/01/2022,Grants Expenditure,Capital Directorate,SUFFOLK COUNTY COUNCIL,CL043079,539296.26,Capital grants - Local Government
Department for Education,Core,20/01/2022,Grants Expenditure,Capital Directorate,SUNDERLAND CITY METRO BOROUGH COUNCIL,CL043033,382271.75,Capital grants - Local Government
Department for Education,Core,20/01/2022,Grants Expenditure,Capital Directorate,SURREY COUNTY COUNCIL,CL043080,10068657.69,Capital grants - Local Government
Department for Education,Core,20/01/2022,Grants Expenditure,Capital Directorate,TAMESIDE METRO BOROUGH COUNCIL,CL043019,1359090.64,Capital grants - Local Government
Department for Education,Core,20/01/2022,Grants Expenditure,Capital Directorate,THURROCK BOROUGH COUNCIL,CL043064,711104.12,Capital grants - Local Government
Department for Education,Core,20/01/2022,Grants Expenditure,Capital Directorate,TORBAY COUNCIL,CL043062,1005632.51,Capital grants - Local Government
Department for Education,Core,20/01/2022,Grants Expenditure,Capital Directorate,Trafford Borough Council,CL043020,871308.05,Capital grants - Local Government
Department for Education,Core,20/01/2022,Grants Expenditure,Capital Directorate,Wakefield City Council,CL043029,123153.56,Capital grants - Local Government
Department for Education,Core,20/01/2022,Grants Expenditure,Capital Directorate,WALSALL METRO BOROUGH COUNCIL,CL043012,146652.36,Capital grants - Local Government
Department for Education,Core,20/01/2022,Grants Expenditure,Capital Directorate,WARWICKSHIRE COUNTY COUNCIL,CL043081,2681812.94,Capital grants - Local Government
Department for Education,Core,20/01/2022,Grants Expenditure,Capital Directorate,West Northamptonshire Council,CL043084,251825.77,Capital grants - Local Government
Department for Education,Core,20/01/2022,Grants Expenditure,Capital Directorate,West Sussex County Council,CL043082,781635.38,Capital grants - Local Government
Department for Education,Core,20/01/2022,Grants Expenditure,Capital Directorate,WESTMINSTER CITY COUNCIL,CL042996,245630.02,Capital grants - Local Government
Department for Education,Core,20/01/2022,Grants Expenditure,Capital Directorate,Wigan Metropolitan Borough Council,CL043021,244103.13,Capital grants - Local Government
Department for Education,Core,20/01/2022,Grants Expenditure,Capital Directorate,WILTSHIRE COUNTY COUNCIL,CL043056,347953.77,Capital grants - Local Government
Department for Education,Core,20/01/2022,Grants Expenditure,Capital Directorate,WOKINGHAM COUNCIL,CL043059,794971.19,Capital grants - Local Government
Department for Education,Core,20/01/2022,Grants Expenditure,Capital Directorate,WOLVERHAMPTON CITY COUNCIL,CL043013,2090046.83,Capital grants - Local Government
Department for Education,Core,20/01/2022,Grants Expenditure,Capital Directorate,Worcestershire County Council,CL043065,546613.33,Capital grants - Local Government
Department for Education,Core,20/01/2022,Grants Expenditure,Capital Directorate,BARKING & DAGENHAM LONDON BOROUGH COUNCIL,CL042856,580607.70,Capital grants - Local Government
Department for Education,Core,20/01/2022,Grants Expenditure,Capital Directorate,BARNET LONDON BOROUGH COUNCIL,CL042857,398429.16,Capital grants - Local Government
Department for Education,Core,20/01/2022,Grants Expenditure,Capital Directorate,BARNSLEY METROPOLITAN BOROUGH COUNCIL,CL042898,84169.51,Capital grants - Local Government
Department for Education,Core,20/01/2022,Grants Expenditure,Capital Directorate,BATH & NORTH EAST SOMERSET COUNCIL,CL042912,39806.49,Capital grants - Local Government
Department for Education,Core,20/01/2022,Grants Expenditure,Capital Directorate,BEDFORD BOROUGH COUNCIL,CL042927,248821.94,Capital grants - Local Government
Department for Education,Core,20/01/2022,Grants Expenditure,Capital Directorate,BEXLEY LONDON BOROUGH COUNCIL,CL042858,151951.11,Capital grants - Local Government
Department for Education,Core,20/01/2022,Grants Expenditure,Capital Directorate,BIRMINGHAM CITY COUNCIL,CL042876,1509254.36,Capital grants - Local Government
Department for Education,Core,20/01/2022,Grants Expenditure,Capital Directorate,Blackburn with Darwen Borough Council,CL042969,137824.43,Capital grants - Local Government
Department for Education,Core,20/01/2022,Grants Expenditure,Capital Directorate,BLACKPOOL BOROUGH COUNCIL,CL042970,63873.76,Capital grants - Local Government
Department for Education,Core,20/01/2022,Grants Expenditure,Capital Directorate,BOLTON METRO BOROUGH COUNCIL,CL042888,353789.28,Capital grants - Local Government
Department for Education,Core,20/01/2022,Grants Expenditure,Capital Directorate,Bournemouth Christchurch and Poole Council,CL042934,137769.88,Capital grants - Local Government
Department for Education,Core,20/01/2022,Grants Expenditure,Capital Directorate,BRACKNELL FOREST BOROUGH COUNCIL,CL042949,263624.37,Capital grants - Local Government
Department for Education,Core,20/01/2022,Grants Expenditure,Capital Directorate,BRADFORD CITY COUNCIL,CL042902,362738.14,Capital grants - Local Government
Department for Education,Core,20/01/2022,Grants Expenditure,Capital Directorate,BRENT LONDON BOROUGH COUNCIL,CL042859,290437.06,Capital grants - Local Government
Department for Education,Core,20/01/2022,Grants Expenditure,Capital Directorate,BRIGHTON & HOVE CITY COUNCIL,CL042938,541229.74,Capital grants - Local Government
Department for Education,Core,20/01/2022,Grants Expenditure,Capital Directorate,BRISTOL CITY COUNCIL,CL042913,231631.78,Capital grants - Local Government
Department for Education,Core,20/01/2022,Grants Expenditure,Capital Directorate,BROMLEY LONDON BOROUGH COUNCIL,CL042860,41682.28,Capital grants - Local Government
Department for Education,Core,20/01/2022,Grants Expenditure,Capital Directorate,Buckinghamshire Council,CL042929,774462.96,Capital grants - Local Government
Department for Education,Core,20/01/2022,Grants Expenditure,Capital Directorate,BURY METRO BOROUGH COUNCIL,CL042889,211041.30,Capital grants - Local Government
Department for Education,Core,20/01/2022,Grants Expenditure,Capital Directorate,CALDERDALE METRO BOROUGH COUNCIL,CL042903,194730.26,Capital grants - Local Government
Department for Education,Core,20/01/2022,Grants Expenditure,Capital Directorate,CAMBRIDGESHIRE COUNTY COUNCIL,CL042955,425375.22,Capital grants - Local Government
Department for Education,Core,20/01/2022,Grants Expenditure,Capital Directorate,CAMDEN LONDON BOROUGH COUNCIL,CL042844,227959.96,Capital grants - Local Government
Department for Education,Core,20/01/2022,Grants Expenditure,Capital Directorate,CENTRAL BEDFORDSHIRE COUNCIL,CL042928,295030.79,Capital grants - Local Government
Department for Education,Core,20/01/2022,Grants Expenditure,Capital Directorate,Cheshire East Council,CL042975,230091.30,Capital grants - Local Government
Department for Education,Core,20/01/2022,Grants Expenditure,Capital Directorate,CHESHIRE WEST & CHESTER COUNCIL,CL042976,514262.77,Capital grants - Local Government
Department for Education,Core,20/01/2022,Grants Expenditure,Capital Directorate,CITY OF YORK COUNCIL,CL042925,161229.73,Capital grants - Local Government
Department for Education,Core,20/01/2022,Grants Expenditure,Capital Directorate,CORNWALL COUNCIL,CL042977,229088.91,Capital grants - Local Government
Department for Education,Core,20/01/2022,Grants Expenditure,Capital Directorate,COVENTRY CITY COUNCIL,CL042877,420968.79,Capital grants - Local Government
Department for Education,Core,20/01/2022,Grants Expenditure,Capital Directorate,CROYDON LONDON BOROUGH COUNCIL,CL042861,357174.15,Capital grants - Local Government
Department for Education,Core,20/01/2022,Grants Expenditure,Capital Directorate,CUMBRIA COUNTY COUNCIL,CL042978,587909.80,Capital grants - Local Government
Department for Education,Core,20/01/2022,Grants Expenditure,Capital Directorate,DERBY CITY COUNCIL,CL042932,343309.17,Capital grants - Local Government
Department for Education,Core,20/01/2022,Grants Expenditure,Capital Directorate,DERBYSHIRE COUNTY COUNCIL,CL042931,1181767.05,Capital grants - Local Government
Department for Education,Core,20/01/2022,Grants Expenditure,Capital Directorate,DEVON COUNTY COUNCIL,CL042959,505588.11,Capital grants - Local Government
Department for Education,Core,20/01/2022,Grants Expenditure,Capital Directorate,DONCASTER METRO BOROUGH COUNCIL,CL042899,120547.45,Capital grants - Local Government
Department for Education,Core,20/01/2022,Grants Expenditure,Capital Directorate,DORSET COUNCIL,CL042933,323222.70,Capital grants - Local Government
Department for Education,Core,20/01/2022,Grants Expenditure,Capital Directorate,DUDLEY METRO BOROUGH COUNCIL,CL042878,458474.03,Capital grants - Local Government
Department for Education,Core,20/01/2022,Grants Expenditure,Capital Directorate,DURHAM COUNTY COUNCIL,CL042935,811277.21,Capital grants - Local Government
Department for Education,Core,20/01/2022,Grants Expenditure,Capital Directorate,EALING LONDON BOROUGH COUNCIL,CL042862,668901.41,Capital grants - Local Government
Department for Education,Core,20/01/2022,Grants Expenditure,Capital Directorate,EAST RIDING OF YORKSHIRE COUNCIL,CL042921,461419.68,Capital grants - Local Government
Department for Education,Core,20/01/2022,Grants Expenditure,Capital Directorate,EAST SUSSEX COUNTY COUNCIL,CL042937,562051.23,Capital grants - Local Government
Department for Education,Core,20/01/2022,Grants Expenditure,Capital Directorate,ENFIELD LONDON BOROUGH COUNCIL,CL042863,1097321.37,Capital grants - Local Government
Department for Education,Core,20/01/2022,Grants Expenditure,Capital Directorate,ESSEX COUNTY COUNCIL,CL042962,852281.68,Capital grants - Local Government
Department for Education,Core,20/01/2022,Grants Expenditure,Capital Directorate,GATESHEAD COUNCIL,CL042907,209391.12,Capital grants - Local Government
Department for Education,Core,20/01/2022,Grants Expenditure,Capital Directorate,Gloucestershire County Council,CL042979,511666.82,Capital grants - Local Government
Department for Education,Core,20/01/2022,Grants Expenditure,Capital Directorate,GREENWICH LONDON BOROUGH COUNCIL,CL042845,336724.36,Capital grants - Local Government
Department for Education,Core,20/01/2022,Grants Expenditure,Capital Directorate,HACKNEY LONDON BOROUGH COUNCIL,CL042846,395905.22,Capital grants - Local Government
Department for Education,Core,20/01/2022,Grants Expenditure,Capital Directorate,HALTON BOROUGH COUNCIL,CL042957,100427.39,Capital grants - Local Government
Department for Education,Core,20/01/2022,Grants Expenditure,Capital Directorate,HAMMERSMITH & FULHAM LONDON BOROUGH COUNCIL,CL042847,167516.78,Capital grants - Local Government
Department for Education,Core,20/01/2022,Grants Expenditure,Capital Directorate,HAMPSHIRE COUNTY COUNCIL,CL042939,2598948.76,Capital grants - Local Government
Department for Education,Core,20/01/2022,Grants Expenditure,Capital Directorate,HARINGEY LONDON BOROUGH COUNCIL,CL042864,514861.30,Capital grants - Local Government
Department for Education,Core,20/01/2022,Grants Expenditure,Capital Directorate,HARROW LONDON BOROUGH COUNCIL,CL042865,311160.41,Capital grants - Local Government
Department for Education,Core,20/01/2022,Grants Expenditure,Capital Directorate,HARTLEPOOL BOROUGH COUNCIL,CL042916,95514.95,Capital grants - Local Government
Department for Education,Core,20/01/2022,Grants Expenditure,Capital Directorate,HAVERING LONDON BOROUGH COUNCIL,CL042866,293773.26,Capital grants - Local Government
Department for Education,Core,20/01/2022,Grants Expenditure,Capital Directorate,HEREFORDSHIRE COUNCIL,CL042964,139975.07,Capital grants - Local Government
Department for Education,Core,20/01/2022,Grants Expenditure,Capital Directorate,HERTFORDSHIRE COUNTY COUNCIL,CL042980,1793430.30,Capital grants - Local Government
Department for Education,Core,20/01/2022,Grants Expenditure,Capital Directorate,HOUNSLOW LONDON BOROUGH COUNCIL,CL042868,486099.41,Capital grants - Local Government
Department for Education,Core,20/01/2022,Grants Expenditure,Capital Directorate,ISLE OF WIGHT COUNCIL,CL042981,242003.74,Capital grants - Local Government
Department for Education,Core,20/01/2022,Grants Expenditure,Capital Directorate,ISLINGTON LONDON BOROUGH COUNCIL,CL042848,232272.64,Capital grants - Local Government
Department for Education,Core,20/01/2022,Grants Expenditure,Capital Directorate,KENT COUNTY COUNCIL,CL042966,1710524.96,Capital grants - Local Government
Department for Education,Core,20/01/2022,Grants Expenditure,Capital Directorate,KIRKLEES METRO COUNCIL,CL042904,397280.98,Capital grants - Local Government
Department for Education,Core,20/01/2022,Grants Expenditure,Capital Directorate,KNOWSLEY METRO BOROUGH COUNCIL,CL042883,88523.51,Capital grants - Local Government
Department for Education,Core,20/01/2022,Grants Expenditure,Capital Directorate,LAMBETH LONDON BOROUGH COUNCIL,CL042850,376720.12,Capital grants - Local Government
Department for Education,Core,20/01/2022,Grants Expenditure,Capital Directorate,LANCASHIRE COUNTY COUNCIL,CL042968,1561466.42,Capital grants - Local Government
Department for Education,Core,20/01/2022,Grants Expenditure,Capital Directorate,LEEDS CITY COUNCIL,CL042905,769274.50,Capital grants - Local Government
Department for Education,Core,20/01/2022,Grants Expenditure,Capital Directorate,LEICESTER CITY COUNCIL,CL042943,756930.50,Capital grants - Local Government
Department for Education,Core,20/01/2022,Grants Expenditure,Capital Directorate,LEICESTERSHIRE COUNTY COUNCIL,CL042942,454526.23,Capital grants - Local Government
Department for Education,Core,20/01/2022,Grants Expenditure,Capital Directorate,LEWISHAM LONDON BOROUGH COUNCIL,CL042851,463618.19,Capital grants - Local Government
Department for Education,Core,20/01/2022,Grants Expenditure,Capital Directorate,LINCOLNSHIRE COUNTY COUNCIL,CL042982,549440.71,Capital grants - Local Government
Department for Education,Core,20/01/2022,Grants Expenditure,Capital Directorate,LIVERPOOL CITY COUNCIL,CL042884,405571.78,Capital grants - Local Government
Department for Education,Core,20/01/2022,Grants Expenditure,Capital Directorate,London Borough of Hillingdon,CL042867,387443.49,Capital grants - Local Government
Department for Education,Core,20/01/2022,Grants Expenditure,Capital Directorate,London Borough of Sutton,CL042874,112425.47,Capital grants - Local Government
Department for Education,Core,20/01/2022,Grants Expenditure,Capital Directorate,London Borough of Tower Hamlets,CL042853,529648.31,Capital grants - Local Government
Department for Education,Core,20/01/2022,Grants Expenditure,Capital Directorate,LUTON BOROUGH COUNCIL,CL042926,400530.54,Capital grants - Local Government
Department for Education,Core,20/01/2022,Grants Expenditure,Capital Directorate,MANCHESTER CITY COUNCIL,CL042890,442835.90,Capital grants - Local Government
Department for Education,Core,20/01/2022,Grants Expenditure,Capital Directorate,MEDWAY COUNCIL,CL042967,100210.05,Capital grants - Local Government
Department for Education,Core,20/01/2022,Grants Expenditure,Capital Directorate,MERTON BOROUGH COUNCIL,CL042870,275162.88,Capital grants - Local Government
Department for Education,Core,20/01/2022,Grants Expenditure,Capital Directorate,Middlesbrough Council,CL042917,72685.99,Capital grants - Local Government
Department for Education,Core,20/01/2022,Grants Expenditure,Capital Directorate,MILTON KEYNES COUNCIL,CL042930,331756.78,Capital grants - Local Government
Department for Education,Core,20/01/2022,Grants Expenditure,Capital Directorate,NEWCASTLE CITY COUNCIL,CL042908,243188.20,Capital grants - Local Government
Department for Education,Core,20/01/2022,Grants Expenditure,Capital Directorate,NEWHAM LONDON BOROUGH COUNCIL,CL042871,462393.63,Capital grants - Local Government
Department for Education,Core,20/01/2022,Grants Expenditure,Capital Directorate,NORFOLK COUNTY COUNCIL,CL042983,587598.80,Capital grants - Local Government
Department for Education,Core,20/01/2022,Grants Expenditure,Capital Directorate,North East Lincolnshire Council,CL042922,43312.53,Capital grants - Local Government
Department for Education,Core,20/01/2022,Grants Expenditure,Capital Directorate,NORTH LINCOLNSHIRE COUNCIL,CL042923,219142.04,Capital grants - Local Government
Department for Education,Core,20/01/2022,Grants Expenditure,Capital Directorate,North Northamptonshire Council,CL042991,215062.67,Capital grants - Local Government
Department for Education,Core,20/01/2022,Grants Expenditure,Capital Directorate,NORTH SOMERSET COUNCIL,CL042914,41171.43,Capital grants - Local Government
Department for Education,Core,20/01/2022,Grants Expenditure,Capital Directorate,NORTH TYNESIDE METRO BOROUGH COUNCIL,CL042909,432897.61,Capital grants - Local Government
Department for Education,Core,20/01/2022,Grants Expenditure,Capital Directorate,NORTH YORKSHIRE COUNTY COUNCIL,CL042924,1087047.64,Capital grants - Local Government
Department for Education,Core,20/01/2022,Grants Expenditure,Capital Directorate,NORTHUMBERLAND COUNTY COUNCIL,CL042984,866931.55,Capital grants - Local Government
Department for Education,Core,20/01/2022,Grants Expenditure,Capital Directorate,Nottingham City Council,CL042972,287122.57,Capital grants - Local Government
Department for Education,Core,20/01/2022,Grants Expenditure,Capital Directorate,NOTTINGHAMSHIRE COUNTY COUNCIL,CL042971,1052172.58,Capital grants - Local Government
Department for Education,Core,20/01/2022,Grants Expenditure,Capital Directorate,OLDHAM METRO BOROUGH COUNCIL,CL042891,214658.93,Capital grants - Local Government
Department for Education,Core,20/01/2022,Grants Expenditure,Capital Directorate,Oxfordshire County Council,CL042985,509908.41,Capital grants - Local Government
Department for Education,Core,20/01/2022,Grants Expenditure,Capital Directorate,PETERBOROUGH CITY COUNCIL,CL042956,112799.24,Capital grants - Local Government
Department for Education,Core,20/01/2022,Grants Expenditure,Capital Directorate,PLYMOUTH CITY COUNCIL,CL042960,74424.26,Capital grants - Local Government
Department for Education,Core,20/01/2022,Grants Expenditure,Capital Directorate,PORTSMOUTH CITY COUNCIL,CL042940,97026.53,Capital grants - Local Government
Department for Education,Core,20/01/2022,Grants Expenditure,Capital Directorate,Reading Borough Council,CL042952,243099.72,Capital grants - Local Government
Department for Education,Core,20/01/2022,Grants Expenditure,Capital Directorate,REDBRIDGE LONDON BOROUGH COUNCIL,CL042872,809820.22,Capital grants - Local Government
Department for Education,Core,20/01/2022,Grants Expenditure,Capital Directorate,REDCAR & CLEVELAND BOROUGH COUNCIL,CL042918,50697.81,Capital grants - Local Government
Department for Education,Core,20/01/2022,Grants Expenditure,Capital Directorate,RICHMOND UPON THAMES LONDON BOROUGH COUNCIL,CL042873,139857.89,Capital grants - Local Government
Department for Education,Core,20/01/2022,Grants Expenditure,Capital Directorate,ROCHDALE BOROUGH COUNCIL,CL042892,327882.49,Capital grants - Local Government
Department for Education,Core,20/01/2022,Grants Expenditure,Capital Directorate,ROTHERHAM BOROUGH COUNCIL,CL042900,132820.32,Capital grants - Local Government
Department for Education,Core,20/01/2022,Grants Expenditure,Capital Directorate,ROYAL BOROUGH OF KENSINGTON & CHELSEA COUNCIL,CL042849,79815.98,Capital grants - Local Government
Department for Education,Core,20/01/2022,Grants Expenditure,Capital Directorate,ROYAL BOROUGH OF KINGSTON UPON THAMES COUNCIL,CL042869,103035.58,Capital grants - Local Government
Department for Education,Core,20/01/2022,Grants Expenditure,Capital Directorate,ROYAL BOROUGH OF WINDSOR & MAIDENHEAD,CL042950,156061.96,Capital grants - Local Government
Department for Education,Core,20/01/2022,Grants Expenditure,Capital Directorate,Salford City Council,CL042893,215833.71,Capital grants - Local Government
Department for Education,Core,20/01/2022,Grants Expenditure,Capital Directorate,Sandwell Metro Borough Council,CL042879,594018.02,Capital grants - Local Government
Department for Education,Core,20/01/2022,Grants Expenditure,Capital Directorate,Sefton Metropolitan Borough Council,CL042886,244671.38,Capital grants - Local Government
Department for Education,Core,20/01/2022,Grants Expenditure,Capital Directorate,SHEFFIELD CITY COUNCIL,CL042901,400495.50,Capital grants - Local Government
Department for Education,Core,20/01/2022,Grants Expenditure,Capital Directorate,SHROPSHIRE COUNCIL,CL042973,236574.51,Capital grants - Local Government
Department for Education,Core,20/01/2022,Grants Expenditure,Capital Directorate,SLOUGH BOROUGH COUNCIL,CL042953,86212.69,Capital grants - Local Government
Department for Education,Core,20/01/2022,Grants Expenditure,Capital Directorate,SOLIHULL METRO BOROUGH COUNCIL,CL042880,232011.72,Capital grants - Local Government
Department for Education,Core,20/01/2022,Grants Expenditure,Capital Directorate,SOMERSET COUNTY COUNCIL,CL042986,369657.03,Capital grants - Local Government
Department for Education,Core,20/01/2022,Grants Expenditure,Capital Directorate,SOUTH GLOUCESTERSHIRE COUNCIL,CL042915,279475.83,Capital grants - Local Government
Department for Education,Core,20/01/2022,Grants Expenditure,Capital Directorate,SOUTH TYNESIDE COUNCIL,CL042910,184964.82,Capital grants - Local Government
Department for Education,Core,20/01/2022,Grants Expenditure,Capital Directorate,SOUTHAMPTON CITY COUNCIL,CL042941,478480.18,Capital grants - Local Government
Department for Education,Core,20/01/2022,Grants Expenditure,Capital Directorate,SOUTHEND ON SEA BOROUGH COUNCIL,CL042963,76074.64,Capital grants - Local Government
Department for Education,Core,20/01/2022,Grants Expenditure,Capital Directorate,SOUTHWARK LONDON BOROUGH COUNCIL,CL042852,349039.39,Capital grants - Local Government
Department for Education,Core,20/01/2022,Grants Expenditure,Capital Directorate,ST HELENS METRO BOROUGH COUNCIL,CL042885,199536.69,Capital grants - Local Government
Department for Education,Core,20/01/2022,Grants Expenditure,Capital Directorate,Staffordshire County Council,CL042945,1065138.03,Capital grants - Local Government
Department for Education,Core,20/01/2022,Grants Expenditure,Capital Directorate,STOCKPORT METRO BOROUGH COUNCIL,CL042894,497397.87,Capital grants - Local Government
Department for Education,Core,20/01/2022,Grants Expenditure,Capital Directorate,STOCKTON ON TEES BOROUGH COUNCIL,CL042919,147207.58,Capital grants - Local Government
Department for Education,Core,20/01/2022,Grants Expenditure,Capital Directorate,STOKE ON TRENT CITY COUNCIL,CL042946,77814.60,Capital grants - Local Government
Department for Education,Core,20/01/2022,Grants Expenditure,Capital Directorate,SUFFOLK COUNTY COUNCIL,CL042987,629405.07,Capital grants - Local Government
Department for Education,Core,20/01/2022,Grants Expenditure,Capital Directorate,SUNDERLAND CITY METRO BOROUGH COUNCIL,CL042911,181804.79,Capital grants - Local Government
Department for Education,Core,20/01/2022,Grants Expenditure,Capital Directorate,SURREY COUNTY COUNCIL,CL042988,977652.39,Capital grants - Local Government
Department for Education,Core,20/01/2022,Grants Expenditure,Capital Directorate,SWINDON BOROUGH COUNCIL,CL042948,103424.73,Capital grants - Local Government
Department for Education,Core,20/01/2022,Grants Expenditure,Capital Directorate,TAMESIDE METRO BOROUGH COUNCIL,CL042895,147557.01,Capital grants - Local Government
Department for Education,Core,20/01/2022,Grants Expenditure,Capital Directorate,Telford and Wrekin Council,CL042974,317285.77,Capital grants - Local Government
Department for Education,Core,20/01/2022,Grants Expenditure,Capital Directorate,TORBAY COUNCIL,CL042961,46431.95,Capital grants - Local Government
Department for Education,Core,20/01/2022,Grants Expenditure,Capital Directorate,Trafford Borough Council,CL042896,249442.62,Capital grants - Local Government
Department for Education,Core,20/01/2022,Grants Expenditure,Capital Directorate,Wakefield City Council,CL042906,302178.36,Capital grants - Local Government
Department for Education,Core,20/01/2022,Grants Expenditure,Capital Directorate,WALSALL METRO BOROUGH COUNCIL,CL042881,436686.13,Capital grants - Local Government
Department for Education,Core,20/01/2022,Grants Expenditure,Capital Directorate,WALTHAM FOREST LONDON BOROUGH COUNCIL,CL042875,340957.78,Capital grants - Local Government
Department for Education,Core,20/01/2022,Grants Expenditure,Capital Directorate,Wandsworth Borough Council,CL042854,228732.39,Capital grants - Local Government
Department for Education,Core,20/01/2022,Grants Expenditure,Capital Directorate,WARRINGTON BOROUGH COUNCIL,CL042958,97528.65,Capital grants - Local Government
Department for Education,Core,20/01/2022,Grants Expenditure,Capital Directorate,WARWICKSHIRE COUNTY COUNCIL,CL042989,596463.64,Capital grants - Local Government
Department for Education,Core,20/01/2022,Grants Expenditure,Capital Directorate,WEST BERKSHIRE COUNCIL,CL042951,295930.83,Capital grants - Local Government
Department for Education,Core,20/01/2022,Grants Expenditure,Capital Directorate,West Northamptonshire Council,CL042992,181060.69,Capital grants - Local Government
Department for Education,Core,20/01/2022,Grants Expenditure,Capital Directorate,West Sussex County Council,CL042990,994411.61,Capital grants - Local Government
Department for Education,Core,20/01/2022,Grants Expenditure,Capital Directorate,WESTMINSTER CITY COUNCIL,CL042855,47882.93,Capital grants - Local Government
Department for Education,Core,20/01/2022,Grants Expenditure,Capital Directorate,Wigan Metropolitan Borough Council,CL042897,296975.35,Capital grants - Local Government
Department for Education,Core,20/01/2022,Grants Expenditure,Capital Directorate,WILTSHIRE COUNTY COUNCIL,CL042947,322705.96,Capital grants - Local Government
Department for Education,Core,20/01/2022,Grants Expenditure,Capital Directorate,WIRRAL METRO BOROUGH COUNCIL,CL042887,413409.35,Capital grants - Local Government
Department for Education,Core,20/01/2022,Grants Expenditure,Capital Directorate,WOKINGHAM COUNCIL,CL042954,279348.35,Capital grants - Local Government
Department for Education,Core,20/01/2022,Grants Expenditure,Capital Directorate,WOLVERHAMPTON CITY COUNCIL,CL042882,347886.04,Capital grants - Local Government
Department for Education,Core,20/01/2022,Grants Expenditure,Capital Directorate,Worcestershire County Council,CL042965,448895.01,Capital grants - Local Government
Department for Education,Core,20/01/2022,Grants Expenditure,Capital Directorate,North Northamptonshire Council,CL043095,1296621.00,Capital grants - Local Government
Department for Education,Core,20/01/2022,Grants Expenditure,Capital Directorate,West Northamptonshire Council,CL043094,1522119.00,Capital grants - Local Government
Department for Education,Core,24/01/2022,Grants Expenditure,Capital Directorate,PSBP Midlands Limited,D-PINV042416,34704.00,Capital grants - Private Sector
Department for Education,Core,04/01/2022,Other Goods & Services,Capital Directorate,Greenwood Academy,PSFM001996,-29307.00,Service element of lease
Department for Education,Core,26/01/2022,Other Goods & Services,Capital Directorate,GT Neps Limited,D-PINV042452,-11146.32,Service element of lease
Department for Education,Core,26/01/2022,Other Goods & Services,Capital Directorate,GT Neps Limited,D-PINV042452,536.22,Service element of lease
Department for Education,Core,26/01/2022,Other Goods & Services,Capital Directorate,GT Neps Limited,D-PINV042452,1102550.81,Service element of lease
Department for Education,Core,26/01/2022,Other Goods & Services,Capital Directorate,HLR Schools Limited,D-PINV042454,-16172.54,Service element of lease
Department for Education,Core,26/01/2022,Other Goods & Services,Capital Directorate,HLR Schools Limited,D-PINV042454,-2946.23,Service element of lease
Department for Education,Core,26/01/2022,Other Goods & Services,Capital Directorate,HLR Schools Limited,D-PINV042454,2631.85,Service element of lease
Department for Education,Core,26/01/2022,Other Goods & Services,Capital Directorate,HLR Schools Limited,D-PINV042454,1214707.65,Service element of lease
Department for Education,Core,20/01/2022,Other Goods & Services,Capital Directorate,KIRKLEES METRO COUNCIL,PSFM002032,-30966.00,Service element of lease
Department for Education,Core,20/01/2022,Other Goods & Services,Capital Directorate,NORTH TYNESIDE METRO BOROUGH COUNCIL,PSFM002008,-28122.00,Service element of lease
Department for Education,Core,20/01/2022,Other Goods & Services,Capital Directorate,NORTHUMBERLAND COUNTY COUNCIL,PSFM002013,-73602.00,Service element of lease
Department for Education,Core,04/01/2022,Other Goods & Services,Capital Directorate,Plantsbrook School,PSFM001997,-38769.00,Service element of lease
Department for Education,Core,04/01/2022,Other Goods & Services,Capital Directorate,President Kennedy School Academy,PSFM001998,-36813.00,Service element of lease
Department for Education,Core,26/01/2022,Other Goods & Services,Capital Directorate,PSBP Midlands Limited,D-PINV042457,-61978.48,Service element of lease
Department for Education,Core,26/01/2022,Other Goods & Services,Capital Directorate,PSBP Midlands Limited,D-PINV042457,-14156.77,Service element of lease
Department for Education,Core,26/01/2022,Other Goods & Services,Capital Directorate,PSBP Midlands Limited,D-PINV042457,3066.89,Service element of lease
Department for Education,Core,26/01/2022,Other Goods & Services,Capital Directorate,PSBP Midlands Limited,D-PINV042457,1240394.17,Service element of lease
Department for Education,Core,26/01/2022,Other Goods & Services,Capital Directorate,PSBP NW PROJECTCO LIMITED,D-PINV042459,-33148.23,Service element of lease
Department for Education,Core,26/01/2022,Other Goods & Services,Capital Directorate,PSBP NW PROJECTCO LIMITED,D-PINV042459,-20758.46,Service element of lease
Department for Education,Core,26/01/2022,Other Goods & Services,Capital Directorate,PSBP NW PROJECTCO LIMITED,D-PINV042459,1014103.14,Service element of lease
Department for Education,Core,04/01/2022,Other Goods & Services,Capital Directorate,Sandwell Metro Borough Council,PSFM002000,-44517.00,Service element of lease
Department for Education,Core,20/01/2022,Other Goods & Services,Capital Directorate,Wigan Metropolitan Borough Council,PSFM002025,-39732.00,Service element of lease
Department for Education,Core,26/01/2022,Other Goods & Services,Capital Directorate,Yorkshire Learning Partnership (Project Co) Ltd,D-PINV042463,-13765.49,Service element of lease
Department for Education,Core,26/01/2022,Other Goods & Services,Capital Directorate,Yorkshire Learning Partnership (Project Co) Ltd,D-PINV042463,896.06,Service element of lease
Department for Education,Core,26/01/2022,Other Goods & Services,Capital Directorate,Yorkshire Learning Partnership (Project Co) Ltd,D-PINV042463,1087949.54,Service element of lease
Department for Education,Core,14/01/2022,Grants Expenditure,Capital Directorate,CARDINAL HEENAN SCHOOL SERVICES LTD (JAR,D-CINV002397,59223.60,Current grants - Local Government
Department for Education,Core,21/01/2022,Grants Expenditure,Capital Directorate,JFS - UNITARY CHARGE ACCOUNT,D-CINV002411,285011.33,Current grants - Local Government
Department for Education,Core,07/01/2022,Grants Expenditure,Capital Directorate,RCD HEXHAM & NEWCASTLE - ST JOSEPHS,D-CINV002371,67390.06,Current grants - Local Government
Department for Education,Core,28/01/2022,Grants Expenditure,Capital Directorate,REDCAR PFI,D-CINV002436,189355.07,Current grants - Local Government
Department for Education,Core,19/01/2022,Grants Expenditure,Capital Directorate,STMC BIRMINGHAM DIOCESE ACCOUNT,D-CINV002408,91425.21,Current grants - Local Government
Department for Education,Core,19/01/2022,Grants Expenditure,Capital Directorate,Akiva School,D-CINV002407,30780.00,Capital grants - Local Government
Department for Education,Core,26/01/2022,Grants Expenditure,Capital Directorate,JFS,D-CINV002425,210600.00,Capital grants - Local Government
Department for Education,Core,26/01/2022,Grants Expenditure,Capital Directorate,JFS,D-CINV002432,246884.62,Capital grants - Local Government
Department for Education,Core,26/01/2022,Grants Expenditure,Capital Directorate,The Judd School,D-CINV002431,112590.00,Capital grants - Local Government
Department for Education,Core,13/01/2022,IS/IT,Capital Directorate,Accruent UK Ltd ,D-PINV042385,40830.00,Systems Development
Department for Education,Core,26/01/2022,Other Goods & Services,Capital Directorate,Arcadis LLP,D-PINV042704,75765.25,Professional Services - Property Services
Department for Education,Core,26/01/2022,Other Goods & Services,Capital Directorate,Faithful & Gould,D-PINV042688,146262.00,Professional Services - Property Services
Department for Education,Core,11/01/2022,Other Goods & Services,Capital Directorate,RIDER LEVETT BUCKNALL UK LTD,D-PINV042331,153145.15,Professional Services - Property Services
Department for Education,Core,06/01/2022,Consultancy,Capital Directorate,RIDER LEVETT BUCKNALL UK LTD,D-PINV042176,150964.16,Consultancy
Department for Education,Core,06/01/2022,Grants Expenditure,Capital Directorate,Kier Construction Southern,D-PINV042273,174403.62,Capital grants - Academy Trust
Department for Education,Core,25/01/2022,Grants Expenditure,Capital Directorate,Tilbury Douglas Construction Limited,D-PINV042670,1442138.45,Capital grants - Academy Trust
Department for Education,Core,17/01/2022,Grants Expenditure,Capital Directorate,BAM Construction Ltd,D-PINV042467,169158.48,Capital grants - Academy Trust
Department for Education,Core,27/01/2022,Grants Expenditure,Capital Directorate,BAM Construction Ltd,D-PINV042719,158344.24,Capital grants - Academy Trust
Department for Education,Core,31/01/2022,Grants Expenditure,Capital Directorate,BAM Construction Ltd,D-PINV042736,828523.78,Capital grants - Academy Trust
Department for Education,Core,07/01/2022,Grants Expenditure,Capital Directorate,Bouygues UK,D-PINV041973,25566.66,Capital grants - Academy Trust
Department for Education,Core,10/01/2022,Grants Expenditure,Capital Directorate,Bouygues UK,D-PINV042322,60426.98,Capital grants - Academy Trust
Department for Education,Core,06/01/2022,Grants Expenditure,Capital Directorate,Bowmer & Kirkland Ltd,D-PINV042183,444152.94,Capital grants - Academy Trust
Department for Education,Core,10/01/2022,Grants Expenditure,Capital Directorate,Bowmer & Kirkland Ltd,D-PINV042321,1209291.38,Capital grants - Academy Trust
Department for Education,Core,24/01/2022,Grants Expenditure,Capital Directorate,Bowmer & Kirkland Ltd,D-PINV042488,1535107.75,Capital grants - Academy Trust
Department for Education,Core,20/01/2022,Grants Expenditure,Capital Directorate,Bowmer & Kirkland Ltd,D-PINV042524,106335.88,Capital grants - Academy Trust
Department for Education,Core,20/01/2022,Grants Expenditure,Capital Directorate,Crispin School Academy ,CAY093735,56113.00,Capital grants - Academy Trust
Department for Education,Core,20/01/2022,Grants Expenditure,Capital Directorate,Engie Regeneration Ltd,D-PINV042549,77142.89,Capital grants - Academy Trust
Department for Education,Core,18/01/2022,Grants Expenditure,Capital Directorate,G.F.Tomlinson Building Ltd,D-PINV042396,1435634.69,Capital grants - Academy Trust
Department for Education,Core,14/01/2022,Grants Expenditure,Capital Directorate,Galliford Try Building Ltd,D-PINV042388,47280.00,Capital grants - Academy Trust
Department for Education,Core,26/01/2022,Grants Expenditure,Capital Directorate,Galliford Try Building Ltd,D-PINV042509,655018.86,Capital grants - Academy Trust
Department for Education,Core,12/01/2022,Grants Expenditure,Capital Directorate,ISG Construction Ltd,D-PINV042362,214355.24,Capital grants - Academy Trust
Department for Education,Core,20/01/2022,Grants Expenditure,Capital Directorate,ISLE OF WIGHT COUNCIL,CL043091,718910.50,Capital grants - Local Government
Department for Education,Core,06/01/2022,Grants Expenditure,Capital Directorate,Kier Construction Southern,D-PINV042179,43640.78,Capital grants - Academy Trust
Department for Education,Core,10/01/2022,Grants Expenditure,Capital Directorate,McAvoy Group Ltd,D-PINV042320,504133.58,Capital grants - Academy Trust
Department for Education,Core,11/01/2022,Grants Expenditure,Capital Directorate,Midas Construction Limited,D-PINV042325,25910.83,Capital grants - Academy Trust
Department for Education,Core,17/01/2022,Grants Expenditure,Capital Directorate,Morgan Sindall Construction & Infrastructure Ltd,D-PINV042398,139680.00,Capital grants - Academy Trust
Department for Education,Core,18/01/2022,Grants Expenditure,Capital Directorate,Morgan Sindall Construction & Infrastructure Ltd,D-PINV042491,243139.20,Capital grants - Academy Trust
Department for Education,Core,20/01/2022,Grants Expenditure,Capital Directorate,Morgan Sindall Construction & Infrastructure Ltd,D-PINV042548,827673.95,Capital grants - Academy Trust
Department for Education,Core,27/01/2022,Grants Expenditure,Capital Directorate,Morgan Sindall Construction & Infrastructure Ltd,D-PINV042715,102514.03,Capital grants - Academy Trust
Department for Education,Core,10/01/2022,Grants Expenditure,Capital Directorate,Spatial Initiative Ltd,D-PINV042225,76274.96,Capital grants - Academy Trust
Department for Education,Core,21/01/2022,Grants Expenditure,Capital Directorate,Spatial Initiative Ltd,D-PCR000968,-54375.00,Capital grants - Academy Trust
Department for Education,Core,31/01/2022,Grants Expenditure,Capital Directorate,Spatial Initiative Ltd,D-PINV042747,89565.23,Capital grants - Academy Trust
Department for Education,Core,20/01/2022,Grants Expenditure,Capital Directorate,SURREY COUNTY COUNCIL,CL043092,329100.00,Capital grants - Local Government
Department for Education,Core,24/01/2022,Grants Expenditure,Capital Directorate,The Barnes Group Limited,D-PINV042529,108914.60,Capital grants - Academy Trust
Department for Education,Core,14/01/2022,Grants Expenditure,Capital Directorate,Tilbury Douglas Construction Limited,D-PINV042411,52115.56,Capital grants - Academy Trust
Department for Education,Core,25/01/2022,Grants Expenditure,Capital Directorate,Tilbury Douglas Construction Limited,D-PINV042666,86385.74,Capital grants - Academy Trust
Department for Education,Core,07/01/2022,Grants Expenditure,Capital Directorate,Wates Construction Ltd,D-PINV039753,530767.94,Capital grants - Academy Trust
Department for Education,Core,18/01/2022,Grants Expenditure,Capital Directorate,Wates Construction Ltd,D-PINV042404,1008296.70,Capital grants - Academy Trust
Department for Education,Core,14/01/2022,Grants Expenditure,Capital Directorate,Wates Construction Ltd,D-PINV041980,360637.21,Capital grants - Academy Trust
Department for Education,Core,20/01/2022,Grants Expenditure,Capital Directorate,WESTMINSTER RC DIOCESE TRUST SBF PROJECTS,CAY093734,144985.00,Capital grants - Academy Trust
Department for Education,Core,14/01/2022,Grants Expenditure,Capital Directorate,huddle - Ninian Solutions LD,D-PINV041873,31560.00,Capital grants - Academy Trust
Department for Education,Core,11/01/2022,Grants Expenditure,Capital Directorate,Arcadis LLP,D-PINV042333,43429.80,Capital grants - Academy Trust
Department for Education,Core,18/01/2022,Grants Expenditure,Capital Directorate,Arcadis LLP,D-PINV042332,28692.00,Capital grants - Academy Trust
Department for Education,Core,17/01/2022,Grants Expenditure,Capital Directorate,BAM Construction Ltd,D-PINV042284,240000.00,Capital grants - Academy Trust
Department for Education,Core,20/01/2022,Grants Expenditure,Capital Directorate,BAM Construction Ltd,D-PINV042557,259144.32,Capital grants - Academy Trust
Department for Education,Core,24/01/2022,Grants Expenditure,Capital Directorate,Bowmer & Kirkland Ltd,D-PINV042663,658098.29,Capital grants - Academy Trust
Department for Education,Core,20/01/2022,Grants Expenditure,Capital Directorate,ESSEX COUNTY COUNCIL,CL043087,417738.09,Capital grants - Local Government
Department for Education,Core,19/01/2022,Grants Expenditure,Capital Directorate,Faithful & Gould,D-PINV042366,35969.21,Capital grants - Academy Trust
Department for Education,Core,18/01/2022,Grants Expenditure,Capital Directorate,Faithful & Gould,D-PINV041872,70440.00,Capital grants - Academy Trust
Department for Education,Core,18/01/2022,Grants Expenditure,Capital Directorate,Faithful & Gould,D-PINV042055,52236.00,Capital grants - Academy Trust
Department for Education,Core,18/01/2022,Grants Expenditure,Capital Directorate,Faithful & Gould,D-PINV042282,26820.00,Capital grants - Academy Trust
Department for Education,Core,18/01/2022,Grants Expenditure,Capital Directorate,Faithful & Gould,D-PINV042279,33384.00,Capital grants - Academy Trust
Department for Education,Core,25/01/2022,Grants Expenditure,Capital Directorate,Faithful & Gould,D-PINV042280,25584.00,Capital grants - Academy Trust
Department for Education,Core,14/01/2022,Grants Expenditure,Capital Directorate,Kier Western & Wales,D-PINV042412,150000.00,Capital grants - Academy Trust
Department for Education,Core,14/01/2022,Grants Expenditure,Capital Directorate,Mace Ltd,D-PINV042419,37201.20,Capital grants - Academy Trust
Department for Education,Core,18/01/2022,Grants Expenditure,Capital Directorate,Mace Ltd,D-PINV042447,27669.19,Capital grants - Academy Trust
Department for Education,Core,11/01/2022,Grants Expenditure,Capital Directorate,Mott MacDonald Ltd,D-PINV042336,25223.08,Capital grants - Academy Trust
Department for Education,Core,18/01/2022,Grants Expenditure,Capital Directorate,Mott MacDonald Ltd,D-PINV042453,64281.90,Capital grants - Academy Trust
Department for Education,Core,21/01/2022,Grants Expenditure,Capital Directorate,Net Zero Buildings Limited,D-PINV042522,149466.49,Capital grants - Academy Trust
Department for Education,Core,28/01/2022,Grants Expenditure,Capital Directorate,Net Zero Buildings Limited,D-PINV042728,129099.41,Capital grants - Academy Trust
Department for Education,Core,26/01/2022,Grants Expenditure,Capital Directorate,REDS10 UK Limited,D-PINV042692,30754.36,Capital grants - Academy Trust
Department for Education,Core,06/01/2022,Grants Expenditure,Capital Directorate,Turner & Townsend,D-PINV042186,47653.56,Capital grants - Academy Trust
Department for Education,Core,18/01/2022,Grants Expenditure,Capital Directorate,Turner & Townsend,D-PINV039312,42482.40,Capital grants - Academy Trust
Department for Education,Core,18/01/2022,Grants Expenditure,Capital Directorate,Turner & Townsend,D-PINV040808,55980.56,Capital grants - Academy Trust
Department for Education,Core,25/01/2022,Grants Expenditure,Capital Directorate,Turner & Townsend,D-PINV040642,57813.60,Capital grants - Academy Trust
Department for Education,Core,18/01/2022,Grants Expenditure,Capital Directorate,Wates Construction Ltd,D-PINV042471,611213.16,Capital grants - Academy Trust
Department for Education,Core,20/01/2022,Grants Expenditure,Capital Directorate,Wates Construction Ltd,D-PINV042558,576412.80,Capital grants - Academy Trust
Department for Education,Core,28/01/2022,Grants Expenditure,Capital Directorate,Willmott Dixon Construction Limited,D-PINV042733,223670.10,Capital grants - Academy Trust
Department for Education,Core,20/01/2022,Grants Expenditure,Capital Directorate,BEXLEY LONDON BOROUGH COUNCIL,CL043090,445628.67,Capital grants - Local Government
Department for Education,Core,20/01/2022,Grants Expenditure,Capital Directorate,BRISTOL CITY COUNCIL,CL043089,75663.99,Capital grants - Local Government
Department for Education,Core,20/01/2022,Grants Expenditure,Capital Directorate,KENT COUNTY COUNCIL,CL042837,369353.70,Capital grants - Local Government
Department for Education,Core,20/01/2022,Grants Expenditure,Capital Directorate,OLDHAM METRO BOROUGH COUNCIL,CL043093,299690.00,Capital grants - Local Government
Department for Education,Core,20/01/2022,Grants Expenditure,Capital Directorate,PETERBOROUGH CITY COUNCIL,CL042839,564879.75,Capital grants - Local Government
Department for Education,Core,20/01/2022,Grants Expenditure,Capital Directorate,PETERBOROUGH CITY COUNCIL,CL042840,1318052.74,Capital grants - Local Government
Department for Education,Core,20/01/2022,Grants Expenditure,Capital Directorate,SUFFOLK COUNTY COUNCIL,CL043088,42198.04,Capital grants - Local Government
Department for Education,Core,20/01/2022,Grants Expenditure,Capital Directorate,WESTMINSTER CITY COUNCIL,CL042836,183535.00,Capital grants - Local Government
Department for Education,Core,13/01/2022,Grants Expenditure,Capital Directorate,Aecom Ltd,D-PINV042258,77756.89,Capital grants - Academy Trust
Department for Education,Core,13/01/2022,Grants Expenditure,Capital Directorate,Aecom Ltd,D-PINV042259,30111.55,Capital grants - Academy Trust
Department for Education,Core,13/01/2022,Grants Expenditure,Capital Directorate,Aecom Ltd,D-PINV042386,43393.87,Capital grants - Academy Trust
Department for Education,Core,13/01/2022,Grants Expenditure,Capital Directorate,ARCADIS CONSULTING (UK) LIMITED,D-PINV042263,64120.60,Capital grants - Academy Trust
Department for Education,Core,07/01/2022,Grants Expenditure,Capital Directorate,Arcadis LLP,D-PINV042079,172693.78,Capital grants - Academy Trust
Department for Education,Core,27/01/2022,Grants Expenditure,Capital Directorate,Arcadis LLP,D-PINV042705,126263.38,Capital grants - Academy Trust
Department for Education,Core,21/01/2022,Grants Expenditure,Capital Directorate,Ark Blake Academy,D-CINV002406,36101.33,Capital grants - Academy Trust
Department for Education,Core,21/01/2022,IS/IT,Capital Directorate,Avanti Schools Trust,D-CINV002414,8201.90,ICT  - Equipment /Hardware
Department for Education,Core,21/01/2022,Grants Expenditure,Capital Directorate,Avanti Schools Trust,D-CINV002414,41009.52,Capital grants - Academy Trust
Department for Education,Core,11/01/2022,Grants Expenditure,Capital Directorate,BAM Construction Ltd,D-PINV042347,480615.41,Capital grants - Academy Trust
Department for Education,Core,13/01/2022,Grants Expenditure,Capital Directorate,BAM Construction Ltd,D-PINV042383,275655.80,Capital grants - Academy Trust
Department for Education,Core,17/01/2022,Grants Expenditure,Capital Directorate,BAM Construction Ltd,D-PINV042430,75713.66,Capital grants - Academy Trust
Department for Education,Core,17/01/2022,Grants Expenditure,Capital Directorate,BAM Construction Ltd,D-PINV042478,99332.27,Capital grants - Academy Trust
Department for Education,Core,18/01/2022,Grants Expenditure,Capital Directorate,BAM Construction Ltd,D-PINV042477,1188699.95,Capital grants - Academy Trust
Department for Education,Core,26/01/2022,Grants Expenditure,Capital Directorate,BAM Construction Ltd,D-PINV042703,1878372.96,Capital grants - Academy Trust
Department for Education,Core,14/01/2022,Grants Expenditure,Capital Directorate,Big Education Trust,D-CINV002364,68899.49,Capital grants - Academy Trust
Department for Education,Core,28/01/2022,Grants Expenditure,Capital Directorate,Big Education Trust,D-CINV002365,33050.37,Capital grants - Academy Trust
Department for Education,Core,10/01/2022,Grants Expenditure,Capital Directorate,Bowmer & Kirkland Ltd,D-PINV042274,1773686.59,Capital grants - Academy Trust
Department for Education,Core,14/01/2022,Grants Expenditure,Capital Directorate,Bowmer & Kirkland Ltd,D-PINV042384,37035.48,Capital grants - Academy Trust
Department for Education,Core,18/01/2022,Grants Expenditure,Capital Directorate,Bowmer & Kirkland Ltd,D-PINV042469,2137514.96,Capital grants - Academy Trust
Department for Education,Core,20/01/2022,Grants Expenditure,Capital Directorate,Bowmer & Kirkland Ltd,D-PINV042545,225526.02,Capital grants - Academy Trust
Department for Education,Core,20/01/2022,Grants Expenditure,Capital Directorate,Bowmer & Kirkland Ltd,D-PINV042554,566704.70,Capital grants - Academy Trust
Department for Education,Core,24/01/2022,Grants Expenditure,Capital Directorate,Bowmer & Kirkland Ltd,D-PINV042651,448248.00,Capital grants - Academy Trust
Department for Education,Core,25/01/2022,Grants Expenditure,Capital Directorate,Bowmer & Kirkland Ltd,D-PINV042667,1182704.92,Capital grants - Academy Trust
Department for Education,Core,26/01/2022,Grants Expenditure,Capital Directorate,Bowmer & Kirkland Ltd,D-PINV042669,334994.56,Capital grants - Academy Trust
Department for Education,Core,31/01/2022,Grants Expenditure,Capital Directorate,Bowmer & Kirkland Ltd,D-PINV042682,418762.99,Capital grants - Academy Trust
Department for Education,Core,07/01/2022,Grants Expenditure,Capital Directorate,Brookhouse Contracting Ltd,D-PINV042122,45555.44,Capital grants - Academy Trust
Department for Education,Core,06/01/2022,Grants Expenditure,Capital Directorate,Caledonian Modular Limited,D-PINV042126,46260.68,Capital grants - Academy Trust
Department for Education,Core,17/01/2022,Grants Expenditure,Capital Directorate,CoStar UK Ltd,D-PINV042433,29585.38,Capital grants - Academy Trust
Department for Education,Core,17/01/2022,Grants Expenditure,Capital Directorate,Countryside Properties (UK) Ltd,D-PINV042432,1285055.12,Capital grants - Academy Trust
Department for Education,Core,07/01/2022,Grants Expenditure,Capital Directorate,Currie & Brown Group Ltd,D-PINV042223,69672.00,Capital grants - Academy Trust
Department for Education,Core,21/01/2022,IS/IT,Capital Directorate,Deer Park School,D-CINV002409,17910.80,ICT  - Equipment /Hardware
Department for Education,Core,21/01/2022,Grants Expenditure,Capital Directorate,Deer Park School,D-CINV002409,89554.01,Capital grants - Academy Trust
Department for Education,Core,31/01/2022,Grants Expenditure,Capital Directorate,Eco Modular Buildings Limited,D-PINV042763,771337.72,Capital grants - Academy Trust
Department for Education,Core,28/01/2022,Grants Expenditure,Capital Directorate,Elliott Group Ltd,D-PINV042746,57204.66,Capital grants - Academy Trust
Department for Education,Core,17/01/2022,Grants Expenditure,Capital Directorate,Eric Wright Construction Ltd,D-PINV042431,1082298.84,Capital grants - Academy Trust
Department for Education,Core,07/01/2022,Grants Expenditure,Capital Directorate,Faithful & Gould,D-PINV042217,79600.22,Capital grants - Academy Trust
Department for Education,Core,27/01/2022,Grants Expenditure,Capital Directorate,Faithful & Gould,D-PINV042717,57168.41,Capital grants - Academy Trust
Department for Education,Core,11/01/2022,Grants Expenditure,Capital Directorate,Galliford Try Building Ltd,D-PINV042326,254161.91,Capital grants - Academy Trust
Department for Education,Core,20/01/2022,Grants Expenditure,Capital Directorate,Galliford Try Building Ltd,D-PINV042543,125576.96,Capital grants - Academy Trust
Department for Education,Core,21/01/2022,Grants Expenditure,Capital Directorate,Galliford Try Building Ltd,D-PINV042569,1187659.46,Capital grants - Academy Trust
Department for Education,Core,25/01/2022,Grants Expenditure,Capital Directorate,Galliford Try Building Ltd,D-PINV042656,821490.77,Capital grants - Academy Trust
Department for Education,Core,07/01/2022,Grants Expenditure,Capital Directorate,Gleeds Management Services Ltd,D-PINV042252,28179.90,Capital grants - Academy Trust
Department for Education,Core,13/01/2022,Grants Expenditure,Capital Directorate,Gleeds Management Services Ltd,D-PINV042329,41348.16,Capital grants - Academy Trust
Department for Education,Core,13/01/2022,Grants Expenditure,Capital Directorate,Gleeds Management Services Ltd,D-PINV042348,28179.90,Capital grants - Academy Trust
Department for Education,Core,13/01/2022,Grants Expenditure,Capital Directorate,Gleeds Management Services Ltd,D-PINV042377,40339.81,Capital grants - Academy Trust
Department for Education,Core,13/01/2022,Grants Expenditure,Capital Directorate,Gleeds Management Services Ltd,D-PINV042327,32079.60,Capital grants - Academy Trust
Department for Education,Core,26/01/2022,Grants Expenditure,Capital Directorate,Gleeds Management Services Ltd,D-PINV042482,84539.70,Capital grants - Academy Trust
Department for Education,Core,28/01/2022,IS/IT,Capital Directorate,Hackney New Primary School,D-CINV002336,20661.84,ICT  - Equipment /Hardware
Department for Education,Core,28/01/2022,Grants Expenditure,Capital Directorate,Hackney New Primary School,D-CINV002336,103311.23,Capital grants - Academy Trust
Department for Education,Core,24/01/2022,Grants Expenditure,Capital Directorate,ISG Construction Ltd,D-PINV042644,51081.92,Capital grants - Academy Trust
Department for Education,Core,25/01/2022,Grants Expenditure,Capital Directorate,ISG Construction Ltd,D-PINV042672,299432.42,Capital grants - Academy Trust
Department for Education,Core,07/01/2022,Grants Expenditure,Capital Directorate,John D Wood,D-PINV042307,90323.00,Capital grants - Academy Trust
Department for Education,Core,17/01/2022,Grants Expenditure,Capital Directorate,Khosla Investments Limited,D-PINV042059,41250.00,Capital grants - Academy Trust
Department for Education,Core,28/01/2022,Grants Expenditure,Capital Directorate,Kier Construction Central,D-PINV042750,513906.00,Capital grants - Academy Trust
Department for Education,Core,06/01/2022,Grants Expenditure,Capital Directorate,Kier Construction Southern,D-PINV041975,908732.16,Capital grants - Academy Trust
Department for Education,Core,21/01/2022,Grants Expenditure,Capital Directorate,Kier Construction Southern,D-PINV042536,331636.66,Capital grants - Academy Trust
Department for Education,Core,21/01/2022,Grants Expenditure,Capital Directorate,Kier Construction Southern,D-PINV042553,75879.01,Capital grants - Academy Trust
Department for Education,Core,14/01/2022,Grants Expenditure,Capital Directorate,Laing O'Rourke Construction   Ltd,D-PINV042406,227732.80,Capital grants - Academy Trust
Department for Education,Core,14/01/2022,Grants Expenditure,Capital Directorate,Laing O'Rourke Construction   Ltd,D-PINV042405,186326.83,Capital grants - Academy Trust
Department for Education,Core,19/01/2022,Construction,Capital Directorate,LANCASTER UNIVERSITY SCHOOL OF MATHEMATICS,D-CINV002377,5103.13,Construction
Department for Education,Core,19/01/2022,Grants Expenditure,Capital Directorate,LANCASTER UNIVERSITY SCHOOL OF MATHEMATICS,D-CINV002377,25515.64,Capital grants - Academy Trust
Department for Education,Core,19/01/2022,Construction,Capital Directorate,LANCASTER UNIVERSITY SCHOOL OF MATHEMATICS,D-CINV002403,37939.66,Construction
Department for Education,Core,19/01/2022,Grants Expenditure,Capital Directorate,LANCASTER UNIVERSITY SCHOOL OF MATHEMATICS,D-CINV002403,189698.29,Capital grants - Academy Trust
Department for Education,Core,14/01/2022,IS/IT,Capital Directorate,Leigh Academies Trust,D-CINV002390,4389.73,ICT  - Equipment /Hardware
Department for Education,Core,14/01/2022,Grants Expenditure,Capital Directorate,Leigh Academies Trust,D-CINV002390,21948.65,Capital grants - Academy Trust
Department for Education,Core,24/01/2022,Grants Expenditure,Capital Directorate,Mace Ltd,D-PINV042461,28741.60,Capital grants - Academy Trust
Department for Education,Core,24/01/2022,Grants Expenditure,Capital Directorate,Mace Ltd,D-PINV042441,62943.30,Capital grants - Academy Trust
Department for Education,Core,27/01/2022,Grants Expenditure,Capital Directorate,Mace Ltd,D-PINV042693,203892.60,Capital grants - Academy Trust
Department for Education,Core,26/01/2022,Grants Expenditure,Capital Directorate,Mace Ltd,D-PINV042676,53208.00,Capital grants - Academy Trust
Department for Education,Core,28/01/2022,Grants Expenditure,Capital Directorate,Mace Ltd,D-PINV042741,131756.40,Capital grants - Academy Trust
Department for Education,Core,18/01/2022,Grants Expenditure,Capital Directorate,McAvoy Group Ltd,D-PINV042475,1761721.22,Capital grants - Academy Trust
Department for Education,Core,17/01/2022,Grants Expenditure,Capital Directorate,Midas Construction Limited,D-PINV042409,86611.63,Capital grants - Academy Trust
Department for Education,Core,24/01/2022,Grants Expenditure,Capital Directorate,Midas Construction Limited,D-PINV042655,117693.01,Capital grants - Academy Trust
Department for Education,Core,11/01/2022,Grants Expenditure,Capital Directorate,Morgan Sindall Construction & Infrastructure Ltd,D-PINV042174,1269750.85,Capital grants - Academy Trust
Department for Education,Core,21/01/2022,Grants Expenditure,Capital Directorate,Morgan Sindall Construction & Infrastructure Ltd,D-PINV042539,1440894.74,Capital grants - Academy Trust
Department for Education,Core,31/01/2022,Grants Expenditure,Capital Directorate,Morgan Sindall Construction & Infrastructure Ltd,D-PINV042652,382003.70,Capital grants - Academy Trust
Department for Education,Core,27/01/2022,Grants Expenditure,Capital Directorate,Morgan Sindall Construction & Infrastructure Ltd,D-PINV042731,368370.36,Capital grants - Academy Trust
Department for Education,Core,18/01/2022,Grants Expenditure,Capital Directorate,Mott MacDonald Ltd,D-PINV042425,31580.40,Capital grants - Academy Trust
Department for Education,Core,21/01/2022,Grants Expenditure,Capital Directorate,Mott MacDonald Ltd,D-PINV041493,38416.80,Capital grants - Academy Trust
Department for Education,Core,27/01/2022,Grants Expenditure,Capital Directorate,Mott MacDonald Ltd,D-PINV042708,25135.20,Capital grants - Academy Trust
Department for Education,Core,24/01/2022,Grants Expenditure,Capital Directorate,Net Zero Buildings Limited,D-PINV042625,821226.82,Capital grants - Academy Trust
Department for Education,Core,31/01/2022,Grants Expenditure,Capital Directorate,Portakabin Ltd,D-PINV042759,184192.80,Capital grants - Academy Trust
Department for Education,Core,21/01/2022,Grants Expenditure,Capital Directorate,R&R Contracts Renovation and Refurbishment,D-PINV042626,321113.64,Capital grants - Academy Trust
Department for Education,Core,20/01/2022,Grants Expenditure,Capital Directorate,REDS10 UK Limited,D-PINV042528,398585.80,Capital grants - Academy Trust
Department for Education,Core,13/01/2022,Grants Expenditure,Capital Directorate,Ridge Partnership,D-PINV042399,39120.00,Capital grants - Academy Trust
Department for Education,Core,19/01/2022,IS/IT,Capital Directorate,Rugby Free Secondary School,D-CINV002372,5087.90,ICT  - Equipment /Hardware
Department for Education,Core,19/01/2022,Grants Expenditure,Capital Directorate,Rugby Free Secondary School,D-CINV002372,25439.49,Capital grants - Academy Trust
Department for Education,Core,28/01/2022,IS/IT,Capital Directorate,Saracens High School ,D-CINV002286,33942.91,ICT  - Equipment /Hardware
Department for Education,Core,28/01/2022,Grants Expenditure,Capital Directorate,Saracens High School ,D-CINV002286,169714.54,Capital grants - Academy Trust
Department for Education,Core,26/01/2022,Grants Expenditure,Capital Directorate,Sir Isaac Newton Free School  Norwich,D-CINV002310,71281.92,Capital grants - Academy Trust
Department for Education,Core,18/01/2022,Grants Expenditure,Capital Directorate,Soilfix Limited,D-PINV041290,30078.90,Capital grants - Academy Trust
Department for Education,Core,28/01/2022,Grants Expenditure,Capital Directorate,Soundwell Academy,D-CINV002131,72882.37,Capital grants - Academy Trust
Department for Education,Core,28/01/2022,Grants Expenditure,Capital Directorate,Soundwell Academy,D-CINV002132,58305.90,Capital grants - Academy Trust
Department for Education,Core,20/01/2022,Grants Expenditure,Capital Directorate,Southwark GP2 Limited,D-PINV042527,90279.80,Capital grants - Academy Trust
Department for Education,Core,21/01/2022,Grants Expenditure,Capital Directorate,Spatial Initiative Ltd,D-PINV042579,1652588.14,Capital grants - Academy Trust
Department for Education,Core,26/01/2022,Grants Expenditure,Capital Directorate,Spatial Initiative Ltd,D-PINV042537,66876.55,Capital grants - Academy Trust
Department for Education,Core,31/01/2022,Grants Expenditure,Capital Directorate,Spatial Initiative Ltd,D-PINV042766,180665.68,Capital grants - Academy Trust
Department for Education,Core,19/01/2022,Construction,Capital Directorate,Star Academies,D-CINV002375,20630.17,Construction
Department for Education,Core,19/01/2022,Grants Expenditure,Capital Directorate,Star Academies,D-CINV002375,103150.86,Capital grants - Academy Trust
Department for Education,Core,12/01/2022,IS/IT,Capital Directorate,Star Academies,D-CINV002370,5637.59,ICT  - Equipment /Hardware
Department for Education,Core,12/01/2022,Grants Expenditure,Capital Directorate,Star Academies,D-CINV002370,28187.97,Capital grants - Academy Trust
Department for Education,Core,26/01/2022,IS/IT,Capital Directorate,TARKA LEARNING PARTNERSHIP,D-CINV002429,4856.95,ICT  - Equipment /Hardware
Department for Education,Core,26/01/2022,Grants Expenditure,Capital Directorate,TARKA LEARNING PARTNERSHIP,D-CINV002429,24284.76,Capital grants - Academy Trust
Department for Education,Core,31/01/2022,Grants Expenditure,Capital Directorate,The Heritage Design & Development Team Ltd,D-PINV042664,25057.26,Capital grants - Academy Trust
Department for Education,Core,14/01/2022,Grants Expenditure,Capital Directorate,The McAvoy Group Limited,D-PINV042403,822866.66,Capital grants - Academy Trust
Department for Education,Core,19/01/2022,IS/IT,Capital Directorate,The Mead Educational Trust,D-CINV002345,13300.95,ICT  - Equipment /Hardware
Department for Education,Core,19/01/2022,Grants Expenditure,Capital Directorate,The Mead Educational Trust,D-CINV002345,66504.76,Capital grants - Academy Trust
Department for Education,Core,26/01/2022,IS/IT,Capital Directorate,The Mead Educational Trust,D-CINV002423,4581.65,ICT  - Equipment /Hardware
Department for Education,Core,26/01/2022,Grants Expenditure,Capital Directorate,The Mead Educational Trust,D-CINV002423,22908.25,Capital grants - Academy Trust
Department for Education,Core,12/01/2022,Fixture & Fittings,Capital Directorate,"The Royal School, Wolverhampton",D-CINV002378,4881.84,"Furniture, Fixtures & Fittings"
Department for Education,Core,12/01/2022,Grants Expenditure,Capital Directorate,"The Royal School, Wolverhampton",D-CINV002378,24409.20,Capital grants - Academy Trust
Department for Education,Core,14/01/2022,Grants Expenditure,Capital Directorate,Tilbury Douglas Construction Limited,D-PINV042410,362517.48,Capital grants - Academy Trust
Department for Education,Core,17/01/2022,Grants Expenditure,Capital Directorate,Tilbury Douglas Construction Limited,D-PINV042429,747421.44,Capital grants - Academy Trust
Department for Education,Core,18/01/2022,Grants Expenditure,Capital Directorate,Tilbury Douglas Construction Limited,D-PINV042490,547025.29,Capital grants - Academy Trust
Department for Education,Core,21/01/2022,Grants Expenditure,Capital Directorate,Tilbury Douglas Construction Limited,D-PINV042474,864708.64,Capital grants - Academy Trust
Department for Education,Core,31/01/2022,Grants Expenditure,Capital Directorate,Trowers & Hamlins LLP,D-PINV042716,1070000.00,Capital grants - Academy Trust
Department for Education,Core,06/01/2022,Grants Expenditure,Capital Directorate,Turner & Townsend,D-PINV042197,40230.55,Capital grants - Academy Trust
Department for Education,Core,07/01/2022,Grants Expenditure,Capital Directorate,Turner & Townsend,D-PINV042219,104787.90,Capital grants - Academy Trust
Department for Education,Core,10/01/2022,Grants Expenditure,Capital Directorate,Turner & Townsend,D-PINV042243,47462.94,Capital grants - Academy Trust
Department for Education,Core,28/01/2022,Grants Expenditure,Capital Directorate,Turner & Townsend,D-PINV042726,79783.20,Capital grants - Academy Trust
Department for Education,Core,28/01/2022,Grants Expenditure,Capital Directorate,Two Rivers Primary School,D-CINV002383,32310.47,Capital grants - Academy Trust
Department for Education,Core,07/01/2022,Fixture & Fittings,Capital Directorate,United Learning Trust,D-CINV002218,12098.76,"Furniture, Fixtures & Fittings"
Department for Education,Core,07/01/2022,Grants Expenditure,Capital Directorate,United Learning Trust,D-CINV002218,60493.80,Capital grants - Academy Trust
Department for Education,Core,06/01/2022,Grants Expenditure,Capital Directorate,VINCI CONSTRUCTION UK LIMITED,D-PINV042220,751973.15,Capital grants - Academy Trust
Department for Education,Core,07/01/2022,Grants Expenditure,Capital Directorate,Wates Construction Ltd,D-PINV042177,502408.97,Capital grants - Academy Trust
Department for Education,Core,20/01/2022,Grants Expenditure,Capital Directorate,Wates Construction Ltd,D-PINV042561,416712.36,Capital grants - Academy Trust
Department for Education,Core,24/01/2022,Grants Expenditure,Capital Directorate,Wates Construction Ltd,D-PINV042654,534801.11,Capital grants - Academy Trust
Department for Education,Core,25/01/2022,Grants Expenditure,Capital Directorate,Wates Construction Ltd,D-PINV042653,1959620.40,Capital grants - Academy Trust
Department for Education,Core,26/01/2022,Construction,Capital Directorate,Wellspring Academy Trust,D-CINV002410,5048.24,Construction
Department for Education,Core,26/01/2022,Grants Expenditure,Capital Directorate,Wellspring Academy Trust,D-CINV002410,25241.20,Capital grants - Academy Trust
Department for Education,Core,28/01/2022,IS/IT,Capital Directorate,Wellspring Academy Trust,D-CINV002171,15932.41,ICT  - Equipment /Hardware
Department for Education,Core,28/01/2022,Grants Expenditure,Capital Directorate,Wellspring Academy Trust,D-CINV002171,79662.09,Capital grants - Academy Trust
Department for Education,Core,10/01/2022,Grants Expenditure,Capital Directorate,Willmott Dixon Construction Limited,D-PINV042323,184114.50,Capital grants - Academy Trust
Department for Education,Core,11/01/2022,Grants Expenditure,Capital Directorate,Willmott Dixon Construction Limited,D-PINV042330,364816.44,Capital grants - Academy Trust
Department for Education,Core,20/01/2022,Grants Expenditure,Capital Directorate,Womble Bond Dickinson (UK) LLP (Client Account) ,D-PINV042574,36703.20,Capital grants - Academy Trust
Department for Education,Core,13/01/2022,Grants Expenditure,Capital Directorate,WSP UK Ltd,D-PINV042359,47221.34,Capital grants - Academy Trust
Department for Education,Core,28/01/2022,Grants Expenditure,Capital Directorate,WSP UK Ltd,D-PINV042734,33945.10,Capital grants - Academy Trust
Department for Education,Core,27/01/2022,Grants Expenditure,Capital Directorate,E W Beard Ltd,D-PINV041931,46432.58,Current grants - Academy Trust
Department for Education,Core,14/01/2022,Grants Expenditure,Capital Directorate,Eric Wright Construction Ltd,D-PINV042407,69618.50,Current grants - Academy Trust
Department for Education,Core,25/01/2022,Grants Expenditure,Capital Directorate,IFORM,D-PINV042521,61489.76,Current grants - Academy Trust
Department for Education,Core,13/01/2022,Grants Expenditure,Capital Directorate,Portakabin Ltd,D-PINV042297,25277.08,Current grants - Academy Trust
Department for Education,Core,13/01/2022,Grants Expenditure,Capital Directorate,Portakabin Ltd,D-PINV042299,35848.69,Current grants - Academy Trust
Department for Education,Core,17/01/2022,Grants Expenditure,Capital Directorate,Portakabin Ltd,D-PINV041647,25277.08,Current grants - Academy Trust
Department for Education,Core,20/01/2022,Grants Expenditure,Capital Directorate,Portakabin Ltd,D-PINV042460,98032.54,Current grants - Academy Trust
Department for Education,Core,20/01/2022,Grants Expenditure,Capital Directorate,SIBCAS LTD,D-PINV042468,81198.62,Current grants - Academy Trust
Department for Education,Core,20/01/2022,Grants Expenditure,Capital Directorate,Walker Construction (UK) Ltd,D-PINV042476,38134.44,Current grants - Academy Trust
Department for Education,Core,04/01/2022,Grants Expenditure,Capital Directorate,Brook House Primary School,DU00066014,129146.11,Current grants - Academy Trust
Department for Education,Core,04/01/2022,Grants Expenditure,Capital Directorate,Canary Wharf College 3,DU00066023,37899.75,Current grants - Academy Trust
Department for Education,Core,04/01/2022,Grants Expenditure,Capital Directorate,Compass School Southwark,DU00066017,42332.62,Current grants - Academy Trust
Department for Education,Core,04/01/2022,Grants Expenditure,Capital Directorate,London Academy of Excellence,DU00066015,138845.00,Current grants - Academy Trust
Department for Education,Core,13/01/2022,Grants Expenditure,Capital Directorate,M M C Investments Limited,D-PINV041488,117500.00,Current grants - Academy Trust
Department for Education,Core,04/01/2022,Grants Expenditure,Capital Directorate,The Avenue School,DU00066021,56666.67,Current grants - Academy Trust
Department for Education,Core,04/01/2022,Grants Expenditure,Capital Directorate,Turing House School,DU00066043,114295.06,Current grants - Academy Trust
Department for Education,Core,04/01/2022,Grants Expenditure,Capital Directorate,Westside Academy Trust,DU00066016,68750.00,Current grants - Academy Trust
Department for Education,Core,20/01/2022,Grants Expenditure,Capital Directorate,Wren Academy Enfield,DU00066061,28031.00,Current grants - Academy Trust
Department for Education,Core,17/01/2022,Grants Expenditure,Capital Directorate,Womble Bond Dickinson (UK) LLP (Client Account) ,D-PINV042364,7650000.00,Capital grants - Academy Trust
Department for Education,Core,20/01/2022,Grants Expenditure,Capital Directorate,Acocks Green Primary School,CAY093813,81026.00,Capital grants - Academy Trust
Department for Education,Core,20/01/2022,Grants Expenditure,Capital Directorate,Acorn Academy,CAY093868,41809.00,Capital grants - Academy Trust
Department for Education,Core,20/01/2022,Grants Expenditure,Capital Directorate,Acresfield Academy,CAY094108,91344.00,Capital grants - Academy Trust
Department for Education,Core,20/01/2022,Grants Expenditure,Capital Directorate,Acton CE Primary Academy,CAY093995,64583.00,Capital grants - Academy Trust
Department for Education,Core,20/01/2022,Grants Expenditure,Capital Directorate,Alcester Grammar School,CAY093764,82004.00,Capital grants - Academy Trust
Department for Education,Core,20/01/2022,Grants Expenditure,Capital Directorate,ALDERBROOK SCHOOL,CAY093916,137609.00,Capital grants - Academy Trust
Department for Education,Core,20/01/2022,Grants Expenditure,Capital Directorate,All Saints' CE Primary School,CAY093862,27246.00,Capital grants - Academy Trust
Department for Education,Core,20/01/2022,Grants Expenditure,Capital Directorate,Alsager Highfields Community Primary School,CAY094171,54549.00,Capital grants - Academy Trust
Department for Education,Core,20/01/2022,Grants Expenditure,Capital Directorate,Aston Manor Academy,CAY094076,36052.00,Capital grants - Academy Trust
Department for Education,Core,20/01/2022,Grants Expenditure,Capital Directorate,ASTOR COLLEGE (A Specialist College for the Arts),CAY093804,127930.00,Capital grants - Academy Trust
Department for Education,Core,20/01/2022,Grants Expenditure,Capital Directorate,Atlas Community Primary School,CAY094098,61289.00,Capital grants - Academy Trust
Department for Education,Core,20/01/2022,Grants Expenditure,Capital Directorate,Aveley Primary School,CAY093863,37440.00,Capital grants - Academy Trust
Department for Education,Core,20/01/2022,Grants Expenditure,Capital Directorate,Ayresome Primary School,CAY094165,50729.00,Capital grants - Academy Trust
Department for Education,Core,20/01/2022,Grants Expenditure,Capital Directorate,Barnehurst Infant School,CAY093936,77193.00,Capital grants - Academy Trust
Department for Education,Core,20/01/2022,Grants Expenditure,Capital Directorate,BBG ACADEMY,CAY093877,58074.00,Capital grants - Academy Trust
Department for Education,Core,20/01/2022,Grants Expenditure,Capital Directorate,Beacon Academy,CAY094079,151191.00,Capital grants - Academy Trust
Department for Education,Core,20/01/2022,Grants Expenditure,Capital Directorate,Beacon Academy,CAY094127,129664.00,Capital grants - Academy Trust
Department for Education,Core,20/01/2022,Grants Expenditure,Capital Directorate,Beal Vale Primary School,CAY093964,56561.00,Capital grants - Academy Trust
Department for Education,Core,20/01/2022,Grants Expenditure,Capital Directorate,Beccles Free School,CAY093985,73746.00,Capital grants - Academy Trust
Department for Education,Core,20/01/2022,Grants Expenditure,Capital Directorate,Beech Hill Junior and Infant School,CAY093794,68673.00,Capital grants - Academy Trust
Department for Education,Core,20/01/2022,Grants Expenditure,Capital Directorate,Beecroft Academy,CAY094141,59860.00,Capital grants - Academy Trust
Department for Education,Core,20/01/2022,Grants Expenditure,Capital Directorate,Bellerive FCJ Catholic College,CAY093805,35114.00,Capital grants - Academy Trust
Department for Education,Core,20/01/2022,Grants Expenditure,Capital Directorate,Bexley Grammar School,CAY093756,193724.00,Capital grants - Academy Trust
Department for Education,Core,20/01/2022,Grants Expenditure,Capital Directorate,Biggleswade Academy,CAY093922,66010.00,Capital grants - Academy Trust
Department for Education,Core,20/01/2022,Grants Expenditure,Capital Directorate,Bingley Grammar School,CAY094066,48363.00,Capital grants - Academy Trust
Department for Education,Core,20/01/2022,Grants Expenditure,Capital Directorate,Birchwood Community High School,CAY093815,102628.00,Capital grants - Academy Trust
Department for Education,Core,20/01/2022,Grants Expenditure,Capital Directorate,Bishop Milner Catholic College,CAY093817,93638.00,Capital grants - Academy Trust
Department for Education,Core,20/01/2022,Grants Expenditure,Capital Directorate,Blessed George Napier Catholic School and Sports C,CAY093940,55462.00,Capital grants - Academy Trust
Department for Education,Core,20/01/2022,Grants Expenditure,Capital Directorate,Bolton St Catherine�s Academy,CAY093851,67927.00,Capital grants - Academy Trust
Department for Education,Core,20/01/2022,Grants Expenditure,Capital Directorate,Bournemouth School for Girls,CAY093779,45065.00,Capital grants - Academy Trust
Department for Education,Core,20/01/2022,Grants Expenditure,Capital Directorate,Brackenwood Junior School,CAY093968,72343.00,Capital grants - Academy Trust
Department for Education,Core,20/01/2022,Grants Expenditure,Capital Directorate,Branston Community Academy,CAY093904,41296.00,Capital grants - Academy Trust
Department for Education,Core,20/01/2022,Grants Expenditure,Capital Directorate,Braybrook Primary Academy,CAY094105,98879.00,Capital grants - Academy Trust
Department for Education,Core,20/01/2022,Grants Expenditure,Capital Directorate,Brays School,CAY094000,82431.00,Capital grants - Academy Trust
Department for Education,Core,20/01/2022,Grants Expenditure,Capital Directorate,Brine Leas School,CAY093891,107941.00,Capital grants - Academy Trust
Department for Education,Core,20/01/2022,Grants Expenditure,Capital Directorate,Britannia Primary and Nursery,CAY094005,46734.00,Capital grants - Academy Trust
Department for Education,Core,20/01/2022,Grants Expenditure,Capital Directorate,Brooke School,CAY094162,79951.00,Capital grants - Academy Trust
Department for Education,Core,20/01/2022,Grants Expenditure,Capital Directorate,Burnt Ash Primary School,CAY093823,40632.00,Capital grants - Academy Trust
Department for Education,Core,20/01/2022,Grants Expenditure,Capital Directorate,Bursar Primary Academy,CAY093925,51996.00,Capital grants - Academy Trust
Department for Education,Core,20/01/2022,Grants Expenditure,Capital Directorate,Caistor Grammar School,CAY094114,53253.00,Capital grants - Academy Trust
Department for Education,Core,20/01/2022,Grants Expenditure,Capital Directorate,Caistor Yarborough Academy,CAY094118,75538.00,Capital grants - Academy Trust
Department for Education,Core,20/01/2022,Grants Expenditure,Capital Directorate,Caistor Yarborough Academy,CAY094119,88401.00,Capital grants - Academy Trust
Department for Education,Core,20/01/2022,Grants Expenditure,Capital Directorate,Calday Grange Grammar School,CAY093986,254354.00,Capital grants - Academy Trust
Department for Education,Core,20/01/2022,Grants Expenditure,Capital Directorate,Carlton Le Willows Academy,CAY093907,160898.00,Capital grants - Academy Trust
Department for Education,Core,20/01/2022,Grants Expenditure,Capital Directorate,Carshalton High School for Girls,CAY093774,34434.00,Capital grants - Academy Trust
Department for Education,Core,20/01/2022,Grants Expenditure,Capital Directorate,Carshalton High School for Girls,CAY093775,31263.00,Capital grants - Academy Trust
Department for Education,Core,20/01/2022,Grants Expenditure,Capital Directorate,Causton Junior School,CAY093963,60823.00,Capital grants - Academy Trust
Department for Education,Core,20/01/2022,Grants Expenditure,Capital Directorate,Chalfont St Peter CofE Academy,CAY093768,40740.00,Capital grants - Academy Trust
Department for Education,Core,20/01/2022,Grants Expenditure,Capital Directorate,Chalfont St Peter CofE Academy,CAY093769,49966.00,Capital grants - Academy Trust
Department for Education,Core,20/01/2022,Grants Expenditure,Capital Directorate,Chesham Grammar School,CAY093784,81203.00,Capital grants - Academy Trust
Department for Education,Core,20/01/2022,Grants Expenditure,Capital Directorate,Chesterton Primary School,CAY094163,92747.00,Capital grants - Academy Trust
Department for Education,Core,20/01/2022,Grants Expenditure,Capital Directorate,CHRIST THE KING SIXTH FORM COLLEGE,CAY093900,114422.00,Capital grants - Academy Trust
Department for Education,Core,20/01/2022,Grants Expenditure,Capital Directorate,CHRIST THE KING SIXTH FORM COLLEGE,CAY094109,100897.00,Capital grants - Academy Trust
Department for Education,Core,20/01/2022,Grants Expenditure,Capital Directorate,Christleton High School,CAY093908,125083.00,Capital grants - Academy Trust
Department for Education,Core,20/01/2022,Grants Expenditure,Capital Directorate,Church Drive Primary School,CAY093830,72636.00,Capital grants - Academy Trust
Department for Education,Core,20/01/2022,Grants Expenditure,Capital Directorate,Churchill Park School,CAY093958,139405.00,Capital grants - Academy Trust
Department for Education,Core,20/01/2022,Grants Expenditure,Capital Directorate,Churston Ferrers Grammar School Academy,CAY093905,82891.00,Capital grants - Academy Trust
Department for Education,Core,20/01/2022,Grants Expenditure,Capital Directorate,Cleeve School,CAY094073,201537.00,Capital grants - Academy Trust
Department for Education,Core,20/01/2022,Grants Expenditure,Capital Directorate,Cleobury Mortimer Primary School,CAY094150,81739.00,Capital grants - Academy Trust
Department for Education,Core,20/01/2022,Grants Expenditure,Capital Directorate,Collingwood College,CAY093776,69388.00,Capital grants - Academy Trust
Department for Education,Core,20/01/2022,Grants Expenditure,Capital Directorate,Colne Primet Academy,CAY093811,35906.00,Capital grants - Academy Trust
Department for Education,Core,20/01/2022,Grants Expenditure,Capital Directorate,Comberbach Primary School,CAY094007,71015.00,Capital grants - Academy Trust
Department for Education,Core,20/01/2022,Grants Expenditure,Capital Directorate,Coombe Girls' School,CAY093875,58941.00,Capital grants - Academy Trust
Department for Education,Core,20/01/2022,Grants Expenditure,Capital Directorate,Copleston High School,CAY093977,63265.00,Capital grants - Academy Trust
Department for Education,Core,20/01/2022,Grants Expenditure,Capital Directorate,Copthall School,CAY094134,36681.00,Capital grants - Academy Trust
Department for Education,Core,20/01/2022,Grants Expenditure,Capital Directorate,Cottesmore Academy,CAY094154,65029.00,Capital grants - Academy Trust
Department for Education,Core,20/01/2022,Grants Expenditure,Capital Directorate,COWPLAIN COMMUNITY SCHOOL,CAY094129,84890.00,Capital grants - Academy Trust
Department for Education,Core,20/01/2022,Grants Expenditure,Capital Directorate,Cuxton Community Infant School ,CAY093942,62026.00,Capital grants - Academy Trust
Department for Education,Core,20/01/2022,Grants Expenditure,Capital Directorate,Darrick Wood Infant School,CAY094121,31827.00,Capital grants - Academy Trust
Department for Education,Core,20/01/2022,Grants Expenditure,Capital Directorate,Darrick Wood School,CAY093903,194013.00,Capital grants - Academy Trust
Department for Education,Core,20/01/2022,Grants Expenditure,Capital Directorate,DAVENANT FOUNDATION SCHOOL,CAY093884,117624.00,Capital grants - Academy Trust
Department for Education,Core,20/01/2022,Grants Expenditure,Capital Directorate,Davidson Primary Academy,CAY093993,85272.00,Capital grants - Academy Trust
Department for Education,Core,20/01/2022,Grants Expenditure,Capital Directorate,De Montfort School,CAY093750,57436.00,Capital grants - Academy Trust
Department for Education,Core,20/01/2022,Grants Expenditure,Capital Directorate,Denholme Primary School,CAY093832,72217.00,Capital grants - Academy Trust
Department for Education,Core,20/01/2022,Grants Expenditure,Capital Directorate,Denmark Road High School,CAY093767,67826.00,Capital grants - Academy Trust
Department for Education,Core,20/01/2022,Grants Expenditure,Capital Directorate,Denton West End Primary School,CAY093923,103996.00,Capital grants - Academy Trust
Department for Education,Core,20/01/2022,Grants Expenditure,Capital Directorate,Desborough College ,CAY093810,132665.00,Capital grants - Academy Trust
Department for Education,Core,20/01/2022,Grants Expenditure,Capital Directorate,Desborough College ,CAY093973,468130.00,Capital grants - Academy Trust
Department for Education,Core,20/01/2022,Grants Expenditure,Capital Directorate,Disley Primary School,CAY093871,47953.00,Capital grants - Academy Trust
Department for Education,Core,20/01/2022,Grants Expenditure,Capital Directorate,Dormers Wells Infant School,CAY093960,40291.00,Capital grants - Academy Trust
Department for Education,Core,20/01/2022,Grants Expenditure,Capital Directorate,Dovedale Primary School,CAY093943,60064.00,Capital grants - Academy Trust
Department for Education,Core,20/01/2022,Grants Expenditure,Capital Directorate,Dr Challoner's High School,CAY094123,100181.00,Capital grants - Academy Trust
Department for Education,Core,20/01/2022,Grants Expenditure,Capital Directorate,East Herrington Primary Academy,CAY093806,158792.00,Capital grants - Academy Trust
Department for Education,Core,20/01/2022,Grants Expenditure,Capital Directorate,Edmonton County School,CAY093826,59437.00,Capital grants - Academy Trust
Department for Education,Core,20/01/2022,Grants Expenditure,Capital Directorate,Ellesmere Primary,CAY094097,120594.00,Capital grants - Academy Trust
Department for Education,Core,20/01/2022,Grants Expenditure,Capital Directorate,ELM HALL PRIMARY SCHOOL,CAY093861,55025.00,Capital grants - Academy Trust
Department for Education,Core,20/01/2022,Grants Expenditure,Capital Directorate,Elms Bank,CAY094166,61784.00,Capital grants - Academy Trust
Department for Education,Core,20/01/2022,Grants Expenditure,Capital Directorate,Emerson Park Academy,CAY093796,65707.00,Capital grants - Academy Trust
Department for Education,Core,20/01/2022,Grants Expenditure,Capital Directorate,Emerson Park Academy,CAY093919,206236.00,Capital grants - Academy Trust
Department for Education,Core,20/01/2022,Grants Expenditure,Capital Directorate,Erdington Academy,CAY093829,49698.00,Capital grants - Academy Trust
Department for Education,Core,20/01/2022,Grants Expenditure,Capital Directorate,Falmouth School,CAY093899,158363.00,Capital grants - Academy Trust
Department for Education,Core,20/01/2022,Grants Expenditure,Capital Directorate,Formby High School,CAY093982,63560.00,Capital grants - Academy Trust
Department for Education,Core,20/01/2022,Grants Expenditure,Capital Directorate,Fowey River Academy,CAY094145,63217.00,Capital grants - Academy Trust
Department for Education,Core,20/01/2022,Grants Expenditure,Capital Directorate,Francis Baily Primary School,CAY094107,30408.00,Capital grants - Academy Trust
Department for Education,Core,20/01/2022,Grants Expenditure,Capital Directorate,FRANKLIN COLLEGE,CAY094110,117658.00,Capital grants - Academy Trust
Department for Education,Core,20/01/2022,Grants Expenditure,Capital Directorate,Garvestone Community Primary School,CAY093952,51989.00,Capital grants - Academy Trust
Department for Education,Core,20/01/2022,Grants Expenditure,Capital Directorate,George Dixon Academy,CAY093928,73098.00,Capital grants - Academy Trust
Department for Education,Core,20/01/2022,Grants Expenditure,Capital Directorate,Glen Hills Primary School,CAY094126,92991.00,Capital grants - Academy Trust
Department for Education,Core,20/01/2022,Grants Expenditure,Capital Directorate,Grange Academy,CAY093885,136871.00,Capital grants - Academy Trust
Department for Education,Core,20/01/2022,Grants Expenditure,Capital Directorate,Great Kingshill C of E Combined School,CAY094102,26572.00,Capital grants - Academy Trust
Department for Education,Core,20/01/2022,Grants Expenditure,Capital Directorate,Greenbank High School,CAY093798,131471.00,Capital grants - Academy Trust
Department for Education,Core,20/01/2022,Grants Expenditure,Capital Directorate,GREENHOLM PRIMARY SCHOOL,CAY093808,158830.00,Capital grants - Academy Trust
Department for Education,Core,20/01/2022,Grants Expenditure,Capital Directorate,Greenlands Primary School,CAY093860,47400.00,Capital grants - Academy Trust
Department for Education,Core,20/01/2022,Grants Expenditure,Capital Directorate,Hall Green School,CAY093876,65335.00,Capital grants - Academy Trust
Department for Education,Core,20/01/2022,Grants Expenditure,Capital Directorate,Hall Mead School,CAY093981,85574.00,Capital grants - Academy Trust
Department for Education,Core,20/01/2022,Grants Expenditure,Capital Directorate,Halling Primary School,CAY093865,70812.00,Capital grants - Academy Trust
Department for Education,Core,20/01/2022,Grants Expenditure,Capital Directorate,Halstow Primary School ,CAY093997,57254.00,Capital grants - Academy Trust
Department for Education,Core,20/01/2022,Grants Expenditure,Capital Directorate,Hamstead Hall Academy,CAY094139,55084.00,Capital grants - Academy Trust
Department for Education,Core,20/01/2022,Grants Expenditure,Capital Directorate,Hamstead Hall Academy,CAY094140,99228.00,Capital grants - Academy Trust
Department for Education,Core,20/01/2022,Grants Expenditure,Capital Directorate,Hardenhuish School,CAY093880,32250.00,Capital grants - Academy Trust
Department for Education,Core,20/01/2022,Grants Expenditure,Capital Directorate,Harper Green School,CAY093833,107474.00,Capital grants - Academy Trust
Department for Education,Core,20/01/2022,Grants Expenditure,Capital Directorate,Hartwell Primary School,CAY093762,72410.00,Capital grants - Academy Trust
Department for Education,Core,20/01/2022,Grants Expenditure,Capital Directorate,Haydon School,CAY093906,112218.00,Capital grants - Academy Trust
Department for Education,Core,20/01/2022,Grants Expenditure,Capital Directorate,Haygrove School,CAY093777,26002.00,Capital grants - Academy Trust
Department for Education,Core,20/01/2022,Grants Expenditure,Capital Directorate,Hazel Wood High School,CAY093962,89659.00,Capital grants - Academy Trust
Department for Education,Core,20/01/2022,Grants Expenditure,Capital Directorate,Hendon School,CAY093799,30471.00,Capital grants - Academy Trust
Department for Education,Core,20/01/2022,Grants Expenditure,Capital Directorate,Heron Hall Academy,CAY093987,81922.00,Capital grants - Academy Trust
Department for Education,Core,20/01/2022,Grants Expenditure,Capital Directorate,HIGHCREST ACADEMY,CAY093978,100808.00,Capital grants - Academy Trust
Department for Education,Core,20/01/2022,Grants Expenditure,Capital Directorate,Highdown School and Sixth Form Centre,CAY093754,63512.00,Capital grants - Academy Trust
Department for Education,Core,20/01/2022,Grants Expenditure,Capital Directorate,Hillcrest School A Specialist Maths and Computing ,CAY093795,73702.00,Capital grants - Academy Trust
Department for Education,Core,20/01/2022,Grants Expenditure,Capital Directorate,Hollymount School,CAY093939,69798.00,Capital grants - Academy Trust
Department for Education,Core,20/01/2022,Grants Expenditure,Capital Directorate,HOLMER GREEN SENIOR SCHOOL,CAY094081,30880.00,Capital grants - Academy Trust
Department for Education,Core,20/01/2022,Grants Expenditure,Capital Directorate,Holy Innocents Catholic Primary School,CAY093820,32444.00,Capital grants - Academy Trust
Department for Education,Core,20/01/2022,Grants Expenditure,Capital Directorate,Holyhead Primary Academy,CAY094101,74159.00,Capital grants - Academy Trust
Department for Education,Core,20/01/2022,Grants Expenditure,Capital Directorate,Homewood School and Sixth Form Centre,CAY093797,112544.00,Capital grants - Academy Trust
Department for Education,Core,20/01/2022,Grants Expenditure,Capital Directorate,Hummersknott Academy,CAY094117,36785.00,Capital grants - Academy Trust
Department for Education,Core,20/01/2022,Grants Expenditure,Capital Directorate,Iwade School,CAY094146,109696.00,Capital grants - Academy Trust
Department for Education,Core,20/01/2022,Grants Expenditure,Capital Directorate,John Mason School,CAY093990,117418.00,Capital grants - Academy Trust
Department for Education,Core,20/01/2022,Grants Expenditure,Capital Directorate,John of Rolleston Primary School,CAY093846,33058.00,Capital grants - Academy Trust
Department for Education,Core,20/01/2022,Grants Expenditure,Capital Directorate,Kelvedon St Mary's Church of England Primary Acade,CAY094136,52735.00,Capital grants - Academy Trust
Department for Education,Core,20/01/2022,Grants Expenditure,Capital Directorate,Kepier,CAY093917,65199.00,Capital grants - Academy Trust
Department for Education,Core,20/01/2022,Grants Expenditure,Capital Directorate,Kesgrave High School,CAY093915,53914.00,Capital grants - Academy Trust
Department for Education,Core,20/01/2022,Grants Expenditure,Capital Directorate,Kew Woods Primary School,CAY093961,63006.00,Capital grants - Academy Trust
Department for Education,Core,20/01/2022,Grants Expenditure,Capital Directorate,King Edward VI College,CAY093848,61124.00,Capital grants - Academy Trust
Department for Education,Core,20/01/2022,Grants Expenditure,Capital Directorate,King Edward VI College,CAY093849,125714.00,Capital grants - Academy Trust
Department for Education,Core,20/01/2022,Grants Expenditure,Capital Directorate,Kingsdale Foundation School,CAY093883,125059.00,Capital grants - Academy Trust
Department for Education,Core,20/01/2022,Grants Expenditure,Capital Directorate,Kingsfield First School Academy,CAY093866,34054.00,Capital grants - Academy Trust
Department for Education,Core,20/01/2022,Grants Expenditure,Capital Directorate,Kingsmead School,CAY093755,67432.00,Capital grants - Academy Trust
Department for Education,Core,20/01/2022,Grants Expenditure,Capital Directorate,Knowle DGE Academy,CAY093954,45831.00,Capital grants - Academy Trust
Department for Education,Core,20/01/2022,Grants Expenditure,Capital Directorate,Laurance Haines School,CAY094158,80594.00,Capital grants - Academy Trust
Department for Education,Core,20/01/2022,Grants Expenditure,Capital Directorate,Laurel Lane Primary School,CAY094135,51820.00,Capital grants - Academy Trust
Department for Education,Core,20/01/2022,Grants Expenditure,Capital Directorate,LEES PRIMARY SCHOOL,CAY093825,55095.00,Capital grants - Academy Trust
Department for Education,Core,20/01/2022,Grants Expenditure,Capital Directorate,LITTLE LEVER SCHOOL,CAY093821,53902.00,Capital grants - Academy Trust
Department for Education,Core,20/01/2022,Grants Expenditure,Capital Directorate,Little Sutton Church of England Primary School,CAY093844,36794.00,Capital grants - Academy Trust
Department for Education,Core,20/01/2022,Grants Expenditure,Capital Directorate,Liverpool College ,CAY094138,250000.00,Capital grants - Academy Trust
Department for Education,Core,20/01/2022,Grants Expenditure,Capital Directorate,Loreto College ,CAY094082,59140.00,Capital grants - Academy Trust
Department for Education,Core,20/01/2022,Grants Expenditure,Capital Directorate,Lostock Hall Academy Trust,CAY093785,36179.00,Capital grants - Academy Trust
Department for Education,Core,20/01/2022,Grants Expenditure,Capital Directorate,Lostock Hall Primary School,CAY093857,53796.00,Capital grants - Academy Trust
Department for Education,Core,20/01/2022,Grants Expenditure,Capital Directorate,LOWBROOK ACADEMY ,CAY093976,55600.00,Capital grants - Academy Trust
Department for Education,Core,20/01/2022,Grants Expenditure,Capital Directorate,Lutterworth College,CAY093803,43672.00,Capital grants - Academy Trust
Department for Education,Core,20/01/2022,Grants Expenditure,Capital Directorate,LYMM HIGH SCHOOL,CAY093929,93677.00,Capital grants - Academy Trust
Department for Education,Core,20/01/2022,Grants Expenditure,Capital Directorate,Macmillan Academy,CAY094111,63431.00,Capital grants - Academy Trust
Department for Education,Core,20/01/2022,Grants Expenditure,Capital Directorate,Madani Girls' School,CAY093751,91274.00,Capital grants - Academy Trust
Department for Education,Core,20/01/2022,Grants Expenditure,Capital Directorate,Manor School,CAY093951,82265.00,Capital grants - Academy Trust
Department for Education,Core,20/01/2022,Grants Expenditure,Capital Directorate,Margaret McMillan Primary School,CAY093996,80021.00,Capital grants - Academy Trust
Department for Education,Core,20/01/2022,Grants Expenditure,Capital Directorate,Mark Rutherford School ,CAY093932,84777.00,Capital grants - Academy Trust
Department for Education,Core,20/01/2022,Grants Expenditure,Capital Directorate,Marshland Primary Academy,CAY093881,50187.00,Capital grants - Academy Trust
Department for Education,Core,20/01/2022,Grants Expenditure,Capital Directorate,Mayflower High School,CAY094077,120835.00,Capital grants - Academy Trust
Department for Education,Core,20/01/2022,Grants Expenditure,Capital Directorate,Minterne Community Junior School,CAY093956,57783.00,Capital grants - Academy Trust
Department for Education,Core,20/01/2022,Grants Expenditure,Capital Directorate,Monkton Academy,CAY094128,51856.00,Capital grants - Academy Trust
Department for Education,Core,20/01/2022,Grants Expenditure,Capital Directorate,Moreton Christ Church CofE Primary School,CAY093893,61848.00,Capital grants - Academy Trust
Department for Education,Core,20/01/2022,Grants Expenditure,Capital Directorate,Mottram St Andrew Primary Academy,CAY093760,73820.00,Capital grants - Academy Trust
Department for Education,Core,20/01/2022,Grants Expenditure,Capital Directorate,Mount Grace School,CAY093790,102378.00,Capital grants - Academy Trust
Department for Education,Core,20/01/2022,Grants Expenditure,Capital Directorate,Mounts Bay Academy,CAY093912,37026.00,Capital grants - Academy Trust
Department for Education,Core,20/01/2022,Grants Expenditure,Capital Directorate,New Silksworth Academy Infants,CAY094157,65048.00,Capital grants - Academy Trust
Department for Education,Core,20/01/2022,Grants Expenditure,Capital Directorate,Newton Road School,CAY094164,163101.00,Capital grants - Academy Trust
Department for Education,Core,20/01/2022,Grants Expenditure,Capital Directorate,Nonsuch High School for Girls,CAY093773,50130.00,Capital grants - Academy Trust
Department for Education,Core,20/01/2022,Grants Expenditure,Capital Directorate,NORBURY MANOR BUSINESS & ENTERPRISE COLLEGE FOR GI,CAY093921,76324.00,Capital grants - Academy Trust
Department for Education,Core,20/01/2022,Grants Expenditure,Capital Directorate,North Kesteven School,CAY094074,138990.00,Capital grants - Academy Trust
Department for Education,Core,20/01/2022,Grants Expenditure,Capital Directorate,North Kesteven School,CAY094075,133416.00,Capital grants - Academy Trust
Department for Education,Core,20/01/2022,Grants Expenditure,Capital Directorate,Northbrook Primary Academy,CAY094170,43285.00,Capital grants - Academy Trust
Department for Education,Core,20/01/2022,Grants Expenditure,Capital Directorate,Northgate High School ,CAY093941,58470.00,Capital grants - Academy Trust
Department for Education,Core,20/01/2022,Grants Expenditure,Capital Directorate,Notley High School and Braintree Sixth Form,CAY093979,78419.00,Capital grants - Academy Trust
Department for Education,Core,20/01/2022,Grants Expenditure,Capital Directorate,Oakfield Academy,CAY094120,35440.00,Capital grants - Academy Trust
Department for Education,Core,20/01/2022,Grants Expenditure,Capital Directorate,Oakgrove School,CAY093758,75669.00,Capital grants - Academy Trust
Department for Education,Core,20/01/2022,Grants Expenditure,Capital Directorate,OAKWOOD PARK GRAMMAR,CAY093770,25000.00,Capital grants - Academy Trust
Department for Education,Core,20/01/2022,Grants Expenditure,Capital Directorate,Oldbury Wells School,CAY093945,46325.00,Capital grants - Academy Trust
Department for Education,Core,20/01/2022,Grants Expenditure,Capital Directorate,Oldfield School,CAY094070,85880.00,Capital grants - Academy Trust
Department for Education,Core,20/01/2022,Grants Expenditure,Capital Directorate,Oldham Sixth Form College,CAY094161,117437.00,Capital grants - Academy Trust
Department for Education,Core,20/01/2022,Grants Expenditure,Capital Directorate,Orleans Park School,CAY093927,73117.00,Capital grants - Academy Trust
Department for Education,Core,20/01/2022,Grants Expenditure,Capital Directorate,Ossett Academy and Sixth Form College,CAY093873,61371.00,Capital grants - Academy Trust
Department for Education,Core,20/01/2022,Grants Expenditure,Capital Directorate,Otley Prince Henry's Grammar School Specialist Lan,CAY093920,107672.00,Capital grants - Academy Trust
Department for Education,Core,20/01/2022,Grants Expenditure,Capital Directorate,Park House School Newbury,CAY093910,91987.00,Capital grants - Academy Trust
Department for Education,Core,20/01/2022,Grants Expenditure,Capital Directorate,Park Lane Primary & Nursery School,CAY093818,29840.00,Capital grants - Academy Trust
Department for Education,Core,20/01/2022,Grants Expenditure,Capital Directorate,Parkfield Community School,CAY093933,54294.00,Capital grants - Academy Trust
Department for Education,Core,20/01/2022,Grants Expenditure,Capital Directorate,Parkwood Academy,CAY094148,41294.00,Capital grants - Academy Trust
Department for Education,Core,20/01/2022,Grants Expenditure,Capital Directorate,Parkwood Academy,CAY094149,28115.00,Capital grants - Academy Trust
Department for Education,Core,20/01/2022,Grants Expenditure,Capital Directorate,Pear Tree Mead Academy,CAY093819,45185.00,Capital grants - Academy Trust
Department for Education,Core,20/01/2022,Grants Expenditure,Capital Directorate,Penkridge Middle School,CAY093840,147431.00,Capital grants - Academy Trust
Department for Education,Core,20/01/2022,Grants Expenditure,Capital Directorate,Pickhurst Junior School,CAY094122,40058.00,Capital grants - Academy Trust
Department for Education,Core,20/01/2022,Grants Expenditure,Capital Directorate,Picknalls First School,CAY093838,32383.00,Capital grants - Academy Trust
Department for Education,Core,20/01/2022,Grants Expenditure,Capital Directorate,Portway Primary School,CAY093824,42043.00,Capital grants - Academy Trust
Department for Education,Core,20/01/2022,Grants Expenditure,Capital Directorate,Queen's Park High School,CAY093836,68972.00,Capital grants - Academy Trust
Department for Education,Core,20/01/2022,Grants Expenditure,Capital Directorate,Queens' School ,CAY093913,93699.00,Capital grants - Academy Trust
Department for Education,Core,20/01/2022,Grants Expenditure,Capital Directorate,Queens' School ,CAY093914,150608.00,Capital grants - Academy Trust
Department for Education,Core,20/01/2022,Grants Expenditure,Capital Directorate,Ranelagh School,CAY093918,25993.00,Capital grants - Academy Trust
Department for Education,Core,20/01/2022,Grants Expenditure,Capital Directorate,Raynville Primary School,CAY093896,54313.00,Capital grants - Academy Trust
Department for Education,Core,20/01/2022,Grants Expenditure,Capital Directorate,Redborne Upper School and Community College,CAY093763,27583.00,Capital grants - Academy Trust
Department for Education,Core,20/01/2022,Grants Expenditure,Capital Directorate,Richard Hale School,CAY093888,79730.00,Capital grants - Academy Trust
Department for Education,Core,20/01/2022,Grants Expenditure,Capital Directorate,Richmond CofE Primary and Nursery School,CAY094160,45770.00,Capital grants - Academy Trust
Department for Education,Core,20/01/2022,Grants Expenditure,Capital Directorate,Ringwood School Academy,CAY093766,159436.00,Capital grants - Academy Trust
Department for Education,Core,20/01/2022,Grants Expenditure,Capital Directorate,Ringwood School Academy,CAY093909,65552.00,Capital grants - Academy Trust
Department for Education,Core,20/01/2022,Grants Expenditure,Capital Directorate,Ripley St Thomas Church of England Academy,CAY093771,38758.00,Capital grants - Academy Trust
Department for Education,Core,20/01/2022,Grants Expenditure,Capital Directorate,Robert Bakewell Primary School and Community Centr,CAY094090,82434.00,Capital grants - Academy Trust
Department for Education,Core,20/01/2022,Grants Expenditure,Capital Directorate,Rougham Church of England Primary School,CAY093850,28501.00,Capital grants - Academy Trust
Department for Education,Core,20/01/2022,Grants Expenditure,Capital Directorate,Runwell Community Primary School ,CAY093780,48647.00,Capital grants - Academy Trust
Department for Education,Core,20/01/2022,Grants Expenditure,Capital Directorate,Sacred Heart of Mary Girls' School,CAY093792,43726.00,Capital grants - Academy Trust
Department for Education,Core,20/01/2022,Grants Expenditure,Capital Directorate,Sanders School,CAY093856,118557.00,Capital grants - Academy Trust
Department for Education,Core,20/01/2022,Grants Expenditure,Capital Directorate,Sanders School,CAY094103,39336.00,Capital grants - Academy Trust
Department for Education,Core,20/01/2022,Grants Expenditure,Capital Directorate,Saxmundham Free School,CAY094133,29133.00,Capital grants - Academy Trust
Department for Education,Core,20/01/2022,Grants Expenditure,Capital Directorate,Scargill Junior School,CAY093842,66895.00,Capital grants - Academy Trust
Department for Education,Core,20/01/2022,Grants Expenditure,Capital Directorate,Shipston High School,CAY093930,102437.00,Capital grants - Academy Trust
Department for Education,Core,20/01/2022,Grants Expenditure,Capital Directorate,Shipston High School,CAY093931,74572.00,Capital grants - Academy Trust
Department for Education,Core,20/01/2022,Grants Expenditure,Capital Directorate,Simms Cross Primary School,CAY093869,94766.00,Capital grants - Academy Trust
Department for Education,Core,20/01/2022,Grants Expenditure,Capital Directorate,Sir Thomas Boughey Academy,CAY093843,46941.00,Capital grants - Academy Trust
Department for Education,Core,20/01/2022,Grants Expenditure,Capital Directorate,Springfield Primary School,CAY093864,123893.00,Capital grants - Academy Trust
Department for Education,Core,20/01/2022,Grants Expenditure,Capital Directorate,Springfield Primary School,CAY094106,39247.00,Capital grants - Academy Trust
Department for Education,Core,20/01/2022,Grants Expenditure,Capital Directorate,St Alban's Catholic Primary School,CAY094078,30429.00,Capital grants - Academy Trust
Department for Education,Core,20/01/2022,Grants Expenditure,Capital Directorate,St Anne's Catholic School,CAY093926,87781.00,Capital grants - Academy Trust
Department for Education,Core,20/01/2022,Grants Expenditure,Capital Directorate,St Anne's Catholic School,CAY094083,276793.00,Capital grants - Academy Trust
Department for Education,Core,20/01/2022,Grants Expenditure,Capital Directorate,St Annes RC School,CAY094169,172949.00,Capital grants - Academy Trust
Department for Education,Core,20/01/2022,Grants Expenditure,Capital Directorate,St Bede's Catholic Primary School,CAY094087,90216.00,Capital grants - Academy Trust
Department for Education,Core,20/01/2022,Grants Expenditure,Capital Directorate,St Eanswythe's Church of England Primary School,CAY093934,50631.00,Capital grants - Academy Trust
Department for Education,Core,20/01/2022,Grants Expenditure,Capital Directorate,ST FRANCIS XAVIER SIXTH FORM COLLEGE,CAY093752,95873.00,Capital grants - Academy Trust
Department for Education,Core,20/01/2022,Grants Expenditure,Capital Directorate,St Francis Xavier's College,CAY093807,180040.00,Capital grants - Academy Trust
Department for Education,Core,20/01/2022,Grants Expenditure,Capital Directorate,St James' Roman Catholic Primary School,CAY093983,86038.00,Capital grants - Academy Trust
Department for Education,Core,20/01/2022,Grants Expenditure,Capital Directorate,St John's Primary School,CAY094142,46001.00,Capital grants - Academy Trust
Department for Education,Core,20/01/2022,Grants Expenditure,Capital Directorate,St John's RC Primary School,CAY094168,65851.00,Capital grants - Academy Trust
Department for Education,Core,20/01/2022,Grants Expenditure,Capital Directorate,St Joseph�s Catholic College,CAY093778,57289.00,Capital grants - Academy Trust
Department for Education,Core,20/01/2022,Grants Expenditure,Capital Directorate,St Joseph's College,CAY094009,32163.00,Capital grants - Academy Trust
Department for Education,Core,20/01/2022,Grants Expenditure,Capital Directorate,St Joseph's College ,CAY094131,128220.00,Capital grants - Academy Trust
Department for Education,Core,20/01/2022,Grants Expenditure,Capital Directorate,St Joseph's College ,CAY094132,84979.00,Capital grants - Academy Trust
Department for Education,Core,20/01/2022,Grants Expenditure,Capital Directorate,ST LEONARD'S COFE PRIMARY SCHOOL,CAY093957,78829.00,Capital grants - Academy Trust
Department for Education,Core,20/01/2022,Grants Expenditure,Capital Directorate,St Mark's West Essex Catholic School,CAY093781,93697.00,Capital grants - Academy Trust
Department for Education,Core,20/01/2022,Grants Expenditure,Capital Directorate,St Martins School,CAY094096,37072.00,Capital grants - Academy Trust
Department for Education,Core,20/01/2022,Grants Expenditure,Capital Directorate,St Mary's Catholic Primary School,CAY093938,57901.00,Capital grants - Academy Trust
Department for Education,Core,20/01/2022,Grants Expenditure,Capital Directorate,St Paulinus Church of England Primary School,CAY094152,43017.00,Capital grants - Academy Trust
Department for Education,Core,20/01/2022,Grants Expenditure,Capital Directorate,St Peter and St Paul Church of England Academy,CAY093812,35188.00,Capital grants - Academy Trust
Department for Education,Core,20/01/2022,Grants Expenditure,Capital Directorate,St Peter's CE Primary Academy,CAY093854,40736.00,Capital grants - Academy Trust
Department for Education,Core,20/01/2022,Grants Expenditure,Capital Directorate,St Wilfrid's RC College,CAY093886,107148.00,Capital grants - Academy Trust
Department for Education,Core,20/01/2022,Grants Expenditure,Capital Directorate,St Winefride's Catholic Primary School,CAY094093,29098.00,Capital grants - Academy Trust
Department for Education,Core,20/01/2022,Grants Expenditure,Capital Directorate,St. Margaret's c of E Primary School,CAY093999,32265.00,Capital grants - Academy Trust
Department for Education,Core,20/01/2022,Grants Expenditure,Capital Directorate,Standish Community High School,CAY093835,47960.00,Capital grants - Academy Trust
Department for Education,Core,20/01/2022,Grants Expenditure,Capital Directorate,Stanley Road Primary School,CAY093858,65507.00,Capital grants - Academy Trust
Department for Education,Core,20/01/2022,Grants Expenditure,Capital Directorate,Stannington Infant School,CAY093859,80594.00,Capital grants - Academy Trust
Department for Education,Core,20/01/2022,Grants Expenditure,Capital Directorate,Stottesdon CofE Primary School,CAY094153,54112.00,Capital grants - Academy Trust
Department for Education,Core,20/01/2022,Grants Expenditure,Capital Directorate,Stramongate Primary School,CAY093801,105138.00,Capital grants - Academy Trust
Department for Education,Core,20/01/2022,Grants Expenditure,Capital Directorate,Stranton Primary School,CAY093988,85331.00,Capital grants - Academy Trust
Department for Education,Core,20/01/2022,Grants Expenditure,Capital Directorate,Stuart Bathurst Catholic High School,CAY093872,136447.00,Capital grants - Academy Trust
Department for Education,Core,20/01/2022,Grants Expenditure,Capital Directorate,Sutton Courtenay (CofE) Primary School,CAY094167,42798.00,Capital grants - Academy Trust
Department for Education,Core,20/01/2022,Grants Expenditure,Capital Directorate,Swanland Primary School,CAY093789,62118.00,Capital grants - Academy Trust
Department for Education,Core,20/01/2022,Grants Expenditure,Capital Directorate,Tameside Primary Academy,CAY093879,54367.00,Capital grants - Academy Trust
Department for Education,Core,20/01/2022,Grants Expenditure,Capital Directorate,Tany's Dell Primary School,CAY093955,85581.00,Capital grants - Academy Trust
Department for Education,Core,20/01/2022,Grants Expenditure,Capital Directorate,Temple Hill Primary Academy,CAY093827,88020.00,Capital grants - Academy Trust
Department for Education,Core,20/01/2022,Grants Expenditure,Capital Directorate,Tenterden Church of England Junior School,CAY093834,72475.00,Capital grants - Academy Trust
Department for Education,Core,20/01/2022,Grants Expenditure,Capital Directorate,THAMES VIEW INFANTS' SCHOOL,CAY094084,75424.00,Capital grants - Academy Trust
Department for Education,Core,20/01/2022,Grants Expenditure,Capital Directorate,The Arnewood School Academy,CAY093765,178456.00,Capital grants - Academy Trust
Department for Education,Core,20/01/2022,Grants Expenditure,Capital Directorate,The Avenue Primary School,CAY094004,35617.00,Capital grants - Academy Trust
Department for Education,Core,20/01/2022,Grants Expenditure,Capital Directorate,The Blue Coat School,CAY093800,43022.00,Capital grants - Academy Trust
Department for Education,Core,20/01/2022,Grants Expenditure,Capital Directorate,The Bramcote School,CAY093809,52194.00,Capital grants - Academy Trust
Department for Education,Core,20/01/2022,Grants Expenditure,Capital Directorate,The Brent Primary School,CAY093937,47946.00,Capital grants - Academy Trust
Department for Education,Core,20/01/2022,Grants Expenditure,Capital Directorate,The Bridge School,CAY093950,45381.00,Capital grants - Academy Trust
Department for Education,Core,20/01/2022,Grants Expenditure,Capital Directorate,The Commonweal School,CAY094184,121234.00,Capital grants - Academy Trust
Department for Education,Core,20/01/2022,Grants Expenditure,Capital Directorate,The Echelford Primary School,CAY093989,88103.00,Capital grants - Academy Trust
Department for Education,Core,20/01/2022,Grants Expenditure,Capital Directorate,The Featherstone Academy,CAY093878,49598.00,Capital grants - Academy Trust
Department for Education,Core,20/01/2022,Grants Expenditure,Capital Directorate,The Forest School,CAY093816,99563.00,Capital grants - Academy Trust
Department for Education,Core,20/01/2022,Grants Expenditure,Capital Directorate,The Giles Academy,CAY093882,102911.00,Capital grants - Academy Trust
Department for Education,Core,20/01/2022,Grants Expenditure,Capital Directorate,The Giles Academy,CAY094067,175949.00,Capital grants - Academy Trust
Department for Education,Core,20/01/2022,Grants Expenditure,Capital Directorate,The Greetland Academy,CAY094069,37031.00,Capital grants - Academy Trust
Department for Education,Core,20/01/2022,Grants Expenditure,Capital Directorate,The Hawthorne's Free School,CAY093924,140445.00,Capital grants - Academy Trust
Department for Education,Core,20/01/2022,Grants Expenditure,Capital Directorate,The Hayesbrook School,CAY094112,187926.00,Capital grants - Academy Trust
Department for Education,Core,20/01/2022,Grants Expenditure,Capital Directorate,The Hayesbrook School,CAY094113,199890.00,Capital grants - Academy Trust
Department for Education,Core,20/01/2022,Grants Expenditure,Capital Directorate,The High Arcal School,CAY093887,132027.00,Capital grants - Academy Trust
Department for Education,Core,20/01/2022,Grants Expenditure,Capital Directorate,The Hillcrest School Community College,CAY093897,44927.00,Capital grants - Academy Trust
Department for Education,Core,20/01/2022,Grants Expenditure,Capital Directorate,The Kings of Wessex Academy ,CAY093874,40491.00,Capital grants - Academy Trust
Department for Education,Core,20/01/2022,Grants Expenditure,Capital Directorate,"THE KING'S SCHOOL, GRANTHAM",CAY093898,106178.00,Capital grants - Academy Trust
Department for Education,Core,20/01/2022,Grants Expenditure,Capital Directorate,The Macclesfield Academy,CAY093783,106888.00,Capital grants - Academy Trust
Department for Education,Core,20/01/2022,Grants Expenditure,Capital Directorate,The Marlborough Science Academy,CAY094080,179817.00,Capital grants - Academy Trust
Department for Education,Core,20/01/2022,Grants Expenditure,Capital Directorate,The Marlborough Science Academy,CAY094130,78025.00,Capital grants - Academy Trust
Department for Education,Core,20/01/2022,Grants Expenditure,Capital Directorate,The Misbourne School,CAY093852,33749.00,Capital grants - Academy Trust
Department for Education,Core,20/01/2022,Grants Expenditure,Capital Directorate,The Misbourne School,CAY094003,107159.00,Capital grants - Academy Trust
Department for Education,Core,20/01/2022,Grants Expenditure,Capital Directorate,THE NORTH HALIFAX GRAMMAR SCHOOL,CAY094116,49767.00,Capital grants - Academy Trust
Department for Education,Core,20/01/2022,Grants Expenditure,Capital Directorate,"The Royal Grammar School, High Wycombe",CAY094071,44934.00,Capital grants - Academy Trust
Department for Education,Core,20/01/2022,Grants Expenditure,Capital Directorate,The Sir John Colfox School,CAY094151,57627.00,Capital grants - Academy Trust
Department for Education,Core,20/01/2022,Grants Expenditure,Capital Directorate,The Thomas Adams School,CAY093870,66309.00,Capital grants - Academy Trust
Department for Education,Core,20/01/2022,Grants Expenditure,Capital Directorate,The Thomas Cowley High School ,CAY094085,94534.00,Capital grants - Academy Trust
Department for Education,Core,20/01/2022,Grants Expenditure,Capital Directorate,The Tiffin Girls' School,CAY094010,250000.00,Capital grants - Academy Trust
Department for Education,Core,20/01/2022,Grants Expenditure,Capital Directorate,The Westgate School,CAY093802,96425.00,Capital grants - Academy Trust
Department for Education,Core,20/01/2022,Grants Expenditure,Capital Directorate,The Westgate School,CAY093984,166506.00,Capital grants - Academy Trust
Department for Education,Core,20/01/2022,Grants Expenditure,Capital Directorate,Therfield School,CAY093837,66312.00,Capital grants - Academy Trust
Department for Education,Core,20/01/2022,Grants Expenditure,Capital Directorate,Thomas Alleynes High School,CAY093839,50029.00,Capital grants - Academy Trust
Department for Education,Core,20/01/2022,Grants Expenditure,Capital Directorate,Thornton Dale CofE (VC) Primary School,CAY093967,30531.00,Capital grants - Academy Trust
Department for Education,Core,20/01/2022,Grants Expenditure,Capital Directorate,Tolworth Girls' School & Sixth Form,CAY093782,55931.00,Capital grants - Academy Trust
Department for Education,Core,20/01/2022,Grants Expenditure,Capital Directorate,Torquay Boys' Grammar School,CAY094068,90221.00,Capital grants - Academy Trust
Department for Education,Core,20/01/2022,Grants Expenditure,Capital Directorate,Torquay Girls Grammar School,CAY093759,42086.00,Capital grants - Academy Trust
Department for Education,Core,20/01/2022,Grants Expenditure,Capital Directorate,"Trinity Church of England School, Belvedere",CAY093761,50103.00,Capital grants - Academy Trust
Department for Education,Core,20/01/2022,Grants Expenditure,Capital Directorate,Tytherington School,CAY094143,82706.00,Capital grants - Academy Trust
Department for Education,Core,20/01/2022,Grants Expenditure,Capital Directorate,Tytherington School,CAY094144,133731.00,Capital grants - Academy Trust
Department for Education,Core,20/01/2022,Grants Expenditure,Capital Directorate,University of Chester Academy Northwich,CAY094210,227280.00,Capital grants - Academy Trust
Department for Education,Core,20/01/2022,Grants Expenditure,Capital Directorate,University of Chester Academy Northwich,CAY094211,63282.00,Capital grants - Academy Trust
Department for Education,Core,20/01/2022,Grants Expenditure,Capital Directorate,Urmston Grammar Academy,CAY093902,58250.00,Capital grants - Academy Trust
Department for Education,Core,20/01/2022,Grants Expenditure,Capital Directorate,Uxbridge High School ,CAY094072,122316.00,Capital grants - Academy Trust
Department for Education,Core,20/01/2022,Grants Expenditure,Capital Directorate,Victoria Academy,CAY093992,96117.00,Capital grants - Academy Trust
Department for Education,Core,20/01/2022,Grants Expenditure,Capital Directorate,Waingroves Primary School,CAY094008,87196.00,Capital grants - Academy Trust
Department for Education,Core,20/01/2022,Grants Expenditure,Capital Directorate,Wallington High School for Girls,CAY093772,28657.00,Capital grants - Academy Trust
Department for Education,Core,20/01/2022,Grants Expenditure,Capital Directorate,Watford Grammar School For Girls,CAY093901,111925.00,Capital grants - Academy Trust
Department for Education,Core,20/01/2022,Grants Expenditure,Capital Directorate,Wayfield Primary School,CAY093948,34881.00,Capital grants - Academy Trust
Department for Education,Core,20/01/2022,Grants Expenditure,Capital Directorate,Wellacre Technology Academy,CAY094115,82426.00,Capital grants - Academy Trust
Department for Education,Core,20/01/2022,Grants Expenditure,Capital Directorate,Welland Park Academy,CAY093980,57297.00,Capital grants - Academy Trust
Department for Education,Core,20/01/2022,Grants Expenditure,Capital Directorate,Wesley Methodist Primary School,CAY093867,66705.00,Capital grants - Academy Trust
Department for Education,Core,20/01/2022,Grants Expenditure,Capital Directorate,West Kirby Grammar School,CAY093793,55898.00,Capital grants - Academy Trust
Department for Education,Core,20/01/2022,Grants Expenditure,Capital Directorate,West Road Primary Academy,CAY093965,63032.00,Capital grants - Academy Trust
Department for Education,Core,20/01/2022,Grants Expenditure,Capital Directorate,Westbourne Primary School,CAY094099,75676.00,Capital grants - Academy Trust
Department for Education,Core,20/01/2022,Grants Expenditure,Capital Directorate,Westcliff High School for Boys Academy,CAY093975,33000.00,Capital grants - Academy Trust
Department for Education,Core,20/01/2022,Grants Expenditure,Capital Directorate,WESTCOURT PRIMARY SCHOOL,CAY093949,43916.00,Capital grants - Academy Trust
Department for Education,Core,20/01/2022,Grants Expenditure,Capital Directorate,Westlands Academy,CAY093991,36337.00,Capital grants - Academy Trust
Department for Education,Core,20/01/2022,Grants Expenditure,Capital Directorate,Whitecotes Primary School,CAY094095,35238.00,Capital grants - Academy Trust
Department for Education,Core,20/01/2022,Grants Expenditure,Capital Directorate,WILBERFORCE COLLEGE,CAY093753,65492.00,Capital grants - Academy Trust
Department for Education,Core,20/01/2022,Grants Expenditure,Capital Directorate,William Farr Church of England Comprehensive School,CAY093757,77189.00,Capital grants - Academy Trust
Department for Education,Core,20/01/2022,Grants Expenditure,Capital Directorate,William Shrewsbury Primary School,CAY093845,46353.00,Capital grants - Academy Trust
Department for Education,Core,20/01/2022,Grants Expenditure,Capital Directorate,Willow Primary School,CAY093959,50513.00,Capital grants - Academy Trust
Department for Education,Core,20/01/2022,Grants Expenditure,Capital Directorate,Wilmington Grammar School for Boys,CAY093791,129149.00,Capital grants - Academy Trust
Department for Education,Core,20/01/2022,Grants Expenditure,Capital Directorate,Windmill Primary School,CAY094137,303381.00,Capital grants - Academy Trust
Department for Education,Core,20/01/2022,Grants Expenditure,Capital Directorate,Wolgarston High School,CAY093890,68603.00,Capital grants - Academy Trust
Department for Education,Core,20/01/2022,Grants Expenditure,Capital Directorate,Woodfield Primary School,CAY093946,79617.00,Capital grants - Academy Trust
Department for Education,Core,20/01/2022,Grants Expenditure,Capital Directorate,Woodham Ley Primary School,CAY093944,67517.00,Capital grants - Academy Trust
Department for Education,Core,20/01/2022,Grants Expenditure,Capital Directorate,Woodhouse College,CAY093974,80651.00,Capital grants - Academy Trust
Department for Education,Core,20/01/2022,Grants Expenditure,Capital Directorate,Woodlands Academy,CAY093953,84174.00,Capital grants - Academy Trust
Department for Education,Core,20/01/2022,Grants Expenditure,Capital Directorate,Woodside Academy,CAY093841,57112.00,Capital grants - Academy Trust
Department for Education,Core,20/01/2022,Grants Expenditure,Capital Directorate,Woodside High School,CAY094125,91149.00,Capital grants - Academy Trust
Department for Education,Core,20/01/2022,Grants Expenditure,Capital Directorate,Woodside School,CAY093998,65061.00,Capital grants - Academy Trust
Department for Education,Core,20/01/2022,Grants Expenditure,Capital Directorate,Worth Valley Primary School,CAY093831,58050.00,Capital grants - Academy Trust
Department for Education,Core,20/01/2022,Grants Expenditure,Capital Directorate,YEW TREE PRIMARY SCHOOL,CAY094006,115455.00,Capital grants - Academy Trust
Department for Education,Core,20/01/2022,Grants Expenditure,Capital Directorate,Corfe Hills School Academy Trust,CAY094011,140000.00,Capital grants - Academy Trust
Department for Education,Core,20/01/2022,Grants Expenditure,Capital Directorate,OLDHAM METRO BOROUGH COUNCIL,CL043086,42908.40,Capital grants - Local Government
Department for Education,Core,20/01/2022,Grants Expenditure,Capital Directorate,Worcestershire County Council,CL043085,125000.00,Capital grants - Local Government
Department for Education,Core,20/01/2022,Grants Expenditure,Capital Directorate,Bournemouth School,CAY093736,243021.13,Capital grants - Academy Trust
Department for Education,Core,20/01/2022,Grants Expenditure,Capital Directorate,King Edward VI Handsworth School,CAY093894,177860.00,Capital grants - Academy Trust
Department for Education,Core,20/01/2022,Grants Expenditure,Capital Directorate,Lawrence Sheriff School ,CAY093737,100000.00,Capital grants - Academy Trust
Department for Education,Core,20/01/2022,Grants Expenditure,Capital Directorate,Ribston Hall High School ,CAY093738,308839.15,Capital grants - Academy Trust
Department for Education,Core,20/01/2022,Grants Expenditure,Capital Directorate,The Rochester Grammar School,CAY093970,56064.24,Capital grants - Academy Trust
Department for Education,Core,20/01/2022,Grants Expenditure,Capital Directorate,Astrea Academy Trust,CAY093740,60589.00,Capital grants - Academy Trust
Department for Education,Core,20/01/2022,Grants Expenditure,Capital Directorate,Bridge Academy Trust,CAY093745,88714.00,Capital grants - Academy Trust
Department for Education,Core,20/01/2022,Grants Expenditure,Capital Directorate,Cambridge Meridian Academies Trust,CAY093972,125000.00,Capital grants - Academy Trust
Department for Education,Core,20/01/2022,Grants Expenditure,Capital Directorate,Diverse Academies Trust,CAY093741,167420.00,Capital grants - Academy Trust
Department for Education,Core,20/01/2022,Grants Expenditure,Capital Directorate,Falcon Education Academies Trust,CAY093747,70658.69,Capital grants - Academy Trust
Department for Education,Core,20/01/2022,Grants Expenditure,Capital Directorate,FLIMBY PRIMARY SCHOOL,CAY093971,36336.00,Capital grants - Academy Trust
Department for Education,Core,20/01/2022,Grants Expenditure,Capital Directorate,Impact Education Multi Academy Trust,CAY093742,239675.00,Capital grants - Academy Trust
Department for Education,Core,20/01/2022,Grants Expenditure,Capital Directorate,NET Academies Trust,CAY093748,57225.62,Capital grants - Academy Trust
Department for Education,Core,20/01/2022,Grants Expenditure,Capital Directorate,Oasis Community Learning,CAY093743,43029.00,Capital grants - Academy Trust
Department for Education,Core,20/01/2022,Grants Expenditure,Capital Directorate,Outwood Grange Academies Trust,CAY093744,142168.00,Capital grants - Academy Trust
Department for Education,Core,20/01/2022,Grants Expenditure,Capital Directorate,South Suffolk Learning Trust,CAY094062,25477.28,Capital grants - Academy Trust
Department for Education,Core,20/01/2022,Grants Expenditure,Capital Directorate,STEP ACADEMY TRUST,CAY093749,91299.00,Capital grants - Academy Trust
Department for Education,Core,20/01/2022,Grants Expenditure,Capital Directorate,Stour Vale Academy Trust,CAY094064,39805.00,Capital grants - Academy Trust
Department for Education,Core,20/01/2022,Grants Expenditure,Capital Directorate,Tennyson Learning Community,CAY093895,136722.00,Capital grants - Academy Trust
Department for Education,Core,20/01/2022,Grants Expenditure,Capital Directorate,White Rose Academies Trust,CAY093739,33078.00,Capital grants - Academy Trust
Department for Education,Core,20/01/2022,Grants Expenditure,Capital Directorate,Greater Birmingham & Solihull Institute of Technology,DU00066066,137143.88,Capital grants - Private Sector
Department for Education,Core,20/01/2022,Grants Expenditure,Capital Directorate,Lincolnshire Institute of Technology,DU00066062,29221.96,Capital grants - Private Sector
Department for Education,Core,20/01/2022,Grants Expenditure,Capital Directorate,MILTON KEYNES COLLEGE,DU00066070,587085.88,Capital grants - Private Sector
Department for Education,Core,20/01/2022,Grants Expenditure,Capital Directorate,MILTON KEYNES COLLEGE,DU00066071,66935.23,Capital grants - Private Sector
Department for Education,Core,20/01/2022,Grants Expenditure,Capital Directorate,MILTON KEYNES COLLEGE,DU00066072,104660.40,Capital grants - Private Sector
Department for Education,Core,20/01/2022,Grants Expenditure,Capital Directorate,NEW COLLEGE DURHAM,DU00066067,145000.15,Capital grants - Private Sector
Department for Education,Core,20/01/2022,Grants Expenditure,Capital Directorate,NEW COLLEGE SWINDON,DU00066069,1007887.89,Capital grants - Private Sector
Department for Education,Core,20/01/2022,Grants Expenditure,Capital Directorate,West of England Institute Ltd,DU00066065,37464.40,Capital grants - Private Sector
Department for Education,Core,20/01/2022,Grants Expenditure,Capital Directorate,Yorkshire and Humber Institute of Technology Limit,DU00066064,71732.65,Capital grants - Private Sector
Department for Education,Core,10/01/2022,IS/IT,Covid Response,Arvato Limited,CORE-PINV-029863,67439.68,Telecoms
Department for Education,Core,10/01/2022,IS/IT,Covid Response,Arvato Limited,CORE-PINV-030715,52883.32,Telecoms
Department for Education,Core,21/01/2022,Other Goods & Services,"School Curriculum, Pastoral Care and Safeguarding",UCL INSTITUTE OF EDUCATION,CORE-PINV-031275,55563.16,Professional Services
Department for Education,Core,21/01/2022,Other Goods & Services,"School Curriculum, Pastoral Care and Safeguarding",UCL INSTITUTE OF EDUCATION,CORE-PINV-031275,93342.97,Professional Services
Department for Education,Core,21/01/2022,Other Goods & Services,"School Curriculum, Pastoral Care and Safeguarding",UCL INSTITUTE OF EDUCATION,CORE-PCR-001098,-91905.06,Professional Services
Department for Education,Core,21/01/2022,Other Goods & Services,"School Curriculum, Pastoral Care and Safeguarding",UCL INSTITUTE OF EDUCATION,CORE-PCR-001098,-55563.16,Professional Services
Department for Education,Core,24/01/2022,Other Goods & Services,"School Curriculum, Pastoral Care and Safeguarding",UNIVERSITY OF YORK,CORE-PINV-029617,83533.00,Professional Services
Department for Education,Core,24/01/2022,Other Goods & Services,"School Curriculum, Pastoral Care and Safeguarding",UNIVERSITY OF YORK,CORE-PINV-030885,36954.00,Professional Services
Department for Education,Core,13/01/2022,Consultancy,"School Curriculum, Pastoral Care and Safeguarding",THE FULL ENGLISH EDUCATION LTD,CORE-PINV-031017,31471.00,Consultancy - PPM
Department for Education,Core,06/01/2022,Grants Expenditure,"School Curriculum, Pastoral Care and Safeguarding",CHOIR SCHOOLS ASSOCIATION BURSARY TRUST LTD,CORE-MAIN-028377,7754585.00,Current grants - Private Sector
Department for Education,Core,31/01/2022,Grants Expenditure,Education Recovery Directorate (CRSR),The Reach Foundation,CORE-MAIN-028495,190620.15,Current grants - Private Sector
Department for Education,Core,21/01/2022,Other Goods & Services,Education Recovery Directorate (CRSR),RANDSTAD PUBLIC SERVICES LTD,CORE-PINV-031377,817388.98,Professional Services - Education Services
Department for Education,Core,21/01/2022,Learning & Development,"School Curriculum, Pastoral Care and Safeguarding",STEM LEARNING LTD,CORE-PINV-031327,1406106.52,Training costs
Department for Education,Core,20/01/2022,Learning & Development,"School Curriculum, Pastoral Care and Safeguarding",STEM LEARNING LTD,CORE-PINV-031324,254472.95,Training costs
Department for Education,Core,20/01/2022,Learning & Development,"School Curriculum, Pastoral Care and Safeguarding",STEM LEARNING LTD,CORE-PINV-031324,349944.21,Training costs
Department for Education,Core,20/01/2022,Learning & Development,"School Curriculum, Pastoral Care and Safeguarding",STEM LEARNING LTD,CORE-PINV-031325,78988.67,Training costs
Department for Education,Core,20/01/2022,Learning & Development,"School Curriculum, Pastoral Care and Safeguarding",STEM LEARNING LTD,CORE-PINV-031326,37934.78,Training costs
Department for Education,Core,24/01/2022,Other Goods & Services,"School Curriculum, Pastoral Care and Safeguarding",MATHEMATICS IN EDUCATION & INDUSTRY,CORE-PINV-031403,595552.34,Professional Services - Education Services
Department for Education,Core,07/01/2022,Learning & Development,"School Curriculum, Pastoral Care and Safeguarding",Tribal Education Limited,CORE-PINV-030757,336660.78,Training costs
Department for Education,Core,31/01/2022,Grants Expenditure,"School Curriculum, Pastoral Care and Safeguarding",ENTHUSE CHARITABLE TRUST,CUPS0037910,710600.00,Current grants - Private Sector
Department for Education,Core,31/01/2022,Other Goods & Services,"School Curriculum, Pastoral Care and Safeguarding",IOP INSTITUTE OF PHYSICS,CORE-PINV-031699,184744.00,Professional Services
Department for Education,Core,27/01/2022,Other Goods & Services,"School Curriculum, Pastoral Care and Safeguarding",STEM LEARNING LTD,CORE-PINV-031625,140000.00,Professional Services - Education Services
Department for Education,Core,06/01/2022,Grants Expenditure,Children's Social Care - Improvement and Learning,DARLINGTON BOROUGH COUNCIL,CORE-MAIN-028383,62387.00,Current grants - Local Government
Department for Education,Core,06/01/2022,Grants Expenditure,Children's Social Care - Improvement and Learning,HERTFORDSHIRE COUNTY COUNCIL,CORE-MAIN-028382,545909.00,Current grants - Local Government
Department for Education,Core,06/01/2022,Grants Expenditure,Children's Social Care - Improvement and Learning,LEEDS CITY COUNCIL,CORE-MAIN-028381,880544.75,Current grants - Local Government
Department for Education,Core,27/01/2022,Other Goods & Services,Children's Social Care - Improvement and Learning,MUTUAL VENTURES LTD,CORE-PINV-031605,72756.00,Professional Services
Department for Education,Core,06/01/2022,Grants Expenditure,Children's Social Care - Improvement and Learning,NORTH YORKSHIRE COUNTY COUNCIL,CORE-MAIN-028378,781618.35,Current grants - Local Government
Department for Education,Core,06/01/2022,Grants Expenditure,Children's Social Care - Improvement and Learning,REDCAR & CLEVELAND BOROUGH COUNCIL,CORE-MAIN-028379,384581.65,Current grants - Local Government
Department for Education,Core,12/01/2022,Other Goods & Services,Children's Social Care - Improvement and Learning,What Works for Children's Social Care,CORE-PINV-030192,1301.26,Research & Evaluation
Department for Education,Core,12/01/2022,Other Goods & Services,Children's Social Care - Improvement and Learning,What Works for Children's Social Care,CORE-PINV-030192,24432.00,Research & Evaluation
Department for Education,Core,06/01/2022,Grants Expenditure,Children's Social Care - Improvement and Learning,NEWHAM LONDON BOROUGH COUNCIL,CORE-MAIN-028384,355898.00,Current grants - Private Sector
Department for Education,Core,06/01/2022,Grants Expenditure,Children's Social Care - Improvement and Learning,NORTH TYNESIDE METRO BOROUGH COUNCIL,CORE-MAIN-028389,48400.00,Current grants - Private Sector
Department for Education,Core,06/01/2022,Grants Expenditure,Children's Social Care - Improvement and Learning,Slough Children First Limited,CORE-MAIN-028386,168097.47,Current grants - Private Sector
Department for Education,Core,06/01/2022,Grants Expenditure,Children's Social Care - Improvement and Learning,Slough Children First Limited,CORE-MAIN-028387,100378.54,Current grants - Private Sector
Department for Education,Core,11/01/2022,Grants Expenditure,Children's Social Care - Improvement and Learning,Slough Children First Limited,CUPS0037769,-1672890.00,Current grants - Local Government
Department for Education,Core,11/01/2022,Grants Expenditure,Children's Social Care - Improvement and Learning,Slough Children First Limited,CUPS0037769,1672890.00,Current grants - Local Government
Department for Education,Core,11/01/2022,Grants Expenditure,Children's Social Care - Improvement and Learning,Slough Children First Limited,CUPS0037771,1672890.00,Current grants - Local Government
Department for Education,Core,06/01/2022,Grants Expenditure,Children's Social Care - Improvement and Learning,SURREY COUNTY COUNCIL,CORE-MAIN-028385,350000.00,Current grants - Private Sector
Department for Education,Core,06/01/2022,Grants Expenditure,Children's Social Care - Improvement and Learning,TOGETHER FOR CHILDREN SUNDERLAND,CORE-MAIN-028390,34330.00,Current grants - Private Sector
Department for Education,Core,27/01/2022,Other Goods & Services,Children's Social Care - Improvement and Learning,ALPHA PLUS CONSULTANCY LTD,CORE-PINV-031627,77047.21,Professional Services - Education Services
Department for Education,Core,31/01/2022,Grants Expenditure,Children's Social Care - Improvement and Learning,ESSEX COUNTY COUNCIL,CORE-MAIN-028499,48000.00,Current grants - Local Government
Department for Education,Core,14/01/2022,Other Goods & Services,Children's Social Care - Improvement and Learning,FARSIGHT CONSULTING LIMITED,CORE-PINV-031031,25623.00,Professional Services
Department for Education,Core,24/01/2022,Other Goods & Services,Children's Social Care - Improvement and Learning,FARSIGHT CONSULTING LIMITED,CORE-PINV-031301,43813.50,Professional Services
Department for Education,Core,31/01/2022,Grants Expenditure,Children's Social Care - Improvement and Learning,HAMMERSMITH & FULHAM LONDON BOROUGH COUNCIL,CORE-MAIN-028500,48000.00,Current grants - Local Government
Department for Education,Core,17/01/2022,Other Goods & Services,Children's Social Care - Improvement and Learning,Mott MacDonald Ltd,CORE-PINV-031070,335340.00,Professional Services
Department for Education,Core,10/01/2022,IS/IT,Children's Social Care - Improvement and Learning,SKILLS FOR CARE LTD,CORE-PINV-030801,49969.00,Professional Services - Grants and Awards
Department for Education,Core,18/01/2022,Grants Expenditure,Children's Social Care - Improvement and Learning,SKILLS FOR CARE LTD,CORE-PINV-031120,627000.00,Current grants - Private Sector
Department for Education,Core,31/01/2022,Grants Expenditure,Children's Social Care - Improvement and Learning,SOUTHWARK LONDON BOROUGH COUNCIL,CORE-MAIN-028497,48000.00,Current grants - Local Government
Department for Education,Core,10/01/2022,Other Goods & Services,Children's Social Care - Improvement and Learning,THE FRONTLINE ORGANISATION,CORE-PINV-030786,899178.67,Professional Services - Education Services
Department for Education,Core,10/01/2022,IS/IT,Children's Social Care - Improvement and Learning,THE FRONTLINE ORGANISATION,CORE-PINV-030786,127353.97,Professional Services - Grants and Awards
Department for Education,Core,10/01/2022,Grants Expenditure,Children's Social Care - Improvement and Learning,THE FRONTLINE ORGANISATION,CORE-PINV-030785,639820.00,Current grants - Private Sector
Department for Education,Core,24/01/2022,Other Goods & Services,Children's Social Care - Improvement and Learning,VSC Plus Limited,CORE-PINV-031288,53182.80,Professional Services
Department for Education,Core,31/01/2022,Grants Expenditure,Children's Social Care - Practice and Workforce,BREAK CHARITY,CORE-MAIN-028502,65295.73,Current grants - Private Sector
Department for Education,Core,14/01/2022,Grants Expenditure,Children's Social Care - Practice and Workforce,CAMBRIDGE EDUCATION,CORE-MAIN-028481,2488215.46,Current grants - Private Sector
Department for Education,Core,14/01/2022,Other Operating Costs,Children's Social Care - Practice and Workforce,CORAM,CORE-PINV-031064,29500.00,Miscellaneous expenditure
Department for Education,Core,06/01/2022,Other Goods & Services,Children's Social Care - Practice and Workforce,CORAM CHILDRENS LEGAL CENTRE LTD,CORE-PINV-030188,1280.89,Professional Services
Department for Education,Core,06/01/2022,Other Goods & Services,Children's Social Care - Practice and Workforce,CORAM CHILDRENS LEGAL CENTRE LTD,CORE-PINV-030188,26024.93,Professional Services
Department for Education,Core,14/01/2022,Other Goods & Services,Children's Social Care - Practice and Workforce,FAMILY LIVES,CORE-PINV-030971,71458.06,Professional Services
Department for Education,Core,24/01/2022,Other Goods & Services,Children's Social Care - Practice and Workforce,MINISTRY FOR HOUSING COMMUNITIES & LOCAL GOVERNMENT,CORE-PINV-031340,35729.45,Professional Services
Department for Education,Core,31/01/2022,Grants Expenditure,Children's Social Care - Practice and Workforce,ST CHRISTOPHERS FELLOWSHIP,CORE-MAIN-028501,25709.09,Current grants - Private Sector
Department for Education,Core,07/01/2022,Other Operating Costs,Children's Social Care - Practice and Workforce,THE SHARE FOUNDATION,CORE-PINV-030768,67263.00,Miscellaneous expenditure
Department for Education,Core,10/01/2022,Grants Expenditure,Children's Social Care - Practice and Workforce,THE SHARE FOUNDATION 3RD PARTY TRUST,CORE-PINV-030800,32400.00,Current grants - Private Sector
Department for Education,Core,25/01/2022,Grants Expenditure,Children's Social Care - Practice and Workforce,THE SHARE FOUNDATION 3RD PARTY TRUST,CORE-PINV-031332,97000.00,Current grants - Private Sector
Department for Education,Core,25/01/2022,Grants Expenditure,Children's Social Care - Practice and Workforce,THE SHARE FOUNDATION 3RD PARTY TRUST,CORE-PINV-031413,114200.00,Current grants - Private Sector
Department for Education,Core,31/01/2022,Other Goods & Services,Children's Social Care - Practice and Workforce,CORAM,CORE-PINV-031091,69581.33,Professional Services
Department for Education,Core,11/01/2022,Other Goods & Services,Children's Social Care - Practice and Workforce,Alma Economics Limited,CORE-PINV-030829,31834.00,Research & Evaluation
Department for Education,Core,31/01/2022,Other Goods & Services,Children's Social Care - Practice and Workforce,Alma Economics Limited,CORE-PINV-031703,31834.00,Research & Evaluation
Department for Education,Core,17/01/2022,"Marketing, Media and Comms",Communications,SCROLL PROJECTS LTD,CORE-PINV-031092,87022.80,Marketing and Media costs
Department for Education,Core,27/01/2022,Other Goods & Services,"Strategy, Social Mobility and Disadvantage",York Consulting LLP,CORE-PINV-031604,39937.50,Research & Evaluation
Department for Education,Core,24/01/2022,Other Goods & Services,"Strategy, Social Mobility and Disadvantage",EDUCATION DEVELOPMENT TRUST,CORE-PINV-031380,33826.22,Professional Services
Department for Education,Core,31/01/2022,Grants Expenditure,"Strategy, Social Mobility and Disadvantage",BRENT LONDON BOROUGH COUNCIL,CORE-MAIN-028520,31413.15,Current grants - Local Government
Department for Education,Core,31/01/2022,Grants Expenditure,"Strategy, Social Mobility and Disadvantage",HARINGEY LONDON BOROUGH COUNCIL,CORE-MAIN-028505,27547.09,Current grants - Local Government
Department for Education,Core,31/01/2022,Grants Expenditure,"Strategy, Social Mobility and Disadvantage",LEICESTER CITY COUNCIL,CORE-MAIN-028514,40355.19,Current grants - Local Government
Department for Education,Core,31/01/2022,Grants Expenditure,"Strategy, Social Mobility and Disadvantage",London Borough of Tower Hamlets,CORE-MAIN-028517,67703.94,Current grants - Local Government
Department for Education,Core,31/01/2022,Grants Expenditure,"Strategy, Social Mobility and Disadvantage",SHEFFIELD CITY COUNCIL,CORE-MAIN-028516,35062.81,Current grants - Local Government
Department for Education,Core,07/01/2022,Other Goods & Services,"Strategy, Social Mobility and Disadvantage",CONTACT,CORE-PINV-030746,153188.18,Professional Services
Department for Education,Core,26/01/2022,Other Goods & Services,"Strategy, Social Mobility and Disadvantage",COUNCIL FOR DISABLED CHILDREN,CORE-PINV-031575,59919.17,Professional Services
Department for Education,Core,26/01/2022,Other Goods & Services,"Strategy, Social Mobility and Disadvantage",COUNCIL FOR DISABLED CHILDREN,CORE-PINV-031574,64492.20,Professional Services
Department for Education,Core,17/01/2022,Other Goods & Services,"Strategy, Social Mobility and Disadvantage",NASEN,CORE-PINV-031071,98102.63,Professional Services - Education Services
Department for Education,Core,31/01/2022,Grants Expenditure,"Strategy, Social Mobility and Disadvantage",THE FAMILY FUND TRUST,CORE-MAIN-028525,782000.00,Current grants - Private Sector
Department for Education,Core,20/01/2022,Grants Expenditure,"Strategy, Social Mobility and Disadvantage",THE UNIVERSITY OF MANCHESTER,CORE-PINV-031102,1552753.56,Current grants - Private Sector
Department for Education,Core,21/01/2022,Grants Expenditure,"Strategy, Social Mobility and Disadvantage",UNIVERSITY OF EAST ANGLIA,CORE-PINV-031215,36413.00,Current grants - Private Sector
Department for Education,Core,24/01/2022,Other Goods & Services,"Strategy, Social Mobility and Disadvantage",Mott MacDonald Ltd,CORE-PINV-031322,165439.13,Professional Services
Department for Education,Core,31/01/2022,Grants Expenditure,Regional Delivery Directorate,MULBERRY SCHOOLS TRUST,CORE-MAIN-028530,58700.00,Current grants - Academy Trust
Department for Education,Core,14/01/2022,Other Costs,Regional Delivery Directorate,MADE TECH LTD,CORE-PINV-031035,36632.14,Software Development
Department for Education,Core,12/01/2022,Other Costs,Regional Delivery Directorate,Nexer Digital Ltd,CORE-PINV-030936,26875.00,Software Development
Department for Education,Core,06/01/2022,Grants Expenditure,Regional Delivery Directorate,Silverdale School,CORE-MAIN-028397,25000.00,Current grants - Academy Trust
Department for Education,Core,31/01/2022,Grants Expenditure,Regional Delivery Directorate,Symphony Learning Trust,CORE-MAIN-028535,25000.00,Current grants - Academy Trust
Department for Education,Core,31/01/2022,Grants Expenditure,Regional Delivery Directorate,Hinchingbrooke School,CORE-MAIN-028536,25000.00,Current grants - Academy Trust
Department for Education,Core,31/01/2022,Grants Expenditure,Regional Delivery Directorate,Our Lady of Grace Catholic Academy Trust,CORE-MAIN-028538,25000.00,Current grants - Academy Trust
Department for Education,Core,31/01/2022,Grants Expenditure,Regional Delivery Directorate,St Mary's Church of England Junior School,CORE-MAIN-028537,75000.00,Current grants - Academy Trust
Department for Education,Core,31/01/2022,Grants Expenditure,Regional Delivery Directorate,Torkington Primary School,CORE-MAIN-028539,25000.00,Current grants - Academy Trust
Department for Education,Core,31/01/2022,Grants Expenditure,Regional Delivery Directorate,St Joseph Catholic Multi Academy Trust,CORE-MAIN-028540,590000.00,Current grants - Academy Trust
Department for Education,Core,31/01/2022,Grants Expenditure,Regional Delivery Directorate,Bishop Chadwick Catholic Education Trust,CORE-MAIN-028541,75000.00,Current grants - Academy Trust
Department for Education,Core,06/01/2022,Grants Expenditure,Regional Delivery Directorate,NORTHERN STAR ACADEMIES TRUST,CORE-MAIN-028398,25000.00,Current grants - Academy Trust
Department for Education,Core,06/01/2022,Grants Expenditure,Regional Delivery Directorate,The Will Adams Centre,CORE-MAIN-028399,25000.00,Current grants - Academy Trust
Department for Education,Core,31/01/2022,Grants Expenditure,Regional Delivery Directorate,South Farnham Educational Trust,CORE-MAIN-028543,70000.00,Current grants - Academy Trust
Department for Education,Core,31/01/2022,Grants Expenditure,Regional Delivery Directorate,Hamwic Education Trust,CORE-MAIN-028544,25000.00,Current grants - Academy Trust
Department for Education,Core,31/01/2022,Grants Expenditure,Regional Delivery Directorate,LEARNING ACADEMY PARTNERSHIP,CORE-MAIN-028547,25000.00,Current grants - Academy Trust
Department for Education,Core,31/01/2022,Grants Expenditure,Regional Delivery Directorate,Lighthouse Schools Partnership,CORE-MAIN-028546,25000.00,Current grants - Academy Trust
Department for Education,Core,31/01/2022,Grants Expenditure,Regional Delivery Directorate,LYDNEY C OF E COMMUNITY SCHOOL,CORE-MAIN-028545,25000.00,Current grants - Academy Trust
Department for Education,Core,31/01/2022,Grants Expenditure,Regional Delivery Directorate,ELEMENTS DIOCESAN LEARNING TRUST,CORE-MAIN-028548,100000.00,Current grants - Academy Trust
Department for Education,Core,06/01/2022,Grants Expenditure,Regional Delivery Directorate,MORETON MORRELL,CORE-MAIN-028400,25000.00,Current grants - Academy Trust
Department for Education,Core,31/01/2022,Grants Expenditure,Regional Delivery Directorate,St John Bosco Catholic Academy,CORE-MAIN-028550,25000.00,Current grants - Academy Trust
Department for Education,Core,31/01/2022,Grants Expenditure,Regional Delivery Directorate,WEAVER TRUST LTD,CORE-MAIN-028549,25000.00,Current grants - Academy Trust
Department for Education,Core,31/01/2022,Grants Expenditure,"School Systems, Academies and Reform Director",BATH & NORTH EAST SOMERSET COUNCIL,CORE-MAIN-028554,25742.00,Current grants - Local Government
Department for Education,Core,31/01/2022,Grants Expenditure,"School Systems, Academies and Reform Director",Buckinghamshire Council,CORE-MAIN-028568,36108.00,Current grants - Local Government
Department for Education,Core,31/01/2022,Grants Expenditure,"School Systems, Academies and Reform Director",CAMBRIDGESHIRE COUNTY COUNCIL,CORE-MAIN-028571,68067.00,Current grants - Local Government
Department for Education,Core,31/01/2022,Grants Expenditure,"School Systems, Academies and Reform Director",CENTRAL BEDFORDSHIRE COUNCIL,CORE-MAIN-028573,26958.00,Current grants - Local Government
Department for Education,Core,31/01/2022,Grants Expenditure,"School Systems, Academies and Reform Director",CHESHIRE WEST & CHESTER COUNCIL,CORE-MAIN-028575,36717.00,Current grants - Local Government
Department for Education,Core,31/01/2022,Grants Expenditure,"School Systems, Academies and Reform Director",CORNWALL COUNCIL,CORE-MAIN-028576,94050.00,Current grants - Local Government
Department for Education,Core,31/01/2022,Grants Expenditure,"School Systems, Academies and Reform Director",CUMBRIA COUNTY COUNCIL,CORE-MAIN-028579,44650.00,Current grants - Local Government
Department for Education,Core,31/01/2022,Grants Expenditure,"School Systems, Academies and Reform Director",DERBYSHIRE COUNTY COUNCIL,CORE-MAIN-028582,117108.00,Current grants - Local Government
Department for Education,Core,31/01/2022,Grants Expenditure,"School Systems, Academies and Reform Director",DEVON COUNTY COUNCIL,CORE-MAIN-028583,71975.00,Current grants - Local Government
Department for Education,Core,31/01/2022,Grants Expenditure,"School Systems, Academies and Reform Director",DONCASTER METRO BOROUGH COUNCIL,CORE-MAIN-028584,34208.00,Current grants - Local Government
Department for Education,Core,31/01/2022,Grants Expenditure,"School Systems, Academies and Reform Director",DORSET COUNCIL,CORE-MAIN-028585,77583.00,Current grants - Local Government
Department for Education,Core,31/01/2022,Grants Expenditure,"School Systems, Academies and Reform Director",DURHAM COUNTY COUNCIL,CORE-MAIN-028587,145042.00,Current grants - Local Government
Department for Education,Core,31/01/2022,Grants Expenditure,"School Systems, Academies and Reform Director",EAST SUSSEX COUNTY COUNCIL,CORE-MAIN-028590,60625.00,Current grants - Local Government
Department for Education,Core,31/01/2022,Grants Expenditure,"School Systems, Academies and Reform Director",ESSEX COUNTY COUNCIL,CORE-MAIN-028592,98567.00,Current grants - Local Government
Department for Education,Core,31/01/2022,Grants Expenditure,"School Systems, Academies and Reform Director",Gloucestershire County Council,CORE-MAIN-028594,64900.00,Current grants - Local Government
Department for Education,Core,31/01/2022,Grants Expenditure,"School Systems, Academies and Reform Director",HAMPSHIRE COUNTY COUNCIL,CORE-MAIN-028599,69408.00,Current grants - Local Government
Department for Education,Core,31/01/2022,Grants Expenditure,"School Systems, Academies and Reform Director",HERTFORDSHIRE COUNTY COUNCIL,CORE-MAIN-028605,33233.00,Current grants - Local Government
Department for Education,Core,31/01/2022,Grants Expenditure,"School Systems, Academies and Reform Director",KENT COUNTY COUNCIL,CORE-MAIN-028611,208475.00,Current grants - Local Government
Department for Education,Core,31/01/2022,Grants Expenditure,"School Systems, Academies and Reform Director",KINGSTON UPON HULL CITY COUNCIL,CORE-MAIN-028612,31576.00,Current grants - Local Government
Department for Education,Core,31/01/2022,Grants Expenditure,"School Systems, Academies and Reform Director",LANCASHIRE COUNTY COUNCIL,CORE-MAIN-028616,113692.00,Current grants - Local Government
Department for Education,Core,31/01/2022,Grants Expenditure,"School Systems, Academies and Reform Director",LEICESTERSHIRE COUNTY COUNCIL,CORE-MAIN-028619,70633.00,Current grants - Local Government
Department for Education,Core,31/01/2022,Grants Expenditure,"School Systems, Academies and Reform Director",LINCOLNSHIRE COUNTY COUNCIL,CORE-MAIN-028621,103442.00,Current grants - Local Government
Department for Education,Core,31/01/2022,Grants Expenditure,"School Systems, Academies and Reform Director",NORFOLK COUNTY COUNCIL,CORE-MAIN-028631,101858.00,Current grants - Local Government
Department for Education,Core,31/01/2022,Grants Expenditure,"School Systems, Academies and Reform Director",NORTH YORKSHIRE COUNTY COUNCIL,CORE-MAIN-028637,51725.00,Current grants - Local Government
Department for Education,Core,31/01/2022,Grants Expenditure,"School Systems, Academies and Reform Director",NORTHUMBERLAND COUNTY COUNCIL,CORE-MAIN-028638,37083.00,Current grants - Local Government
Department for Education,Core,31/01/2022,Grants Expenditure,"School Systems, Academies and Reform Director",NOTTINGHAMSHIRE COUNTY COUNCIL,CORE-MAIN-028640,67583.00,Current grants - Local Government
Department for Education,Core,31/01/2022,Grants Expenditure,"School Systems, Academies and Reform Director",Oxfordshire County Council,CORE-MAIN-028642,50017.00,Current grants - Local Government
Department for Education,Core,31/01/2022,Grants Expenditure,"School Systems, Academies and Reform Director",SHROPSHIRE COUNCIL,CORE-MAIN-028657,26475.00,Current grants - Local Government
Department for Education,Core,31/01/2022,Grants Expenditure,"School Systems, Academies and Reform Director",SOMERSET COUNTY COUNCIL,CORE-MAIN-028660,69775.00,Current grants - Local Government
Department for Education,Core,31/01/2022,Grants Expenditure,"School Systems, Academies and Reform Director",Staffordshire County Council,CORE-MAIN-028667,50017.00,Current grants - Local Government
Department for Education,Core,31/01/2022,Grants Expenditure,"School Systems, Academies and Reform Director",SUFFOLK COUNTY COUNCIL,CORE-MAIN-028671,83925.00,Current grants - Local Government
Department for Education,Core,31/01/2022,Grants Expenditure,"School Systems, Academies and Reform Director",SURREY COUNTY COUNCIL,CORE-MAIN-028673,46583.00,Current grants - Local Government
Department for Education,Core,31/01/2022,Grants Expenditure,"School Systems, Academies and Reform Director",Wakefield City Council,CORE-MAIN-028682,37817.00,Current grants - Local Government
Department for Education,Core,31/01/2022,Grants Expenditure,"School Systems, Academies and Reform Director",WARWICKSHIRE COUNTY COUNCIL,CORE-MAIN-028687,41842.00,Current grants - Local Government
Department for Education,Core,31/01/2022,Grants Expenditure,"School Systems, Academies and Reform Director",West Northamptonshire Council,CORE-MAIN-028689,25008.00,Current grants - Local Government
Department for Education,Core,31/01/2022,Grants Expenditure,"School Systems, Academies and Reform Director",West Sussex County Council,CORE-MAIN-028690,52942.00,Current grants - Local Government
Department for Education,Core,31/01/2022,Grants Expenditure,"School Systems, Academies and Reform Director",WILTSHIRE COUNTY COUNCIL,CORE-MAIN-028693,46475.00,Current grants - Local Government
Department for Education,Core,31/01/2022,Grants Expenditure,"School Systems, Academies and Reform Director",Worcestershire County Council,CORE-MAIN-028698,45375.00,Current grants - Local Government
Department for Education,Core,06/01/2022,Grants Expenditure,"School Systems, Academies and Reform Director",Anglian Learning,CORE-MAIN-028401,35000.00,Current grants - Academy Trust
Department for Education,Core,06/01/2022,Grants Expenditure,"School Systems, Academies and Reform Director",Birmingham Ormiston Academy,CORE-MAIN-028403,25000.00,Current grants - Academy Trust
Department for Education,Core,06/01/2022,Grants Expenditure,"School Systems, Academies and Reform Director",EDUCATE TOGETHER ACADEMY TRUST,CORE-MAIN-028404,60000.00,Current grants - Academy Trust
Department for Education,Core,06/01/2022,Grants Expenditure,"School Systems, Academies and Reform Director",Heathside School,CORE-MAIN-028407,50000.00,Current grants - Academy Trust
Department for Education,Core,06/01/2022,Grants Expenditure,"School Systems, Academies and Reform Director",Kernow Learning Multi Academy Trust,CORE-MAIN-028408,65000.00,Current grants - Academy Trust
Department for Education,Core,31/01/2022,Grants Expenditure,"School Systems, Academies and Reform Director",MULBERRY SCHOOLS TRUST,CORE-MAIN-028717,25000.00,Current grants - Academy Trust
Department for Education,Core,06/01/2022,Grants Expenditure,"School Systems, Academies and Reform Director",North Star Academy Trust,CORE-MAIN-028402,40000.00,Current grants - Academy Trust
Department for Education,Core,06/01/2022,Grants Expenditure,"School Systems, Academies and Reform Director",River Tees Primary Academy,CORE-MAIN-028406,40000.00,Current grants - Academy Trust
Department for Education,Core,31/01/2022,Grants Expenditure,"School Systems, Academies and Reform Director",SCHOLARS ACADEMY TRUST ,CORE-MAIN-028718,25000.00,Current grants - Academy Trust
Department for Education,Core,06/01/2022,Grants Expenditure,"School Systems, Academies and Reform Director",Sir Henry Floyd Grammar School,CORE-MAIN-028409,25000.00,Current grants - Academy Trust
Department for Education,Core,06/01/2022,Grants Expenditure,"School Systems, Academies and Reform Director",Southfield School For Girls,CORE-MAIN-028412,30000.00,Current grants - Academy Trust
Department for Education,Core,06/01/2022,Grants Expenditure,"School Systems, Academies and Reform Director",The Ted Wragg Multi Academy Trust,CORE-MAIN-028411,30000.00,Current grants - Academy Trust
Department for Education,Core,06/01/2022,Grants Expenditure,"School Systems, Academies and Reform Director",Tiptree Heath Primary School,CORE-MAIN-028410,25000.00,Current grants - Academy Trust
Department for Education,Core,06/01/2022,Grants Expenditure,"School Systems, Academies and Reform Director",Imperial College London Maths School,CORE-MAIN-028405,50000.00,Current grants - Academy Trust
Department for Education,Core,24/01/2022,Grants Expenditure,"School Systems, Academies and Reform Director",NEW SCHOOLS NETWORK,CORE-PINV-031405,70000.00,Current grants - Private Sector
Department for Education,Core,27/01/2022,Grants Expenditure,"School Systems, Academies and Reform Director",NEW SCHOOLS NETWORK,CORE-PCR-001107,-58333.33,Current grants - Private Sector
Department for Education,Core,27/01/2022,Grants Expenditure,"School Systems, Academies and Reform Director",NEW SCHOOLS NETWORK,CORE-PCR-001109,-58333.33,Current grants - Private Sector
Department for Education,Core,27/01/2022,Grants Expenditure,"School Systems, Academies and Reform Director",NEW SCHOOLS NETWORK,CORE-PCR-001110,-58333.33,Current grants - Private Sector
Department for Education,Core,27/01/2022,Grants Expenditure,"School Systems, Academies and Reform Director",NEW SCHOOLS NETWORK,CORE-PCR-001111,-58333.33,Current grants - Private Sector
Department for Education,Core,27/01/2022,Grants Expenditure,"School Systems, Academies and Reform Director",NEW SCHOOLS NETWORK,CORE-PCR-001112,-58333.33,Current grants - Private Sector
Department for Education,Core,27/01/2022,Grants Expenditure,"School Systems, Academies and Reform Director",NEW SCHOOLS NETWORK,CORE-PCR-001108,-58333.33,Current grants - Private Sector
Department for Education,Core,27/01/2022,Grants Expenditure,"School Systems, Academies and Reform Director",NEW SCHOOLS NETWORK,CORE-PCR-001113,-58333.33,Current grants - Private Sector
Department for Education,Core,27/01/2022,Grants Expenditure,"School Systems, Academies and Reform Director",NEW SCHOOLS NETWORK,CORE-PCR-001114,-58333.33,Current grants - Private Sector
Department for Education,Core,27/01/2022,Grants Expenditure,"School Systems, Academies and Reform Director",NEW SCHOOLS NETWORK,CORE-PINV-031609,70000.00,Current grants - Private Sector
Department for Education,Core,27/01/2022,Grants Expenditure,"School Systems, Academies and Reform Director",NEW SCHOOLS NETWORK,CORE-PINV-031608,70000.00,Current grants - Private Sector
Department for Education,Core,27/01/2022,Grants Expenditure,"School Systems, Academies and Reform Director",NEW SCHOOLS NETWORK,CORE-PINV-031610,70000.00,Current grants - Private Sector
Department for Education,Core,27/01/2022,Grants Expenditure,"School Systems, Academies and Reform Director",NEW SCHOOLS NETWORK,CORE-PINV-031611,70000.00,Current grants - Private Sector
Department for Education,Core,27/01/2022,Grants Expenditure,"School Systems, Academies and Reform Director",NEW SCHOOLS NETWORK,CORE-PINV-031613,70000.00,Current grants - Private Sector
Department for Education,Core,27/01/2022,Grants Expenditure,"School Systems, Academies and Reform Director",NEW SCHOOLS NETWORK,CORE-PINV-031615,70000.00,Current grants - Private Sector
Department for Education,Core,27/01/2022,Grants Expenditure,"School Systems, Academies and Reform Director",NEW SCHOOLS NETWORK,CORE-PINV-031616,70000.00,Current grants - Private Sector
Department for Education,Core,27/01/2022,Grants Expenditure,"School Systems, Academies and Reform Director",NEW SCHOOLS NETWORK,CORE-PINV-031618,70000.00,Current grants - Private Sector
Department for Education,Core,21/01/2022,Other Goods & Services,"School Systems, Academies and Reform Director",EDUCATION AND EMPLOYERS TASKFORCE,CORE-PINV-031328,43770.83,Professional Services
Department for Education,Core,20/01/2022,Other Goods & Services,"School Systems, Academies and Reform Director",NEW SCHOOLS NETWORK,CORE-PINV-031321,47000.00,Professional Services
Department for Education,Core,06/01/2022,Grants Expenditure,"School Systems, Academies and Reform Director",CATHOLIC EDUCATION SERVICE,CORE-MAIN-028415,104675.00,Current grants - Private Sector
Department for Education,Core,06/01/2022,Grants Expenditure,"School Systems, Academies and Reform Director",THE NATIONAL SOCIETY,CORE-MAIN-028416,144525.00,Current grants - Private Sector
Department for Education,Core,19/01/2022,Grants Expenditure,"School Systems, Academies and Reform Director",St Joseph Catholic Multi Academy Trust,CUPS0037773,370000.00,Current grants - Private Sector
Department for Education,Core,06/01/2022,Other Goods & Services,"Early Years, Childcare, School Food and Teaching Regulation Director",Mott MacDonald Ltd,CORE-PINV-030652,147264.36,Professional Services
Department for Education,Core,28/01/2022,Other Goods & Services,"Early Years, Childcare, School Food and Teaching Regulation Director",FAMILY ACTION,CORE-PINV-031650,498603.02,Professional Services
Department for Education,Core,14/01/2022,Other Goods & Services,"Early Years, Childcare, School Food and Teaching Regulation Director",HM REVENUE & CUSTOMS,CORE-PINV-031049,1950135.55,Professional Services
Department for Education,Core,14/01/2022,Staff - Temporary Staff,"Early Years, Childcare, School Food and Teaching Regulation Director",ANDIGITAL LIMITED,CORE-PINV-030383,37680.00,Short term & agency staff
Department for Education,Core,31/01/2022,Staff - Temporary Staff,"Early Years, Childcare, School Food and Teaching Regulation Director",ANDIGITAL LIMITED,CORE-PINV-030385,103512.00,Short term & agency staff
Department for Education,Core,14/01/2022,Staff - Temporary Staff,"Early Years, Childcare, School Food and Teaching Regulation Director",ENGINE GROUP LTD,CORE-PINV-030990,26412.00,Short term & agency staff
Department for Education,Core,12/01/2022,Other Goods & Services,"Early Years, Childcare, School Food and Teaching Regulation Director",THE ANNA FREUD CENTRE,CORE-PINV-030943,87213.13,Professional Services
